Workbook

Sheet Main
B10: 2019-10-31
B12: Sheet No. | C12: Template Name | D12: Summary
B13: 1 | C13: Future Intra | D13: For Intraday trading in F&O segment
B14: 2 | C14: Cash Intra | D14: For Intraday trading in cash market segment
B15: 3 | C15: Mid-cap Intra | D15: For Intraday trading in Mid-cap stocks
B16: 4 | C16: Bulk Deals | D16: Reveals Bulk Deals carried on NSE & BSE
B17: 5 | C17: Call Tracker
K27: `

Sheet Future Intra
M5: Back to Main Page
A6: FOR INTRA DAY TRADING | L6: =Main!B10 -> 2019-10-31
A9: Sr.no | B9: Sector | C9: Scrip | D9: CLOSE RATE | E9: Pivot Point | F9: Supports | I9: Resistances
B10: Sector | D10: Point | E10: Point | F10: S1 | G10: S2 | H10: S3 | I10: R1 | J10: R2 | K10: R3 | L10: HIGH | M10: LOW | N10: OI | O10: % Change in OI
A11: 1 | B11: Index | C11: BANKNIFTY | D11: 29986.45 | E11: 29959.30 | F11: 29767.20 | G11: 29547.95 | H11: 29355.85 | I11: 30178.55 | J11: 30370.65 | K11: 30589.90 | L11: 30151.4 | M11: 29740.05 | N11: 1391060 | O11: 3.73%
A12: 2 | B12: Index | C12: NIFTY | D12: 11840.20 | E12: 11834.35 | F12: 11791.10 | G12: 11742.00 | H12: 11698.75 | I12: 11883.45 | J12: 11926.70 | K12: 11975.80 | L12: 11877.6 | M12: 11785.25 | N12: 16543500 | O12: -3.27%
A13: 3 | B13: Index | C13: NIFTYIT | D13: 15479.00 | E13: 15401.67 | F13: 15303.33 | G13: 15127.67 | H13: 15029.33 | I13: 15577.33 | J13: 15675.67 | K13: 15851.33 | L13: 15500 | M13: 15226 | N13: 11200 | O13: -21.40%
A14: 4 | B14: Cement | C14: ACC | D14: 1534.15 | E14: 1543.02 | F14: 1512.13 | G14: 1490.12 | H14: 1459.23 | I14: 1565.03 | J14: 1595.92 | K14: 1617.93 | L14: 1573.9 | M14: 1521 | N14: 2540800 | O14: 6.43%
A15: 5 | B15: Others | C15: ADANIENT | D15: 195.40 | E15: 194.98 | F15: 192.62 | G15: 189.83 | H15: 187.47 | I15: 197.77 | J15: 200.13 | K15: 202.92 | L15: 197.35 | M15: 192.2 | N15: 31424000 | O15: -4.61%
A16: 6 | B16: Others | C16: ADANIPORTS | D16: 398.35 | E16: 400.17 | F16: 394.68 | G16: 391.02 | H16: 385.53 | I16: 403.83 | J16: 409.32 | K16: 412.98 | L16: 405.65 | M16: 396.5 | N16: 14207500 | O16: 3.06%
A17: 7 | B17: Power | C17: ADANIPOWER | D17: 66.05 | E17: 66.08 | F17: 65.52 | G17: 64.98 | H17: 64.42 | I17: 66.62 | J17: 67.18 | K17: 67.72 | L17: 66.65 | M17: 65.55 | N17: 91840000 | O17: -1.08%
A18: 8 | B18: Automobile | C18: AMARAJABAT | D18: 677.35 | E18: 674.92 | F18: 668.28 | G18: 659.22 | H18: 652.58 | I18: 683.98 | J18: 690.62 | K18: 699.68 | L18: 681.55 | M18: 665.85 | N18: 1705200 | O18: -5.51%
A19: 9 | B19: Cement | C19: AMBUJACEM | D19: 200.40 | E19: 201.17 | F19: 198.63 | G19: 196.87 | H19: 194.33 | I19: 202.93 | J19: 205.47 | K19: 207.23 | L19: 203.7 | M19: 199.4 | N19: 20535000 | O19: -1.40%
A20: 10 | B20: Others | C20: APOLLOHOSP | D20: 1463.65 | E20: 1457.60 | F20: 1427.05 | G20: 1390.45 | H20: 1359.90 | I20: 1494.20 | J20: 1524.75 | K20: 1561.35 | L20: 1488.15 | M20: 1421 | N20: 1605000 | O20: 0.88%
A21: 11 | B21: Automobile | C21: APOLLOTYRE | D21: 188.00 | E21: 187.13 | F21: 185.37 | G21: 182.73 | H21: 180.97 | I21: 189.77 | J21: 191.53 | K21: 194.17 | L21: 188.9 | M21: 184.5 | N21: 6102000 | O21: -18.21%
A22: 13 | B22: Automobile | C22: ASHOKLEY | D22: 78.35 | E22: 78.77 | F22: 77.13 | G22: 75.92 | H22: 74.28 | I22: 79.98 | J22: 81.62 | K22: 82.83 | L22: 80.4 | M22: 77.55 | N22: 65190000 | O22: 1.56%
A23: 14 | B23: FMCG | C23: ASIANPAINT | D23: 1818.25 | E23: 1815.38 | F23: 1805.87 | G23: 1793.48 | H23: 1783.97 | I23: 1827.77 | J23: 1837.28 | K23: 1849.67 | L23: 1824.9 | M23: 1803 | N23: 7789800 | O23: -1.19%
A24: 15 | B24: Pharma | C24: AUROPHARMA | D24: 463.55 | E24: 467.20 | F24: 456.00 | G24: 448.45 | H24: 437.25 | I24: 474.75 | J24: 485.95 | K24: 493.50 | L24: 478.4 | M24: 459.65 | N24: 18824000 | O24: 0.04%
A25: 16 | B25: Banking | C25: AXISBANK | D25: 746.25 | E25: 743.50 | F25: 738.00 | G25: 729.75 | H25: 724.25 | I25: 751.75 | J25: 757.25 | K25: 765.50 | L25: 749 | M25: 735.25 | N25: 55072800 | O25: -3.39%
A26: 17 | B26: Automobile | C26: BAJAJ-AUTO | D26: 3220.20 | E26: 3208.67 | F26: 3186.08 | G26: 3151.97 | H26: 3129.38 | I26: 3242.78 | J26: 3265.37 | K26: 3299.48 | L26: 3231.25 | M26: 3174.55 | N26: 2427750 | O26: 3.30%
A27: 18 | B27: Finance | C27: BAJAJFINSV | D27: 8079.60 | E27: 8112.37 | F27: 8025.08 | G27: 7970.57 | H27: 7883.28 | I27: 8166.88 | J27: 8254.17 | K27: 8308.68 | L27: 8199.65 | M27: 8057.85 | N27: 1263875 | O27: -2.92%
A28: 19 | B28: Finance | C28: BAJFINANCE | D28: 3994.75 | E28: 4015.05 | F28: 3965.10 | G28: 3935.45 | H28: 3885.50 | I28: 4044.70 | J28: 4094.65 | K28: 4124.30 | L28: 4065 | M28: 3985.4 | N28: 7037000 | O28: -0.44%
A29: 20 | B29: Automobile | C29: BALKRISIND | D29: 869.10 | E29: 868.42 | F29: 854.83 | G29: 840.57 | H29: 826.98 | I29: 882.68 | J29: 896.27 | K29: 910.53 | L29: 882 | M29: 854.15 | N29: 1663200 | O29: -7.72%
A30: 21 | B30: Banking | C30: BANKBARODA | D30: 95.65 | E30: 95.25 | F30: 93.20 | G30: 90.75 | H30: 88.70 | I30: 97.70 | J30: 99.75 | K30: 102.20 | L30: 97.3 | M30: 92.8 | N30: 76140000 | O30: 5.48%
A31: 22 | B31: Banking | C31: BANKINDIA | D31: 71.20 | E31: 69.92 | F31: 68.23 | G31: 65.27 | H31: 63.58 | I31: 72.88 | J31: 74.57 | K31: 77.53 | L31: 71.6 | M31: 66.95 | N31: 24462000 | O31: 8.98%
A32: 23 | B32: FMCG | C32: BATAINDIA | D32: 1775.10 | E32: 1775.32 | F32: 1761.38 | G32: 1747.67 | H32: 1733.73 | I32: 1789.03 | J32: 1802.97 | K32: 1816.68 | L32: 1789.25 | M32: 1761.6 | N32: 2827550 | O32: -0.93%
A33: 24 | B33: Capital_Goods | C33: BEL | D33: 119.40 | E33: 119.85 | F33: 117.40 | G33: 115.40 | H33: 112.95 | I33: 121.85 | J33: 124.30 | K33: 126.30 | L33: 122.3 | M33: 117.85 | N33: 25680000 | O33: 0.75%
A34: 25 | B34: FMCG | C34: BERGEPAINT | D34: 498.10 | E34: 498.57 | F34: 495.13 | G34: 492.17 | H34: 488.73 | I34: 501.53 | J34: 504.97 | K34: 507.93 | L34: 502 | M34: 495.6 | N34: 7818800 | O34: -11.77%
A35: 26 | B35: Automobile | C35: BHARATFORG | D35: 456.10 | E35: 458.77 | F35: 450.53 | G35: 444.97 | H35: 436.73 | I35: 464.33 | J35: 472.57 | K35: 478.13 | L35: 467 | M35: 453.2 | N35: 7080000 | O35: -1.49%
A36: 27 | B36: Telecom | C36: BHARTIARTL | D36: 368.15 | E36: 366.75 | F36: 362.15 | G36: 356.15 | H36: 351.55 | I36: 372.75 | J36: 377.35 | K36: 383.35 | L36: 371.35 | M36: 360.75 | N36: 40796040 | O36: -4.72%
A37: 28 | B37: Capital_Goods | C37: BHEL | D37: 58.90 | E37: 59.20 | F37: 57.40 | G37: 55.90 | H37: 54.10 | I37: 60.70 | J37: 62.50 | K37: 64.00 | L37: 61 | M37: 57.7 | N37: 64507500 | O37: 0.50%
A38: 29 | B38: Pharma | C38: BIOCON | D38: 248.95 | E38: 248.22 | F38: 246.13 | G38: 243.32 | H38: 241.23 | I38: 251.03 | J38: 253.12 | K38: 255.93 | L38: 250.3 | M38: 245.4 | N38: 14212800 | O38: 6.26%
A39: 30 | B39: Automobile | C39: BOSCHLTD | D39: 15549.00 | E39: 15604.05 | F39: 15346.45 | G39: 15143.90 | H39: 14886.30 | I39: 15806.60 | J39: 16064.20 | K39: 16266.75 | L39: 15861.65 | M39: 15401.5 | N39: 150840 | O39: -1.08%
A40: 31 | B40: Oil_Gas | C40: BPCL | D40: 525.60 | E40: 526.68 | F40: 518.02 | G40: 510.43 | H40: 501.77 | I40: 534.27 | J40: 542.93 | K40: 550.52 | L40: 535.35 | M40: 519.1 | N40: 22960800 | O40: -2.64%
A41: 32 | B41: FMCG | C41: BRITANNIA | D41: 3282.40 | E41: 3315.90 | F41: 3236.50 | G41: 3190.60 | H41: 3111.20 | I41: 3361.80 | J41: 3441.20 | K41: 3487.10 | L41: 3395.3 | M41: 3270 | N41: 2011000 | O41: 0.50%
A42: 34 | B42: Pharma | C42: CADILAHC | D42: 249.45 | E42: 249.10 | F42: 246.75 | G42: 244.05 | H42: 241.70 | I42: 251.80 | J42: 254.15 | K42: 256.85 | L42: 251.45 | M42: 246.4 | N42: 8344000 | O42: -1.16%
A43: 35 | B43: Banking | C43: CANBK | D43: 200.50 | E43: 199.17 | F43: 195.73 | G43: 190.97 | H43: 187.53 | I43: 203.93 | J43: 207.37 | K43: 212.13 | L43: 202.6 | M43: 194.4 | N43: 11260000 | O43: 1.79%
A44: 36 | B44: Oil_Gas | C44: CASTROLIND | D44: 153.75 | E44: 154.95 | F44: 150.35 | G44: 146.95 | H44: 142.35 | I44: 158.35 | J44: 162.95 | K44: 166.35 | L44: 159.55 | M44: 151.55 | N44: 6667400 | O44: -13.23%
A45: 37 | B45: Textile | C45: CENTURYTEX | D45: 421.90 | E45: 423.88 | F45: 416.27 | G45: 410.63 | H45: 403.02 | I45: 429.52 | J45: 437.13 | K45: 442.77 | L45: 431.5 | M45: 418.25 | N45: 2721000 | O45: 3.09%
A46: 38 | B46: Power | C46: CESC | D46: 811.05 | E46: 811.95 | F46: 805.75 | G46: 800.45 | H46: 794.25 | I46: 817.25 | J46: 823.45 | K46: 828.75 | L46: 818.15 | M46: 806.65 | N46: 760800 | O46: -0.83%
A47: 39 | B47: Finance | C47: CHOLAFIN | D47: 305.75 | E47: 302.95 | F47: 299.40 | G47: 293.05 | H47: 289.50 | I47: 309.30 | J47: 312.85 | K47: 319.20 | L47: 306.5 | M47: 296.6 | N47: 3460000 | O47: -1.84%
A48: 40 | B48: Pharma | C48: CIPLA | D48: 465.05 | E48: 467.38 | F48: 460.12 | G48: 455.18 | H48: 447.92 | I48: 472.32 | J48: 479.58 | K48: 484.52 | L48: 474.65 | M48: 462.45 | N48: 12679000 | O48: -0.15%
A49: 41 | B49: Others | C49: COALINDIA | D49: 206.30 | E49: 207.57 | F49: 204.13 | G49: 201.97 | H49: 198.53 | I49: 209.73 | J49: 213.17 | K49: 215.33 | L49: 211 | M49: 205.4 | N49: 32549000 | O49: -0.77%
A50: 42 | B50: FMCG | C50: COLPAL | D50: 1535.85 | E50: 1528.67 | F50: 1518.33 | G50: 1500.82 | H50: 1490.48 | I50: 1546.18 | J50: 1556.52 | K50: 1574.03 | L50: 1539 | M50: 1511.15 | N50: 1827700 | O50: -5.98%
A51: 43 | B51: Others | C51: CONCOR | D51: 593.05 | E51: 596.80 | F51: 585.40 | G51: 577.75 | H51: 566.35 | I51: 604.45 | J51: 615.85 | K51: 623.50 | L51: 608.2 | M51: 589.15 | N51: 6131649 | O51: 1.71%
A52: 44 | B52: Capital_Goods | C52: CUMMINSIND | D52: 555.70 | E52: 552.35 | F52: 546.00 | G52: 536.30 | H52: 529.95 | I52: 562.05 | J52: 568.40 | K52: 578.10 | L52: 558.7 | M52: 542.65 | N52: 2090900 | O52: -11.26%
A53: 45 | B53: FMCG | C53: DABUR | D53: 460.85 | E53: 462.18 | F53: 455.77 | G53: 450.68 | H53: 444.27 | I53: 467.27 | J53: 473.68 | K53: 478.77 | L53: 468.6 | M53: 457.1 | N53: 11207500 | O53: -4.06%
A54: 47 | B54: Media | C54: DISHTV | D54: 10.70 | E54: 10.82 | F54: 10.33 | G54: 9.97 | H54: 9.48 | I54: 11.18 | J54: 11.67 | K54: 12.03 | L54: 11.3 | M54: 10.45 | N54: 114184000 | O54: 0.74%
A55: 48 | B55: Pharma | C55: DIVISLAB | D55: 1739.15 | E55: 1744.63 | F55: 1726.17 | G55: 1713.18 | H55: 1694.72 | I55: 1757.62 | J55: 1776.08 | K55: 1789.07 | L55: 1763.1 | M55: 1731.65 | N55: 2229200 | O55: -2.76%
A56: 49 | B56: Realty | C56: DLF | D56: 181.90 | E56: 181.52 | F56: 179.88 | G56: 177.87 | H56: 176.23 | I56: 183.53 | J56: 185.17 | K56: 187.18 | L56: 183.15 | M56: 179.5 | N56: 38928400 | O56: -2.08%
A57: 50 | B57: Pharma | C57: DRREDDY | D57: 2755.40 | E57: 2773.87 | F57: 2719.73 | G57: 2684.07 | H57: 2629.93 | I57: 2809.53 | J57: 2863.67 | K57: 2899.33 | L57: 2828 | M57: 2738.2 | N57: 3061750 | O57: -0.24%
A58: 51 | B58: Automobile | C58: EICHERMOT | D58: 22454.70 | E58: 22208.48 | F58: 21830.77 | G58: 21206.83 | H58: 20829.12 | I58: 22832.42 | J58: 23210.13 | K58: 23834.07 | L58: 22586.2 | M58: 21584.55 | N58: 306425 | O58: -6.21%
A59: 53 | B59: Finance | C59: EQUITAS | D59: 94.80 | E59: 95.35 | F59: 93.45 | G59: 92.10 | H59: 90.20 | I59: 96.70 | J59: 98.60 | K59: 99.95 | L59: 97.25 | M59: 94 | N59: 12032000 | O59: 7.81%
A60: 54 | B60: Automobile | C60: ESCORTS | D60: 666.40 | E60: 665.95 | F60: 659.00 | G60: 651.60 | H60: 644.65 | I60: 673.35 | J60: 680.30 | K60: 687.70 | L60: 672.9 | M60: 658.55 | N60: 5371300 | O60: -5.42%
A61: 55 | B61: Automobile | C61: EXIDEIND | D61: 181.80 | E61: 182.20 | F61: 180.10 | G61: 178.40 | H61: 176.30 | I61: 183.90 | J61: 186.00 | K61: 187.70 | L61: 184.3 | M61: 180.5 | N61: 13612800 | O61: 10.33%
A62: 56 | B62: Banking | C62: FEDERALBNK | D62: 82.15 | E62: 82.30 | F62: 81.60 | G62: 81.05 | H62: 80.35 | I62: 82.85 | J62: 83.55 | K62: 84.10 | L62: 83 | M62: 81.75 | N62: 53340000 | O62: 1.48%
A63: 57 | B63: Oil_Gas | C63: GAIL | D63: 133.60 | E63: 131.10 | F63: 128.20 | G63: 122.80 | H63: 119.90 | I63: 136.50 | J63: 139.40 | K63: 144.80 | L63: 134 | M63: 125.7 | N63: 52801266 | O63: -3.37%
A64: 58 | B64: Pharma | C64: GLENMARK | D64: 309.75 | E64: 310.90 | F64: 306.15 | G64: 302.55 | H64: 297.80 | I64: 314.50 | J64: 319.25 | K64: 322.85 | L64: 315.65 | M64: 307.3 | N64: 6241000 | O64: -0.11%
A65: 59 | B65: Infrastructure | C65: GMRINFRA | D65: 20.70 | E65: 20.65 | F65: 20.35 | G65: 20.00 | H65: 19.70 | I65: 21.00 | J65: 21.30 | K65: 21.65 | L65: 20.95 | M65: 20.3 | N65: 171945000 | O65: 4.43%
A66: 60 | B66: FMCG | C66: GODREJCP | D66: 731.95 | E66: 730.48 | F66: 719.92 | G66: 707.88 | H66: 697.32 | I66: 742.52 | J66: 753.08 | K66: 765.12 | L66: 741.05 | M66: 718.45 | N66: 6282400 | O66: 1.78%
A67: 61 | B67: Cement | C67: GRASIM | D67: 734.80 | E67: 729.97 | F67: 718.63 | G67: 702.47 | H67: 691.13 | I67: 746.13 | J67: 757.47 | K67: 773.63 | L67: 741.3 | M67: 713.8 | N67: 19029000 | O67: -0.70%
A68: 62 | B68: Others | C68: HAVELLS | D68: 689.65 | E68: 686.25 | F68: 674.50 | G68: 659.35 | H68: 647.60 | I68: 701.40 | J68: 713.15 | K68: 728.30 | L68: 698 | M68: 671.1 | N68: 5713000 | O68: -0.17%
A69: 63 | B69: Technology | C69: HCLTECH | D69: 1144.80 | E69: 1142.65 | F69: 1137.70 | G69: 1130.60 | H69: 1125.65 | I69: 1149.75 | J69: 1154.70 | K69: 1161.80 | L69: 1147.6 | M69: 1135.55 | N69: 11075400 | O69: -1.77%
A70: 64 | B70: Finance | C70: HDFC | D70: 2104.55 | E70: 2112.32 | F70: 2093.28 | G70: 2082.02 | H70: 2062.98 | I70: 2123.58 | J70: 2142.62 | K70: 2153.88 | L70: 2131.35 | M70: 2101.05 | N70: 33921000 | O70: -1.31%
A71: 65 | B71: Banking | C71: HDFCBANK | D71: 1246.40 | E71: 1250.78 | F71: 1238.42 | G71: 1230.43 | H71: 1218.07 | I71: 1258.77 | J71: 1271.13 | K71: 1279.12 | L71: 1263.15 | M71: 1242.8 | N71: 29445500 | O71: 0.31%
A72: 66 | B72: Automobile | C72: HEROMOTOCO | D72: 2684.80 | E72: 2692.18 | F72: 2669.72 | G72: 2654.63 | H72: 2632.17 | I72: 2707.27 | J72: 2729.73 | K72: 2744.82 | L72: 2714.65 | M72: 2677.1 | N72: 3324600 | O72: 0.71%
A73: 67 | B73: Technology | C73: HEXAWARE | D73: 329.70 | E73: 329.65 | F73: 323.65 | G73: 317.60 | H73: 311.60 | I73: 335.70 | J73: 341.70 | K73: 347.75 | L73: 335.65 | M73: 323.6 | N73: 2427000 | O73: -3.69%
A74: 68 | B74: Metals | C74: HINDALCO | D74: 187.55 | E74: 187.18 | F74: 184.62 | G74: 181.68 | H74: 179.12 | I74: 190.12 | J74: 192.68 | K74: 195.62 | L74: 189.75 | M74: 184.25 | N74: 31311000 | O74: -7.86%
A75: 69 | B75: Oil_Gas | C75: HINDPETRO | D75: 318.85 | E75: 317.98 | F75: 312.47 | G75: 306.08 | H75: 300.57 | I75: 324.37 | J75: 329.88 | K75: 336.27 | L75: 323.5 | M75: 311.6 | N75: 25002600 | O75: 2.21%
A76: 70 | B76: FMCG | C76: HINDUNILVR | D76: 2166.00 | E76: 2159.43 | F76: 2146.57 | G76: 2127.13 | H76: 2114.27 | I76: 2178.87 | J76: 2191.73 | K76: 2211.17 | L76: 2172.3 | M76: 2140 | N76: 8493300 | O76: -5.98%
A77: 72 | B77: Finance | C77: IBULHSGFIN | D77: 214.50 | E77: 216.12 | F77: 202.58 | G77: 190.67 | H77: 177.13 | I77: 228.03 | J77: 241.57 | K77: 253.48 | L77: 229.65 | M77: 204.2 | N77: 24686400 | O77: -0.70%
A78: 73 | B78: Banking | C78: ICICIBANK | D78: 471.15 | E78: 473.37 | F78: 467.43 | G78: 463.72 | H78: 457.78 | I78: 477.08 | J78: 483.02 | K78: 486.73 | L78: 479.3 | M78: 469.65 | N78: 78890625 | O78: -2.29%
A79: 74 | B79: Finance | C79: ICICIPRULI | D79: 511.60 | E79: 507.90 | F79: 502.35 | G79: 493.10 | H79: 487.55 | I79: 517.15 | J79: 522.70 | K79: 531.95 | L79: 513.45 | M79: 498.65 | N79: 6814500 | O79: -7.63%
A80: 76 | B80: Telecom | C80: IDEA | D80: 3.85 | E80: 3.93 | F80: 3.67 | G80: 3.48 | H80: 3.22 | I80: 4.12 | J80: 4.38 | K80: 4.57 | L80: 4.2 | M80: 3.75 | N80: 606312000 | O80: 5.39%
A81: 77 | B81: Banking | C81: IDFCFIRSTB | D81: 42.55 | E81: 42.55 | F81: 41.70 | G81: 40.85 | H81: 40.00 | I81: 43.40 | J81: 44.25 | K81: 45.10 | L81: 43.4 | M81: 41.7 | N81: 239220000 | O81: -6.41%
A82: 78 | B82: Oil_Gas | C82: IGL | D82: 384.30 | E82: 385.20 | F82: 382.10 | G82: 379.90 | H82: 376.80 | I82: 387.40 | J82: 390.50 | K82: 392.70 | L82: 388.3 | M82: 383 | N82: 3665750 | O82: 10.53%
A83: 79 | B83: Others | C83: INDIGO | D83: 1513.25 | E83: 1490.13 | F83: 1443.27 | G83: 1373.28 | H83: 1326.42 | I83: 1560.12 | J83: 1606.98 | K83: 1676.97 | L83: 1537 | M83: 1420.15 | N83: 3772200 | O83: -13.03%
A84: 80 | B84: Banking | C84: INDUSINDBK | D84: 1295.85 | E84: 1300.40 | F84: 1277.80 | G84: 1259.75 | H84: 1237.15 | I84: 1318.45 | J84: 1341.05 | K84: 1359.10 | L84: 1323 | M84: 1282.35 | N84: 13036800 | O84: -1.11%
A85: 81 | B85: Telecom | C85: INFRATEL | D85: 183.70 | E85: 187.40 | F85: 173.20 | G85: 162.70 | H85: 148.50 | I85: 197.90 | J85: 212.10 | K85: 222.60 | L85: 201.6 | M85: 176.9 | N85: 13560000 | O85: -18.07%
A86: 82 | B86: Technology | C86: INFY | D86: 661.25 | E86: 663.48 | F86: 654.57 | G86: 647.88 | H86: 638.97 | I86: 670.17 | J86: 679.08 | K86: 685.77 | L86: 672.4 | M86: 656.8 | N86: 66556800 | O86: -3.74%
A87: 83 | B87: Oil_Gas | C87: IOC | D87: 147.20 | E87: 147.43 | F87: 145.57 | G87: 143.93 | H87: 142.07 | I87: 149.07 | J87: 150.93 | K87: 152.57 | L87: 149.3 | M87: 145.8 | N87: 44807000 | O87: -1.45%
A88: 84 | B88: FMCG | C88: ITC | D88: 259.50 | E88: 258.98 | F88: 254.27 | G88: 249.03 | H88: 244.32 | I88: 264.22 | J88: 268.93 | K88: 274.17 | L88: 263.7 | M88: 253.75 | N88: 101361600 | O88: -8.61%
A89: 85 | B89: Metals | C89: JINDALSTEL | D89: 115.45 | E89: 114.48 | F89: 112.22 | G89: 108.98 | H89: 106.72 | I89: 117.72 | J89: 119.98 | K89: 123.22 | L89: 116.75 | M89: 111.25 | N89: 36464000 | O89: -4.71%
A90: 86 | B90: Metals | C90: JSWSTEEL | D90: 234.40 | E90: 234.17 | F90: 231.53 | G90: 228.67 | H90: 226.03 | I90: 237.03 | J90: 239.67 | K90: 242.53 | L90: 236.8 | M90: 231.3 | N90: 51390000 | O90: -2.16%
A91: 87 | B91: Others | C91: JUBLFOOD | D91: 1567.10 | E91: 1574.02 | F91: 1535.43 | G91: 1503.77 | H91: 1465.18 | I91: 1605.68 | J91: 1644.27 | K91: 1675.93 | L91: 1612.6 | M91: 1542.35 | N91: 2743500 | O91: -7.02%
A92: 88 | B92: Others | C92: JUSTDIAL | D92: 598.90 | E92: 603.60 | F92: 592.75 | G92: 586.60 | H92: 575.75 | I92: 609.75 | J92: 620.60 | K92: 626.75 | L92: 614.45 | M92: 597.45 | N92: 3082800 | O92: 4.21%
A93: 90 | B93: Banking | C93: KOTAKBANK | D93: 1578.25 | E93: 1580.77 | F93: 1573.53 | G93: 1568.82 | H93: 1561.58 | I93: 1585.48 | J93: 1592.72 | K93: 1597.43 | L93: 1588 | M93: 1576.05 | N93: 7975200 | O93: -4.17%
A94: 91 | B94: Finance | C94: L&TFH | D94: 93.80 | E94: 94.35 | F94: 93.00 | G94: 92.20 | H94: 90.85 | I94: 95.15 | J94: 96.50 | K94: 97.30 | L94: 95.7 | M94: 93.55 | N94: 39528000 | O94: -0.59%
A95: 92 | B95: Finance | C95: LICHSGFIN | D95: 401.60 | E95: 400.97 | F95: 394.23 | G95: 386.87 | H95: 380.13 | I95: 408.33 | J95: 415.07 | K95: 422.43 | L95: 407.7 | M95: 393.6 | N95: 9664600 | O95: -7.29%
A96: 93 | B96: Capital_Goods | C96: LT | D96: 1474.95 | E96: 1477.63 | F96: 1463.57 | G96: 1452.18 | H96: 1438.12 | I96: 1489.02 | J96: 1503.08 | K96: 1514.47 | L96: 1491.7 | M96: 1466.25 | N96: 12474375 | O96: -8.66%
A97: 94 | B97: Pharma | C97: LUPIN | D97: 730.55 | E97: 732.82 | F97: 724.93 | G97: 719.32 | H97: 711.43 | I97: 738.43 | J97: 746.32 | K97: 751.93 | L97: 740.7 | M97: 727.2 | N97: 7224000 | O97: -7.13%
A98: 95 | B98: Automobile | C98: M&M | D98: 615.35 | E98: 612.52 | F98: 607.43 | G98: 599.52 | H98: 594.43 | I98: 620.43 | J98: 625.52 | K98: 633.43 | L98: 617.6 | M98: 604.6 | N98: 19606000 | O98: -5.31%
A99: 96 | B99: Finance | C99: M&MFIN | D99: 357.90 | E99: 358.57 | F99: 349.08 | G99: 340.27 | H99: 330.78 | I99: 367.38 | J99: 376.87 | K99: 385.68 | L99: 368.05 | M99: 349.75 | N99: 12587500 | O99: -4.69%
A100: 97 | B100: Finance | C100: MANAPPURAM | D100: 163.40 | E100: 163.62 | F100: 161.78 | G100: 160.17 | H100: 158.33 | I100: 165.23 | J100: 167.07 | K100: 168.68 | L100: 165.45 | M100: 162 | N100: 12960000 | O100: 0.19%
A101: 98 | B101: FMCG | C101: MARICO | D101: 370.55 | E101: 369.40 | F101: 367.65 | G101: 364.75 | H101: 363.00 | I101: 372.30 | J101: 374.05 | K101: 376.95 | L101: 371.15 | M101: 366.5 | N101: 11835200 | O101: -6.07%
A102: 99 | B102: Automobile | C102: MARUTI | D102: 7571.35 | E102: 7625.12 | F102: 7501.28 | G102: 7431.22 | H102: 7307.38 | I102: 7695.18 | J102: 7819.02 | K102: 7889.08 | L102: 7748.95 | M102: 7555.05 | N102: 2682525 | O102: -1.91%
A103: 100 | B103: FMCG | C103: MCDOWELL-N | D103: 612.70 | E103: 615.23 | F103: 607.47 | G103: 602.23 | H103: 594.47 | I103: 620.47 | J103: 628.23 | K103: 633.47 | L103: 623 | M103: 610 | N103: 10776250 | O103: -4.01%
A104: 102 | B104: Finance | C104: MFSL | D104: 410.95 | E104: 411.98 | F104: 404.57 | G104: 398.18 | H104: 390.77 | I104: 418.37 | J104: 425.78 | K104: 432.17 | L104: 419.4 | M104: 405.6 | N104: 2715600 | O104: 8.23%
A105: 103 | B105: Oil_Gas | C105: MGL | D105: 1005.80 | E105: 1001.78 | F105: 991.47 | G105: 977.13 | H105: 966.82 | I105: 1016.12 | J105: 1026.43 | K105: 1040.77 | L105: 1012.1 | M105: 987.45 | N105: 1300800 | O105: -12.30%
A106: 104 | B106: Technology | C106: MINDTREE | D106: 712.10 | E106: 712.65 | F106: 708.20 | G106: 704.30 | H106: 699.85 | I106: 716.55 | J106: 721.00 | K106: 724.90 | L106: 717.1 | M106: 708.75 | N106: 1712400 | O106: 6.29%
A107: 105 | B107: Automobile | C107: MOTHERSUMI | D107: 121.95 | E107: 121.90 | F107: 119.40 | G107: 116.85 | H107: 114.35 | I107: 124.45 | J107: 126.95 | K107: 129.50 | L107: 124.4 | M107: 119.35 | N107: 29571300 | O107: -3.90%
A108: 106 | B108: Automobile | C108: MRF | D108: 64865.10 | E108: 64839.28 | F108: 64183.77 | G108: 63502.43 | H108: 62846.92 | I108: 65520.62 | J108: 66176.13 | K108: 66857.47 | L108: 65494.8 | M108: 64157.95 | N108: 20820 | O108: 4.99%
A109: 107 | B109: Finance | C109: MUTHOOTFIN | D109: 706.85 | E109: 706.28 | F109: 699.07 | G109: 691.28 | H109: 684.07 | I109: 714.07 | J109: 721.28 | K109: 729.07 | L109: 713.5 | M109: 698.5 | N109: 2611500 | O109: -6.55%
A110: 108 | B110: Metals | C110: NATIONALUM | D110: 43.90 | E110: 43.97 | F110: 43.53 | G110: 43.17 | H110: 42.73 | I110: 44.33 | J110: 44.77 | K110: 45.13 | L110: 44.4 | M110: 43.6 | N110: 58370000 | O110: -5.53%
A111: 109 | B111: Infrastructure | C111: NBCC | D111: 37.90 | E111: 37.23 | F111: 36.42 | G111: 34.93 | H111: 34.12 | I111: 38.72 | J111: 39.53 | K111: 41.02 | L111: 38.05 | M111: 35.75 | N111: 33175500 | O111: -3.77%
A112: 110 | B112: Infrastructure | C112: NCC | D112: 58.20 | E112: 58.42 | F112: 57.08 | G112: 55.97 | H112: 54.63 | I112: 59.53 | J112: 60.87 | K112: 61.98 | L112: 59.75 | M112: 57.3 | N112: 37272000 | O112: -11.09%
A113: 111 | B113: FMCG | C113: NESTLEIND | D113: 14982.15 | E113: 14922.60 | F113: 14836.50 | G113: 14690.85 | H113: 14604.75 | I113: 15068.25 | J113: 15154.35 | K113: 15300.00 | L113: 15008.7 | M113: 14776.95 | N113: 514700 | O113: -2.45%
A114: 112 | B114: Technology | C114: NIITTECH | D114: 1579.05 | E114: 1561.18 | F114: 1534.42 | G114: 1489.78 | H114: 1463.02 | I114: 1605.82 | J114: 1632.58 | K114: 1677.22 | L114: 1587.95 | M114: 1516.55 | N114: 749250 | O114: 0.00%
A115: 113 | B115: Metals | C115: NMDC | D115: 110.80 | E115: 111.52 | F115: 109.53 | G115: 108.27 | H115: 106.28 | I115: 112.78 | J115: 114.77 | K115: 116.03 | L115: 113.5 | M115: 110.25 | N115: 23700000 | O115: 5.28%
A116: 114 | B116: Power | C116: NTPC | D116: 120.80 | E116: 120.30 | F116: 119.10 | G116: 117.40 | H116: 116.20 | I116: 122.00 | J116: 123.20 | K116: 124.90 | L116: 121.5 | M116: 118.6 | N116: 53006400 | O116: -2.28%
A117: 116 | B117: Oil_Gas | C117: OIL | D117: 169.15 | E117: 167.55 | F117: 164.60 | G117: 160.05 | H117: 157.10 | I117: 172.10 | J117: 175.05 | K117: 179.60 | L117: 170.5 | M117: 163 | N117: 9676953 | O117: -6.75%
A118: 117 | B118: Oil_Gas | C118: ONGC | D118: 140.70 | E118: 141.50 | F118: 139.20 | G118: 137.70 | H118: 135.40 | I118: 143.00 | J118: 145.30 | K118: 146.80 | L118: 143.8 | M118: 140 | N118: 56028750 | O118: -5.08%
A119: 118 | B119: Textile | C119: PAGEIND | D119: 24573.10 | E119: 24320.98 | F119: 23941.97 | G119: 23310.83 | H119: 22931.82 | I119: 24952.12 | J119: 25331.13 | K119: 25962.27 | L119: 24700 | M119: 23689.85 | N119: 188925 | O119: -4.81%
A120: 119 | B120: Pharma | C120: PEL | D120: 1699.20 | E120: 1707.42 | F120: 1660.13 | G120: 1621.07 | H120: 1573.78 | I120: 1746.48 | J120: 1793.77 | K120: 1832.83 | L120: 1754.7 | M120: 1668.35 | N120: 5748268 | O120: -11.72%
A121: 120 | B121: Oil_Gas | C121: PETRONET | D121: 285.30 | E121: 287.55 | F121: 278.10 | G121: 270.90 | H121: 261.45 | I121: 294.75 | J121: 304.20 | K121: 311.40 | L121: 297 | M121: 280.35 | N121: 20640000 | O121: -19.16%
A122: 121 | B122: Finance | C122: PFC | D122: 106.80 | E122: 106.90 | F122: 105.30 | G122: 103.80 | H122: 102.20 | I122: 108.40 | J122: 110.00 | K122: 111.50 | L122: 108.5 | M122: 105.4 | N122: 37007800 | O122: -2.99%
A123: 122 | B123: FMCG | C123: PIDILITIND | D123: 1365.00 | E123: 1361.30 | F123: 1350.80 | G123: 1336.60 | H123: 1326.10 | I123: 1375.50 | J123: 1386.00 | K123: 1400.20 | L123: 1371.8 | M123: 1347.1 | N123: 3630000 | O123: -6.00%
A124: 123 | B124: Banking | C124: PNB | D124: 63.80 | E124: 63.30 | F124: 62.35 | G124: 60.90 | H124: 59.95 | I124: 64.75 | J124: 65.70 | K124: 67.15 | L124: 64.25 | M124: 61.85 | N124: 118286000 | O124: 13.75%
A125: 124 | B125: Power | C125: POWERGRID | D125: 200.25 | E125: 200.92 | F125: 198.93 | G125: 197.62 | H125: 195.63 | I125: 202.23 | J125: 204.22 | K125: 205.53 | L125: 202.9 | M125: 199.6 | N125: 30932000 | O125: 4.19%
A126: 125 | B126: Media | C126: PVR | D126: 1799.50 | E126: 1788.63 | F126: 1773.42 | G126: 1747.33 | H126: 1732.12 | I126: 1814.72 | J126: 1829.93 | K126: 1856.02 | L126: 1803.85 | M126: 1762.55 | N126: 1268800 | O126: 5.59%
A127: 126 | B127: Cement | C127: RAMCOCEM | D127: 777.45 | E127: 773.38 | F127: 748.77 | G127: 720.08 | H127: 695.47 | I127: 802.07 | J127: 826.68 | K127: 855.37 | L127: 798 | M127: 744.7 | N127: 1417600 | O127: -21.56%
A128: 128 | B128: Banking | C128: RBLBANK | D128: 288.75 | E128: 284.67 | F128: 277.73 | G128: 266.72 | H128: 259.78 | I128: 295.68 | J128: 302.62 | K128: 313.63 | L128: 291.6 | M128: 273.65 | N128: 15259200 | O128: -3.64%
A129: 129 | B129: Power | C129: RECLTD | D129: 137.10 | E129: 137.43 | F129: 134.57 | G129: 132.03 | H129: 129.17 | I129: 139.97 | J129: 142.83 | K129: 145.37 | L129: 140.3 | M129: 134.9 | N129: 26184000 | O129: -1.07%
A130: 131 | B130: Oil_Gas | C130: RELIANCE | D130: 1477.40 | E130: 1472.68 | F130: 1463.72 | G130: 1450.03 | H130: 1441.07 | I130: 1486.37 | J130: 1495.33 | K130: 1509.02 | L130: 1481.65 | M130: 1459 | N130: 52262000 | O130: -2.91%
A131: 133 | B131: Metals | C131: SAIL | D131: 37.45 | E131: 37.23 | F131: 36.87 | G131: 36.28 | H131: 35.92 | I131: 37.82 | J131: 38.18 | K131: 38.77 | L131: 37.6 | M131: 36.65 | N131: 85068000 | O131: 3.84%
A132: 134 | B132: Banking | C132: SBIN | D132: 289.45 | E132: 286.60 | F132: 282.30 | G132: 275.15 | H132: 270.85 | I132: 293.75 | J132: 298.05 | K132: 305.20 | L132: 290.9 | M132: 279.45 | N132: 99900000 | O132: -8.06%
A133: 135 | B133: Cement | C133: SHREECEM | D133: 20292.40 | E133: 20333.35 | F133: 20127.80 | G133: 19963.20 | H133: 19757.65 | I133: 20497.95 | J133: 20703.50 | K133: 20868.10 | L133: 20538.9 | M133: 20168.75 | N133: 160150 | O133: -2.88%
A134: 136 | B134: Capital_Goods | C134: SIEMENS | D134: 1653.30 | E134: 1655.72 | F134: 1640.73 | G134: 1628.17 | H134: 1613.18 | I134: 1668.28 | J134: 1683.27 | K134: 1695.83 | L134: 1670.7 | M134: 1643.15 | N134: 1596650 | O134: -3.27%
A135: 137 | B135: Textile | C135: SRF | D135: 2781.90 | E135: 2763.87 | F135: 2725.18 | G135: 2668.47 | H135: 2629.78 | I135: 2820.58 | J135: 2859.27 | K135: 2915.98 | L135: 2802.55 | M135: 2707.15 | N135: 1095250 | O135: -2.38%
A136: 138 | B136: Finance | C136: SRTRANSFIN | D136: 1157.95 | E136: 1157.73 | F136: 1128.22 | G136: 1098.48 | H136: 1068.97 | I136: 1187.47 | J136: 1216.98 | K136: 1246.72 | L136: 1187.25 | M136: 1128 | N136: 3983400 | O136: -0.45%
A137: 139 | B137: Pharma | C137: STAR | D137: 391.30 | E137: 387.45 | F137: 378.70 | G137: 366.10 | H137: 357.35 | I137: 400.05 | J137: 408.80 | K137: 421.40 | L137: 396.2 | M137: 374.85 | N137: 822000 | O137: -35.07%
A138: 140 | B138: Pharma | C138: SUNPHARMA | D138: 430.05 | E138: 426.72 | F138: 420.93 | G138: 411.82 | H138: 406.03 | I138: 435.83 | J138: 441.62 | K138: 450.73 | L138: 432.5 | M138: 417.6 | N138: 60220600 | O138: -1.10%
A139: 141 | B139: Media | C139: SUNTV | D139: 520.50 | E139: 524.60 | F139: 514.20 | G139: 507.90 | H139: 497.50 | I139: 530.90 | J139: 541.30 | K139: 547.60 | L139: 535 | M139: 518.3 | N139: 3013000 | O139: -2.62%
A140: 142 | B140: Fertilisers | C140: TATACHEM | D140: 614.70 | E140: 620.00 | F140: 603.05 | G140: 591.40 | H140: 574.45 | I140: 631.65 | J140: 648.60 | K140: 660.25 | L140: 636.95 | M140: 608.35 | N140: 2406600 | O140: 11.32%
A141: 143 | B141: Technology | C141: TATAELXSI | D141: 821.25 | E141: 815.60 | F141: 806.50 | G141: 791.75 | H141: 782.65 | I141: 830.35 | J141: 839.45 | K141: 854.20 | L141: 824.7 | M141: 800.85 | N141: 1393800 | O141: -7.78%
A142: 144 | B142: FMCG | C142: TATAGLOBAL | D142: 291.55 | E142: 290.38 | F142: 286.07 | G142: 280.58 | H142: 276.27 | I142: 295.87 | J142: 300.18 | K142: 305.67 | L142: 294.7 | M142: 284.9 | N142: 10041300 | O142: -6.72%
A143: 145 | B143: Automobile | C143: TATAMOTORS | D143: 172.10 | E143: 171.52 | F143: 167.28 | G143: 162.47 | H143: 158.23 | I143: 176.33 | J143: 180.57 | K143: 185.38 | L143: 175.75 | M143: 166.7 | N143: 62721000 | O143: -5.51%
A144: 146 | B144: Automobile | C144: TATAMTRDVR | D144: 80.15 | E144: 79.40 | F144: 77.60 | G144: 75.05 | H144: 73.25 | I144: 81.95 | J144: 83.75 | K144: 86.30 | L144: 81.2 | M144: 76.85 | N144: 38682000 | O144: -7.77%
A145: 147 | B145: Power | C145: TATAPOWER | D145: 58.65 | E145: 58.68 | F145: 58.27 | G145: 57.88 | H145: 57.47 | I145: 59.07 | J145: 59.48 | K145: 59.87 | L145: 59.1 | M145: 58.3 | N145: 61479000 | O145: 3.41%
A146: 148 | B146: Metals | C146: TATASTEEL | D146: 386.75 | E146: 387.90 | F146: 382.60 | G146: 378.45 | H146: 373.15 | I146: 392.05 | J146: 397.35 | K146: 401.50 | L146: 393.2 | M146: 383.75 | N146: 26384948 | O146: -2.06%
A147: 149 | B147: Technology | C147: TCS | D147: 2247.10 | E147: 2226.00 | F147: 2196.10 | G147: 2145.10 | H147: 2115.20 | I147: 2277.00 | J147: 2306.90 | K147: 2357.90 | L147: 2255.9 | M147: 2175 | N147: 18110250 | O147: -2.02%
A148: 150 | B148: Technology | C148: TECHM | D148: 756.40 | E148: 756.25 | F148: 746.55 | G148: 736.70 | H148: 727.00 | I148: 766.10 | J148: 775.80 | K148: 785.65 | L148: 765.95 | M148: 746.4 | N148: 17344800 | O148: -0.76%
A149: 151 | B149: FMCG | C149: TITAN | D149: 1316.75 | E149: 1324.25 | F149: 1303.75 | G149: 1290.75 | H149: 1270.25 | I149: 1337.25 | J149: 1357.75 | K149: 1370.75 | L149: 1344.75 | M149: 1311.25 | N149: 10025250 | O149: -0.81%
A150: 152 | B150: Pharma | C150: TORNTPHARM | D150: 1766.35 | E150: 1777.87 | F150: 1743.78 | G150: 1721.22 | H150: 1687.13 | I150: 1800.43 | J150: 1834.52 | K150: 1857.08 | L150: 1811.95 | M150: 1755.3 | N150: 508500 | O150: -1.36%
A151: 153 | B151: Power | C151: TORNTPOWER | D151: 279.85 | E151: 281.90 | F151: 276.80 | G151: 273.75 | H151: 268.65 | I151: 284.95 | J151: 290.05 | K151: 293.10 | L151: 287 | M151: 278.85 | N151: 4098000 | O151: -2.29%
A152: 154 | B152: Automobile | C152: TVSMOTOR | D152: 495.10 | E152: 489.70 | F152: 478.60 | G152: 462.10 | H152: 451.00 | I152: 506.20 | J152: 517.30 | K152: 533.80 | L152: 500.8 | M152: 473.2 | N152: 8461200 | O152: -11.06%
A153: 155 | B153: FMCG | C153: UBL | D153: 1266.70 | E153: 1267.77 | F153: 1248.93 | G153: 1231.17 | H153: 1212.33 | I153: 1285.53 | J153: 1304.37 | K153: 1322.13 | L153: 1286.6 | M153: 1250 | N153: 2004100 | O153: 19.24%
A154: 156 | B154: Finance | C154: UJJIVAN | D154: 279.60 | E154: 279.68 | F154: 275.97 | G154: 272.33 | H154: 268.62 | I154: 283.32 | J154: 287.03 | K154: 290.67 | L154: 283.4 | M154: 276.05 | N154: 9603200 | O154: -1.20%
A155: 157 | B155: Cement | C155: ULTRACEMCO | D155: 4128.00 | E155: 4146.75 | F155: 4084.50 | G155: 4041.00 | H155: 3978.75 | I155: 4190.25 | J155: 4252.50 | K155: 4296.00 | L155: 4209 | M155: 4103.25 | N155: 2624000 | O155: 1.80%
A156: 158 | B156: Banking | C156: UNIONBANK | D156: 57.00 | E156: 56.18 | F156: 54.62 | G156: 52.23 | H156: 50.67 | I156: 58.57 | J156: 60.13 | K156: 62.52 | L156: 57.75 | M156: 53.8 | N156: 36288000 | O156: 3.58%
A157: 159 | B157: Fertilisers | C157: UPL | D157: 585.10 | E157: 587.97 | F157: 578.03 | G157: 570.97 | H157: 561.03 | I157: 595.03 | J157: 604.97 | K157: 612.03 | L157: 597.9 | M157: 580.9 | N157: 13881600 | O157: -0.68%
A158: 160 | B158: Metals | C158: VEDL | D158: 150.25 | E158: 150.45 | F158: 149.15 | G158: 148.05 | H158: 146.75 | I158: 151.55 | J158: 152.85 | K158: 153.95 | L158: 151.75 | M158: 149.35 | N158: 61509000 | O158: -4.48%
A159: 161 | B159: Capital_Goods | C159: VOLTAS | D159: 714.40 | E159: 714.53 | F159: 705.72 | G159: 697.03 | H159: 688.22 | I159: 723.22 | J159: 732.03 | K159: 740.72 | L159: 723.35 | M159: 705.85 | N159: 2021000 | O159: -18.54%
A160: 162 | B160: Technology | C160: WIPRO | D160: 255.15 | E160: 256.53 | F160: 252.37 | G160: 249.58 | H160: 245.42 | I160: 259.32 | J160: 263.48 | K160: 266.27 | L160: 260.7 | M160: 253.75 | N160: 27606400 | O160: -3.41%
A161: 163 | B161: Banking | C161: YESBANK | D161: 56.65 | E161: 57.33 | F161: 55.17 | G161: 53.68 | H161: 51.52 | I161: 58.82 | J161: 60.98 | K161: 62.47 | L161: 59.5 | M161: 55.85 | N161: 158809200 | O161: -8.88%
A162: 164 | B162: Media | C162: ZEEL | D162: 235.60 | E162: 238.85 | F162: 231.20 | G162: 226.80 | H162: 219.15 | I162: 243.25 | J162: 250.90 | K162: 255.30 | L162: 246.5 | M162: 234.45 | N162: 27995500 | O162: -1.50%
A178: Pivot Point: This is trigger point for intra day buy/sell based on the price range of the previous day
A179: As per the tool,the trader should take BUY position just above Pivot and keep the stop loss of pivot point and the first target would be Resistance 1(R1)
A180: If R1 is crossed then R2 becomes the next target with stop loss of at R1
A181: Similarly if price goes below pivot point then the trader should sell and keep a stop loss of pivot point and the first target would be S1
A182: If S1 is crossed then S2 becomes the next target with stop loss of at S1
A184: Disclaimer:
A185: This document has been prepared by the Retail Research Desk of Asit C Mehta
A186: Investment Intermediates Ltd. and is meant for use of the recipient only
A187: and is not for circulation. This document is not to be reported or
A188: copied or made available to others. It should not be considered to be
A189: taken as an offer to sell or a solicitation to buy any security. The
A190: information contained herein is from sources believed reliable. We do
A191: not represent that it is accurate or complete and it should not be
A192: relied upon as such. We may from time to time have positions in and buy
A193: and sell securities referred to herein

Sheet Cash Intra
M5: Back to Main Page
A6: FOR INTRA DAY TRADING | K6: =Main!B10 -> 2019-10-31
A8: Sr.no | B8: Scrip | C8: CLOSE RATE | D8: Pivot Point | E8: Supports | H8: Resistances
C9: Point | E9: S1 | F9: S2 | G9: S3 | H9: R1 | I9: R2 | J9: R3 | K9: HIGH | L9: LOW | M9: Total Trade Quanity in Lakhs
A10: 1 | B10: Nifty 50 | C10: 11844.1 | D10: 11837.50 | E10: 11791.05 | F10: 11738.00 | G10: 11691.55 | H10: 11890.55 | I10: 11937.00 | J10: 11990.05 | K10: 11883.95 | L10: 11784.45
A11: 2 | B11: Nifty Bank | C11: 29987.5 | D11: 29963.87 | E11: 29776.63 | F11: 29565.77 | G11: 29378.53 | H11: 30174.73 | I11: 30361.97 | J11: 30572.83 | K11: 30151.1 | L11: 29753
A12: 3 | B12: Nifty CPSE | C12: 2047.95 | D12: 2050.58 | E12: 2038.37 | F12: 2028.78 | G12: 2016.57 | H12: 2060.17 | I12: 2072.38 | J12: 2081.97 | K12: 2062.8 | L12: 2041
A13: 4 | B13: Nifty Infra | C13: 3313.4 | D13: 3309.55 | E13: 3300.65 | F13: 3287.90 | G13: 3279.00 | H13: 3322.30 | I13: 3331.20 | J13: 3343.95 | K13: 3318.45 | L13: 3296.8
A14: 5 | B14: Nifty IT | C14: 15395.65 | D14: 15342.68 | E14: 15265.72 | F14: 15135.78 | G14: 15058.82 | H14: 15472.62 | I14: 15549.58 | J14: 15679.52 | K14: 15419.65 | L14: 15212.75
A15: 6 | B15: Nifty PSE | C15: 3432.05 | D15: 3427.73 | E15: 3413.12 | F15: 3394.18 | G15: 3379.57 | H15: 3446.67 | I15: 3461.28 | J15: 3480.22 | K15: 3442.35 | L15: 3408.8
A16: 7 | B16: Nifty Midcap 50 | C16: 4578.85 | D16: 4570.77 | E16: 4552.03 | F16: 4525.22 | G16: 4506.48 | H16: 4597.58 | I16: 4616.32 | J16: 4643.13 | K16: 4589.5 | L16: 4543.95
A17: 8 | B17: ACC | C17: 1532.25 | D17: 1541.82 | E17: 1511.63 | F17: 1491.02 | G17: 1460.83 | H17: 1562.43 | I17: 1592.62 | J17: 1613.23 | K17: 1572 | L17: 1521.2 | M17: 9.20215
A18: 9 | B18: AUBANK | C18: 689.8 | D18: 696.02 | E18: 679.03 | F18: 668.27 | G18: 651.28 | H18: 706.78 | I18: 723.77 | J18: 734.53 | K18: 713 | L18: 685.25 | M18: 3.70908
A19: 10 | B19: ADANIPORTS | C19: 398.1 | D19: 399.53 | E19: 394.07 | F19: 390.03 | G19: 384.57 | H19: 403.57 | I19: 409.03 | J19: 413.07 | K19: 405 | L19: 395.5 | M19: 55.90453
A20: 11 | B20: ADANIPOWER | C20: 66.05 | D20: 66.07 | E20: 65.48 | F20: 64.92 | G20: 64.33 | H20: 66.63 | I20: 67.22 | J20: 67.78 | K20: 66.65 | L20: 65.5 | M20: 44.33796
A21: 12 | B21: ABCAPITAL | C21: 79.9 | D21: 80.33 | E21: 79.07 | F21: 78.23 | G21: 76.97 | H21: 81.17 | I21: 82.43 | J21: 83.27 | K21: 81.6 | L21: 79.5 | M21: 26.96635
A22: 13 | B22: ABFRL | C22: 211.65 | D22: 210.67 | E22: 206.98 | F22: 202.32 | G22: 198.63 | H22: 215.33 | I22: 219.02 | J22: 223.68 | K22: 214.35 | L22: 206 | M22: 4.136
A23: 14 | B23: AJANTPHARM | C23: 1025.35 | D23: 1022.12 | E23: 1014.23 | F23: 1003.12 | G23: 995.23 | H23: 1033.23 | I23: 1041.12 | J23: 1052.23 | K23: 1030 | L23: 1011 | M23: 0.29285
A24: 15 | B24: ALKEM | C24: 1977 | D24: 1973.28 | E24: 1966.57 | F24: 1956.13 | G24: 1949.42 | H24: 1983.72 | I24: 1990.43 | J24: 2000.87 | K24: 1980 | L24: 1962.85 | M24: 0.09228
A25: 16 | B25: ALBK | C25: 27.05 | D25: 26.83 | E25: 26.07 | F25: 25.08 | G25: 24.32 | H25: 27.82 | I25: 28.58 | J25: 29.57 | K25: 27.6 | L25: 25.85 | M25: 15.82108
A26: 17 | B26: AMARAJABAT | C26: 675.85 | D26: 673.78 | E26: 666.57 | F26: 657.28 | G26: 650.07 | H26: 683.07 | I26: 690.28 | J26: 699.57 | K26: 681 | L26: 664.5 | M26: 4.09195
A27: 18 | B27: AMBUJACEM | C27: 200.6 | D27: 201.32 | E27: 198.93 | F27: 197.27 | G27: 194.88 | H27: 202.98 | I27: 205.37 | J27: 207.03 | K27: 203.7 | L27: 199.65 | M27: 24.71767
A28: 19 | B28: APOLLOHOSP | C28: 1461.95 | D28: 1463.73 | E28: 1438.22 | F28: 1414.48 | G28: 1388.97 | H28: 1487.47 | I28: 1512.98 | J28: 1536.72 | K28: 1489.25 | L28: 1440 | M28: 7.51366
A29: 20 | B29: APOLLOTYRE | C29: 187.8 | D29: 186.92 | E29: 185.33 | F29: 182.87 | G29: 181.28 | H29: 189.38 | I29: 190.97 | J29: 193.43 | K29: 188.5 | L29: 184.45 | M29: 14.10885
A30: 21 | B30: ASHOKLEY | C30: 78.2 | D30: 78.70 | E30: 77.05 | F30: 75.90 | G30: 74.25 | H30: 79.85 | I30: 81.50 | J30: 82.65 | K30: 80.35 | L30: 77.55 | M30: 272.08583
A31: 22 | B31: ASIANPAINT | C31: 1821.3 | D31: 1818.43 | E31: 1806.87 | F31: 1792.43 | G31: 1780.87 | H31: 1832.87 | I31: 1844.43 | J31: 1858.87 | K31: 1830 | L31: 1804 | M31: 11.33258
A32: 23 | B32: AUROPHARMA | C32: 463 | D32: 466.90 | E32: 455.25 | F32: 447.50 | G32: 435.85 | H32: 474.65 | I32: 486.30 | J32: 494.05 | K32: 478.55 | L32: 459.15 | M32: 23.81573
A33: 24 | B33: DMART | C33: 1975.7 | D33: 1966.90 | E33: 1949.80 | F33: 1923.90 | G33: 1906.80 | H33: 1992.80 | I33: 2009.90 | J33: 2035.80 | K33: 1984 | L33: 1941 | M33: 5.20758
A34: 25 | B34: AXISBANK | C34: 747.4 | D34: 744.27 | E34: 738.63 | F34: 729.87 | G34: 724.23 | H34: 753.03 | I34: 758.67 | J34: 767.43 | K34: 749.9 | L34: 735.5 | M34: 101.88947
A35: 26 | B35: BAJAJ-AUTO | C35: 3222.9 | D35: 3208.47 | E35: 3187.53 | F35: 3152.17 | G35: 3131.23 | H35: 3243.83 | I35: 3264.77 | J35: 3300.13 | K35: 3229.4 | L35: 3173.1 | M35: 5.72787
A36: 27 | B36: BAJFINANCE | C36: 3992 | D36: 4017.32 | E36: 3959.68 | F36: 3927.37 | G36: 3869.73 | H36: 4049.63 | I36: 4107.27 | J36: 4139.58 | K36: 4074.95 | L36: 3985 | M36: 13.38554
A37: 28 | B37: BAJAJFINSV | C37: 8082.4 | D37: 8114.23 | E37: 8029.42 | F37: 7976.43 | G37: 7891.62 | H37: 8167.22 | I37: 8252.03 | J37: 8305.02 | K37: 8199.05 | L37: 8061.25 | M37: 2.26406
A38: 29 | B38: BAJAJHLDNG | C38: 3682.85 | D38: 3691.17 | E38: 3667.33 | F38: 3651.82 | G38: 3627.98 | H38: 3706.68 | I38: 3730.52 | J38: 3746.03 | K38: 3715 | L38: 3675.65 | M38: 0.1049
A39: 30 | B39: BALKRISIND | C39: 867.3 | D39: 869.45 | E39: 853.90 | F39: 840.50 | G39: 824.95 | H39: 882.85 | I39: 898.40 | J39: 911.80 | K39: 885 | L39: 856.05 | M39: 4.87654
A40: 31 | B40: BANDHANBNK | C40: 614.25 | D40: 610.67 | E40: 597.58 | F40: 580.92 | G40: 567.83 | H40: 627.33 | I40: 640.42 | J40: 657.08 | K40: 623.75 | L40: 594 | M40: 57.63829
A41: 32 | B41: BANKBARODA | C41: 95.55 | D41: 95.15 | E41: 93.20 | F41: 90.85 | G41: 88.90 | H41: 97.50 | I41: 99.45 | J41: 101.80 | K41: 97.1 | L41: 92.8 | M41: 315.68294
A42: 33 | B42: BANKINDIA | C42: 71.05 | D42: 69.78 | E42: 68.17 | F42: 65.28 | G42: 63.67 | H42: 72.67 | I42: 74.28 | J42: 77.17 | K42: 71.4 | L42: 66.9 | M42: 116.5011
A43: 34 | B43: BATAINDIA | C43: 1780.2 | D43: 1777.75 | E43: 1766.50 | F43: 1752.80 | G43: 1741.55 | H43: 1791.45 | I43: 1802.70 | J43: 1816.40 | K43: 1789 | L43: 1764.05 | M43: 3.53785
A44: 35 | B44: BERGEPAINT | C44: 498 | D44: 498.82 | E44: 494.73 | F44: 491.47 | G44: 487.38 | H44: 502.08 | I44: 506.17 | J44: 509.43 | K44: 502.9 | L44: 495.55 | M44: 13.88372
A45: 36 | B45: BEL | C45: 119.35 | D45: 119.72 | E45: 117.33 | F45: 115.32 | G45: 112.93 | H45: 121.73 | I45: 124.12 | J45: 126.13 | K45: 122.1 | L45: 117.7 | M45: 93.64442
A46: 37 | B46: BHARATFORG | C46: 456 | D46: 458.80 | E46: 450.05 | F46: 444.10 | G46: 435.35 | H46: 464.75 | I46: 473.50 | J46: 479.45 | K46: 467.55 | L46: 452.85 | M46: 13.74801
A47: 38 | B47: BHEL | C47: 58.9 | D47: 59.37 | E47: 57.63 | F47: 56.37 | G47: 54.63 | H47: 60.63 | I47: 62.37 | J47: 63.63 | K47: 61.1 | L47: 58.1 | M47: 794.79137
A48: 39 | B48: BPCL | C48: 525.1 | D48: 526.05 | E48: 517.50 | F48: 509.90 | G48: 501.35 | H48: 533.65 | I48: 542.20 | J48: 549.80 | K48: 534.6 | L48: 518.45 | M48: 75.23025
A49: 40 | B49: BHARTIARTL | C49: 367.95 | D49: 366.65 | E49: 361.95 | F49: 355.95 | G49: 351.25 | H49: 372.65 | I49: 377.35 | J49: 383.35 | K49: 371.35 | L49: 360.65 | M49: 168.69202
A50: 41 | B50: INFRATEL | C50: 183.2 | D50: 186.47 | E50: 173.08 | F50: 162.97 | G50: 149.58 | H50: 196.58 | I50: 209.97 | J50: 220.08 | K50: 199.85 | L50: 176.35 | M50: 351.36167
A51: 42 | B51: BIOCON | C51: 248.25 | D51: 247.28 | E51: 244.97 | F51: 241.68 | G51: 239.37 | H51: 250.57 | I51: 252.88 | J51: 256.17 | K51: 249.6 | L51: 244 | M51: 32.32514
A52: 43 | B52: BBTC | C52: 1201.45 | D52: 1209.65 | E52: 1185.05 | F52: 1168.65 | G52: 1144.05 | H52: 1226.05 | I52: 1250.65 | J52: 1267.05 | K52: 1234.25 | L52: 1193.25 | M52: 1.23781
A53: 44 | B53: BOSCHLTD | C53: 15586 | D53: 15605.97 | E53: 15369.23 | F53: 15152.47 | G53: 14915.73 | H53: 15822.73 | I53: 16059.47 | J53: 16276.23 | K53: 15842.7 | L53: 15389.2 | M53: 0.16512
A54: 45 | B54: BRITANNIA | C54: 3290.1 | D54: 3321.70 | E54: 3244.40 | F54: 3198.70 | G54: 3121.40 | H54: 3367.40 | I54: 3444.70 | J54: 3490.40 | K54: 3399 | L54: 3276 | M54: 4.96662
A55: 46 | B55: CESC | C55: 809.8 | D55: 811.68 | E55: 803.62 | F55: 797.43 | G55: 789.37 | H55: 817.87 | I55: 825.93 | J55: 832.12 | K55: 819.75 | L55: 805.5 | M55: 1.71937
A56: 47 | B56: CADILAHC | C56: 250.05 | D56: 249.52 | E56: 247.13 | F56: 244.22 | G56: 241.83 | H56: 252.43 | I56: 254.82 | J56: 257.73 | K56: 251.9 | L56: 246.6 | M56: 5.91101
A57: 48 | B57: CANBK | C57: 200.05 | D57: 198.77 | E57: 195.43 | F57: 190.82 | G57: 187.48 | H57: 203.38 | I57: 206.72 | J57: 211.33 | K57: 202.1 | L57: 194.15 | M57: 76.26092
A58: 49 | B58: CASTROLIND | C58: 153.3 | D58: 154.43 | E58: 149.47 | F58: 145.63 | G58: 140.67 | H58: 158.27 | I58: 163.23 | J58: 167.07 | K58: 159.4 | L58: 150.6 | M58: 45.23284
A59: 50 | B59: CHOLAFIN | C59: 307.1 | D59: 304.03 | E59: 299.07 | F59: 291.03 | G59: 286.07 | H59: 312.07 | I59: 317.03 | J59: 325.07 | K59: 309 | L59: 296 | M59: 16.12084
A60: 51 | B60: CIPLA | C60: 465 | D60: 468.73 | E60: 458.52 | F60: 452.03 | G60: 441.82 | H60: 475.22 | I60: 485.43 | J60: 491.92 | K60: 478.95 | L60: 462.25 | M60: 26.40132
A61: 52 | B61: CUB | C61: 208.35 | D61: 209.45 | E61: 206.90 | F61: 205.45 | G61: 202.90 | H61: 210.90 | I61: 213.45 | J61: 214.90 | K61: 212 | L61: 208 | M61: 2.69978
A62: 53 | B62: COALINDIA | C62: 206.25 | D62: 207.60 | E62: 204.25 | F62: 202.25 | G62: 198.90 | H62: 209.60 | I62: 212.95 | J62: 214.95 | K62: 210.95 | L62: 205.6 | M62: 44.87164
A63: 54 | B63: COLPAL | C63: 1535.25 | D63: 1528.23 | E63: 1517.07 | F63: 1498.88 | G63: 1487.72 | H63: 1546.42 | I63: 1557.58 | J63: 1575.77 | K63: 1539.4 | L63: 1510.05 | M63: 4.40097
A64: 55 | B64: CONCOR | C64: 592.85 | D64: 596.37 | E64: 584.93 | F64: 577.02 | G64: 565.58 | H64: 604.28 | I64: 615.72 | J64: 623.63 | K64: 607.8 | L64: 588.45 | M64: 17.51576
A65: 56 | B65: COROMANDEL | C65: 470.55 | D65: 469.52 | E65: 466.03 | F65: 461.52 | G65: 458.03 | H65: 474.03 | I65: 477.52 | J65: 482.03 | K65: 473 | L65: 465 | M65: 1.49693
A66: 57 | B66: CROMPTON | C66: 249.45 | D66: 250.83 | E66: 246.92 | F66: 244.38 | G66: 240.47 | H66: 253.37 | I66: 257.28 | J66: 259.82 | K66: 254.75 | L66: 248.3 | M66: 4.14063
A67: 58 | B67: CUMMINSIND | C67: 554.15 | D67: 551.08 | E67: 544.42 | F67: 534.68 | G67: 528.02 | H67: 560.82 | I67: 567.48 | J67: 577.22 | K67: 557.75 | L67: 541.35 | M67: 9.44203
A68: 59 | B68: DLF | C68: 181.55 | D68: 181.27 | E68: 179.53 | F68: 177.52 | G68: 175.78 | H68: 183.28 | I68: 185.02 | J68: 187.03 | K68: 183 | L68: 179.25 | M68: 65.63814
A69: 60 | B69: DABUR | C69: 460.35 | D69: 461.70 | E69: 455.60 | F69: 450.85 | G69: 444.75 | H69: 466.45 | I69: 472.55 | J69: 477.30 | K69: 467.8 | L69: 456.95 | M69: 17.96647
A70: 61 | B70: DALBHARAT | C70: 814.35 | D70: 814.95 | E70: 807.90 | F70: 801.45 | G70: 794.40 | H70: 821.40 | I70: 828.45 | J70: 834.90 | K70: 822 | L70: 808.5 | M70: 0.39173
A71: 62 | B71: DIVISLAB | C71: 1736.6 | D71: 1742.18 | E71: 1723.42 | F71: 1710.23 | G71: 1691.47 | H71: 1755.37 | I71: 1774.13 | J71: 1787.32 | K71: 1760.95 | L71: 1729 | M71: 3.35535
A72: 63 | B72: DRREDDY | C72: 2759.9 | D72: 2776.82 | E72: 2724.63 | F72: 2689.37 | G72: 2637.18 | H72: 2812.08 | I72: 2864.27 | J72: 2899.53 | K72: 2829 | L72: 2741.55 | M72: 5.93147
A73: 64 | B73: EDELWEISS | C73: 92.65 | D73: 92.53 | E73: 91.12 | F73: 89.58 | G73: 88.17 | H73: 94.07 | I73: 95.48 | J73: 97.02 | K73: 93.95 | L73: 91 | M73: 22.79462
A74: 65 | B74: EICHERMOT | C74: 22511.5 | D74: 22236.83 | E74: 21874.67 | F74: 21237.83 | G74: 20875.67 | H74: 22873.67 | I74: 23235.83 | J74: 23872.67 | K74: 22599 | L74: 21600 | M74: 2.02269
A75: 66 | B75: EMAMILTD | C75: 325.85 | D75: 328.22 | E75: 321.53 | F75: 317.22 | G75: 310.53 | H75: 332.53 | I75: 339.22 | J75: 343.53 | K75: 334.9 | L75: 323.9 | M75: 1.89502
A76: 67 | B76: ENDURANCE | C76: 1056.6 | D76: 1055.48 | E76: 1041.12 | F76: 1025.63 | G76: 1011.27 | H76: 1070.97 | I76: 1085.33 | J76: 1100.82 | K76: 1069.85 | L76: 1040 | M76: 0.06428
A77: 68 | B77: ENGINERSIN | C77: 117.6 | D77: 116.33 | E77: 113.27 | F77: 108.93 | G77: 105.87 | H77: 120.67 | I77: 123.73 | J77: 128.07 | K77: 119.4 | L77: 112 | M77: 36.65371
A78: 69 | B78: ESCORTS | C78: 666.05 | D78: 665.33 | E78: 658.02 | F78: 649.98 | G78: 642.67 | H78: 673.37 | I78: 680.68 | J78: 688.72 | K78: 672.65 | L78: 657.3 | M78: 20.0119
A79: 70 | B79: EXIDEIND | C79: 181.5 | D79: 182.13 | E79: 179.87 | F79: 178.23 | G79: 175.97 | H79: 183.77 | I79: 186.03 | J79: 187.67 | K79: 184.4 | L79: 180.5 | M79: 25.43054
A80: 71 | B80: FEDERALBNK | C80: 82.05 | D80: 82.22 | E80: 81.58 | F80: 81.12 | G80: 80.48 | H80: 82.68 | I80: 83.32 | J80: 83.78 | K80: 82.85 | L80: 81.75 | M80: 91.0983
A81: 72 | B81: FCONSUMER | C81: 24.5 | D81: 24.62 | E81: 24.08 | F81: 23.67 | G81: 23.13 | H81: 25.03 | I81: 25.57 | J81: 25.98 | K81: 25.15 | L81: 24.2 | M81: 10.11742
A82: 73 | B82: FRETAIL | C82: 384.65 | D82: 385.23 | E82: 380.72 | F82: 376.78 | G82: 372.27 | H82: 389.17 | I82: 393.68 | J82: 397.62 | K82: 389.75 | L82: 381.3 | M82: 1.1631
A83: 74 | B83: GAIL | C83: 133.6 | D83: 131.07 | E83: 128.13 | F83: 122.67 | G83: 119.73 | H83: 136.53 | I83: 139.47 | J83: 144.93 | K83: 134 | L83: 125.6 | M83: 159.23937
A84: 75 | B84: GMRINFRA | C84: 20.65 | D84: 20.62 | E84: 20.28 | F84: 19.92 | G84: 19.58 | H84: 20.98 | I84: 21.32 | J84: 21.68 | K84: 20.95 | L84: 20.25 | M84: 135.02437
A85: 76 | B85: GICRE | C85: 317.65 | D85: 313.82 | E85: 297.83 | F85: 278.02 | G85: 262.03 | H85: 333.63 | I85: 349.62 | J85: 369.43 | K85: 329.8 | L85: 294 | M85: 24.47364
A86: 77 | B86: GLENMARK | C86: 309.7 | D86: 311.08 | E86: 305.52 | F86: 301.33 | G86: 295.77 | H86: 315.27 | I86: 320.83 | J86: 325.02 | K86: 316.65 | L86: 306.9 | M86: 14.24761
A87: 78 | B87: GODREJAGRO | C87: 516.65 | D87: 516.22 | E87: 507.43 | F87: 498.22 | G87: 489.43 | H87: 525.43 | I87: 534.22 | J87: 543.43 | K87: 525 | L87: 507 | M87: 0.40244
A88: 79 | B88: GODREJCP | C88: 732.95 | D88: 730.58 | E88: 721.17 | F88: 709.38 | G88: 699.97 | H88: 742.37 | I88: 751.78 | J88: 763.57 | K88: 740 | L88: 718.8 | M88: 6.7141
A89: 80 | B89: GODREJIND | C89: 414.1 | D89: 412.30 | E89: 409.60 | F89: 405.10 | G89: 402.40 | H89: 416.80 | I89: 419.50 | J89: 424.00 | K89: 415 | L89: 407.8 | M89: 0.934
A90: 81 | B90: GODREJPROP | C90: 993.55 | D90: 998.25 | E90: 984.30 | F90: 975.05 | G90: 961.10 | H90: 1007.50 | I90: 1021.45 | J90: 1030.70 | K90: 1012.2 | L90: 989 | M90: 1.81808
A91: 82 | B91: GRAPHITE | C91: 282.7 | D91: 286.83 | E91: 274.37 | F91: 266.03 | G91: 253.57 | H91: 295.17 | I91: 307.63 | J91: 315.97 | K91: 299.3 | L91: 278.5 | M91: 33.52904
A92: 83 | B92: GRASIM | C92: 734.95 | D92: 730.32 | E92: 719.33 | F92: 703.72 | G92: 692.73 | H92: 745.93 | I92: 756.92 | J92: 772.53 | K92: 741.3 | L92: 714.7 | M92: 22.60375
A93: 84 | B93: GSPL | C93: 202.25 | D93: 203.92 | E93: 199.43 | F93: 196.62 | G93: 192.13 | H93: 206.73 | I93: 211.22 | J93: 214.03 | K93: 208.4 | L93: 201.1 | M93: 7.3741
A94: 85 | B94: HEG | C94: 1004.3 | D94: 1010.60 | E94: 982.70 | F94: 961.10 | G94: 933.20 | H94: 1032.20 | I94: 1060.10 | J94: 1081.70 | K94: 1038.5 | L94: 989 | M94: 4.38317
A95: 86 | B95: HCLTECH | C95: 1146.75 | D95: 1144.98 | E95: 1139.97 | F95: 1133.18 | G95: 1128.17 | H95: 1151.77 | I95: 1156.78 | J95: 1163.57 | K95: 1150 | L95: 1138.2 | M95: 12.20876
A96: 87 | B96: HDFCAMC | C96: 2985.85 | D96: 3003.63 | E96: 2957.32 | F96: 2928.78 | G96: 2882.47 | H96: 3032.17 | I96: 3078.48 | J96: 3107.02 | K96: 3049.95 | L96: 2975.1 | M96: 3.2971
A97: 88 | B97: HDFCBANK | C97: 1248.35 | D97: 1251.35 | E97: 1240.00 | F97: 1231.65 | G97: 1220.30 | H97: 1259.70 | I97: 1271.05 | J97: 1279.40 | K97: 1262.7 | L97: 1243 | M97: 60.05683
A98: 89 | B98: HDFCLIFE | C98: 632.45 | D98: 619.07 | E98: 594.48 | F98: 556.52 | G98: 531.93 | H98: 657.03 | I98: 681.62 | J98: 719.58 | K98: 643.65 | L98: 581.1 | M98: 271.56751
A99: 90 | B99: HAVELLS | C99: 689.65 | D99: 685.73 | E99: 673.97 | F99: 658.28 | G99: 646.52 | H99: 701.42 | I99: 713.18 | J99: 728.87 | K99: 697.5 | L99: 670.05 | M99: 24.32177
A100: 91 | B100: HEROMOTOCO | C100: 2684.5 | D100: 2692.83 | E100: 2668.67 | F100: 2652.83 | G100: 2628.67 | H100: 2708.67 | I100: 2732.83 | J100: 2748.67 | K100: 2717 | L100: 2677 | M100: 7.39316
A101: 92 | B101: HEXAWARE | C101: 329.45 | D101: 329.67 | E101: 322.98 | F101: 316.52 | G101: 309.83 | H101: 336.13 | I101: 342.82 | J101: 349.28 | K101: 336.35 | L101: 323.2 | M101: 11.85776
A102: 93 | B102: HINDALCO | C102: 187.2 | D102: 187.02 | E102: 184.58 | F102: 181.97 | G102: 179.53 | H102: 189.63 | I102: 192.07 | J102: 194.68 | K102: 189.45 | L102: 184.4 | M102: 59.78614
A103: 94 | B103: HINDPETRO | C103: 318.4 | D103: 317.47 | E103: 311.93 | F103: 305.47 | G103: 299.93 | H103: 323.93 | I103: 329.47 | J103: 335.93 | K103: 323 | L103: 311 | M103: 71.71629
A104: 95 | B104: HINDUNILVR | C104: 2169.4 | D104: 2163.80 | E104: 2147.60 | F104: 2125.80 | G104: 2109.60 | H104: 2185.60 | I104: 2201.80 | J104: 2223.60 | K104: 2180 | L104: 2142 | M104: 11.95298
A105: 96 | B105: HINDZINC | C105: 212.5 | D105: 213.33 | E105: 210.67 | F105: 208.83 | G105: 206.17 | H105: 215.17 | I105: 217.83 | J105: 219.67 | K105: 216 | L105: 211.5 | M105: 10.77318
A106: 97 | B106: HUDCO | C106: 38.1 | D106: 37.90 | E106: 36.20 | F106: 34.30 | G106: 32.60 | H106: 39.80 | I106: 41.50 | J106: 43.40 | K106: 39.6 | L106: 36 | M106: 29.0807
A107: 98 | B107: HDFC | C107: 2107.45 | D107: 2115.00 | E107: 2095.05 | F107: 2082.65 | G107: 2062.70 | H107: 2127.40 | I107: 2147.35 | J107: 2159.75 | K107: 2134.95 | L107: 2102.6 | M107: 23.47585
A108: 99 | B108: ICICIBANK | C108: 471.15 | D108: 473.38 | E108: 467.77 | F108: 464.38 | G108: 458.77 | H108: 476.77 | I108: 482.38 | J108: 485.77 | K108: 479 | L108: 470 | M108: 223.96012
A109: 100 | B109: ICICIGI | C109: 1367 | D109: 1373.67 | E109: 1348.33 | F109: 1329.67 | G109: 1304.33 | H109: 1392.33 | I109: 1417.67 | J109: 1436.33 | K109: 1399 | L109: 1355 | M109: 6.85256
A110: 101 | B110: ICICIPRULI | C110: 512.9 | D110: 508.52 | E110: 502.58 | F110: 492.27 | G110: 486.33 | H110: 518.83 | I110: 524.77 | J110: 535.08 | K110: 514.45 | L110: 498.2 | M110: 23.64564
A111: 102 | B111: IDBI | C111: 33.25 | D111: 33.12 | E111: 32.43 | F111: 31.62 | G111: 30.93 | H111: 33.93 | I111: 34.62 | J111: 35.43 | K111: 33.8 | L111: 32.3 | M111: 32.87417
A112: 103 | B112: IDFCFIRSTB | C112: 42.5 | D112: 42.48 | E112: 41.57 | F112: 40.63 | G112: 39.72 | H112: 43.42 | I112: 44.33 | J112: 45.27 | K112: 43.4 | L112: 41.55 | M112: 188.53725
A113: 104 | B113: ITC | C113: 259.4 | D113: 259.23 | E113: 254.47 | F113: 249.53 | G113: 244.77 | H113: 264.17 | I113: 268.93 | J113: 273.87 | K113: 264 | L113: 254.3 | M113: 342.91157
A114: 105 | B114: IBULHSGFIN | C114: 214.25 | D114: 215.85 | E114: 202.45 | F114: 190.65 | G114: 177.25 | H114: 227.65 | I114: 241.05 | J114: 252.85 | K114: 229.25 | L114: 204.05 | M114: 581.84693
A115: 106 | B115: IBVENTURES | C115: 96.05 | D115: 97.40 | E115: 93.85 | F115: 91.65 | G115: 88.10 | H115: 99.60 | I115: 103.15 | J115: 105.35 | K115: 100.95 | L115: 95.2 | M115: 7.56662
A116: 107 | B116: INDIANB | C116: 128.8 | D116: 128.97 | E116: 125.93 | F116: 123.07 | G116: 120.03 | H116: 131.83 | I116: 134.87 | J116: 137.73 | K116: 132 | L116: 126.1 | M116: 21.87703
A117: 108 | B117: INDHOTEL | C117: 150 | D117: 150.93 | E117: 148.37 | F117: 146.73 | G117: 144.17 | H117: 152.57 | I117: 155.13 | J117: 156.77 | K117: 153.5 | L117: 149.3 | M117: 11.67865
A118: 109 | B118: IOC | C118: 147.15 | D118: 147.22 | E118: 145.48 | F118: 143.82 | G118: 142.08 | H118: 148.88 | I118: 150.62 | J118: 152.28 | K118: 148.95 | L118: 145.55 | M118: 110.20054
A119: 110 | B119: IGL | C119: 384.05 | D119: 384.18 | E119: 381.92 | F119: 379.78 | G119: 377.52 | H119: 386.32 | I119: 388.58 | J119: 390.72 | K119: 386.45 | L119: 382.05 | M119: 6.43503
A120: 111 | B120: INDUSINDBK | C120: 1297.2 | D120: 1301.18 | E120: 1278.42 | F120: 1259.63 | G120: 1236.87 | H120: 1319.97 | I120: 1342.73 | J120: 1361.52 | K120: 1323.95 | L120: 1282.4 | M120: 33.3374
A121: 112 | B121: NAUKRI | C121: 2431.9 | D121: 2428.37 | E121: 2374.13 | F121: 2316.37 | G121: 2262.13 | H121: 2486.13 | I121: 2540.37 | J121: 2598.13 | K121: 2482.6 | L121: 2370.6 | M121: 1.92918
A122: 113 | B122: INFY | C122: 660.6 | D122: 662.73 | E122: 654.07 | F122: 647.53 | G122: 638.87 | H122: 669.27 | I122: 677.93 | J122: 684.47 | K122: 671.4 | L122: 656.2 | M122: 228.79467
A123: 114 | B123: INDIGO | C123: 1512.05 | D123: 1488.82 | E123: 1443.23 | F123: 1374.42 | G123: 1328.83 | H123: 1557.63 | I123: 1603.22 | J123: 1672.03 | K123: 1534.4 | L123: 1420 | M123: 60.03645
A124: 115 | B124: IPCALAB | C124: 974.65 | D124: 978.57 | E124: 961.13 | F124: 947.62 | G124: 930.18 | H124: 992.08 | I124: 1009.52 | J124: 1023.03 | K124: 996 | L124: 965.05 | M124: 0.88829
A125: 116 | B125: JSWENERGY | C125: 67.9 | D125: 67.42 | E125: 66.43 | F125: 64.97 | G125: 63.98 | H125: 68.88 | I125: 69.87 | J125: 71.33 | K125: 68.4 | L125: 65.95 | M125: 8.46832
A126: 117 | B126: JSWSTEEL | C126: 234.4 | D126: 234.20 | E126: 231.45 | F126: 228.50 | G126: 225.75 | H126: 237.15 | I126: 239.90 | J126: 242.85 | K126: 236.95 | L126: 231.25 | M126: 52.46865
A127: 118 | B127: JINDALSTEL | C127: 115.2 | D127: 114.28 | E127: 112.07 | F127: 108.93 | G127: 106.72 | H127: 117.42 | I127: 119.63 | J127: 122.77 | K127: 116.5 | L127: 111.15 | M127: 172.40594
A128: 119 | B128: JUBLFOOD | C128: 1564 | D128: 1571.47 | E128: 1530.53 | F128: 1497.07 | G128: 1456.13 | H128: 1604.93 | I128: 1645.87 | J128: 1679.33 | K128: 1612.4 | L128: 1538 | M128: 13.83147
A129: 120 | B129: JUBILANT | C129: 530.35 | D129: 531.32 | E129: 522.93 | F129: 515.52 | G129: 507.13 | H129: 538.73 | I129: 547.12 | J129: 554.53 | K129: 539.7 | L129: 523.9 | M129: 2.6105
A130: 121 | B130: KOTAKBANK | C130: 1578.9 | D130: 1580.42 | E130: 1572.28 | F130: 1565.67 | G130: 1557.53 | H130: 1587.03 | I130: 1595.17 | J130: 1601.78 | K130: 1588.55 | L130: 1573.8 | M130: 16.77269
A131: 122 | B131: L&TFH | C131: 93.75 | D131: 94.35 | E131: 92.90 | F131: 92.05 | G131: 90.60 | H131: 95.20 | I131: 96.65 | J131: 97.50 | K131: 95.8 | L131: 93.5 | M131: 80.26278
A132: 123 | B132: LTTS | C132: 1502.65 | D132: 1497.65 | E132: 1480.30 | F132: 1457.95 | G132: 1440.60 | H132: 1520.00 | I132: 1537.35 | J132: 1559.70 | K132: 1515 | L132: 1475.3 | M132: 0.91889
A133: 124 | B133: LICHSGFIN | C133: 402.25 | D133: 400.92 | E133: 394.48 | F133: 386.72 | G133: 380.28 | H133: 408.68 | I133: 415.12 | J133: 422.88 | K133: 407.35 | L133: 393.15 | M133: 30.8807
A134: 125 | B134: LTI | C134: 1696.5 | D134: 1692.47 | E134: 1671.03 | F134: 1645.57 | G134: 1624.13 | H134: 1717.93 | I134: 1739.37 | J134: 1764.83 | K134: 1713.9 | L134: 1667 | M134: 1.06118
A135: 126 | B135: LT | C135: 1474.25 | D135: 1477.07 | E135: 1462.18 | F135: 1450.12 | G135: 1435.23 | H135: 1489.13 | I135: 1504.02 | J135: 1516.08 | K135: 1491.95 | L135: 1465 | M135: 37.22066
A136: 127 | B136: LUPIN | C136: 729.95 | D136: 732.28 | E136: 723.67 | F136: 717.38 | G136: 708.77 | H136: 738.57 | I136: 747.18 | J136: 753.47 | K136: 740.9 | L136: 726 | M136: 6.47084
A137: 128 | B137: MRF | C137: 64893.3 | D137: 64815.58 | E137: 64181.17 | F137: 63469.03 | G137: 62834.62 | H137: 65527.72 | I137: 66162.13 | J137: 66874.27 | K137: 65450 | L137: 64103.45 | M137: 0.054
A138: 129 | B138: MGL | C138: 1004.45 | D138: 1001.48 | E138: 989.97 | F138: 975.48 | G138: 963.97 | H138: 1015.97 | I138: 1027.48 | J138: 1041.97 | K138: 1013 | L138: 987 | M138: 10.52542
A139: 130 | B139: M&MFIN | C139: 358.75 | D139: 358.75 | E139: 349.50 | F139: 340.25 | G139: 331.00 | H139: 368.00 | I139: 377.25 | J139: 386.50 | K139: 368 | L139: 349.5 | M139: 17.11626
A140: 131 | B140: M&M | C140: 616.55 | D140: 613.82 | E140: 607.73 | F140: 598.92 | G140: 592.83 | H140: 622.63 | I140: 628.72 | J140: 637.53 | K140: 619.9 | L140: 605 | M140: 42.96705
A141: 132 | B141: MANAPPURAM | C141: 163.3 | D141: 163.60 | E141: 161.40 | F141: 159.50 | G141: 157.30 | H141: 165.50 | I141: 167.70 | J141: 169.60 | K141: 165.8 | L141: 161.7 | M141: 25.37956
A142: 133 | B142: MRPL | C142: 52.3 | D142: 51.97 | E142: 51.03 | F142: 49.77 | G142: 48.83 | H142: 53.23 | I142: 54.17 | J142: 55.43 | K142: 52.9 | L142: 50.7 | M142: 8.88382
A143: 134 | B143: MARICO | C143: 370.95 | D143: 369.85 | E143: 367.70 | F143: 364.45 | G143: 362.30 | H143: 373.10 | I143: 375.25 | J143: 378.50 | K143: 372 | L143: 366.6 | M143: 17.66694
A144: 135 | B144: MARUTI | C144: 7556.95 | D144: 7616.77 | E144: 7479.88 | F144: 7402.82 | G144: 7265.93 | H144: 7693.83 | I144: 7830.72 | J144: 7907.78 | K144: 7753.65 | L144: 7539.7 | M144: 12.43366
A145: 136 | B145: MFSL | C145: 411.25 | D145: 412.18 | E145: 404.67 | F145: 398.08 | G145: 390.57 | H145: 418.77 | I145: 426.28 | J145: 432.87 | K145: 419.7 | L145: 405.6 | M145: 7.04787
A146: 137 | B146: MINDTREE | C146: 711.2 | D146: 712.40 | E146: 706.80 | F146: 702.40 | G146: 696.80 | H146: 716.80 | I146: 722.40 | J146: 726.80 | K146: 718 | L146: 708 | M146: 3.44208
A147: 138 | B147: MOTHERSUMI | C147: 122.25 | D147: 121.98 | E147: 119.52 | F147: 116.78 | G147: 114.32 | H147: 124.72 | I147: 127.18 | J147: 129.92 | K147: 124.45 | L147: 119.25 | M147: 95.36165
A148: 139 | B148: MPHASIS | C148: 939.75 | D148: 940.28 | E148: 932.57 | F148: 925.38 | G148: 917.67 | H148: 947.47 | I148: 955.18 | J148: 962.37 | K148: 948 | L148: 933.1 | M148: 2.03
A149: 140 | B149: MUTHOOTFIN | C149: 706.05 | D149: 705.60 | E149: 697.60 | F149: 689.15 | G149: 681.15 | H149: 714.05 | I149: 722.05 | J149: 730.50 | K149: 713.6 | L149: 697.15 | M149: 10.68141
A150: 141 | B150: NATCOPHARM | C150: 593.9 | D150: 595.45 | E150: 584.90 | F150: 575.90 | G150: 565.35 | H150: 604.45 | I150: 615.00 | J150: 624.00 | K150: 606 | L150: 586.45 | M150: 2.41581
A151: 142 | B151: NBCC | C151: 37.8 | D151: 37.18 | E151: 36.42 | F151: 35.03 | G151: 34.27 | H151: 38.57 | I151: 39.33 | J151: 40.72 | K151: 37.95 | L151: 35.8 | M151: 215.99121
A152: 143 | B152: NHPC | C152: 23.8 | D152: 23.77 | E152: 23.33 | F152: 22.87 | G152: 22.43 | H152: 24.23 | I152: 24.67 | J152: 25.13 | K152: 24.2 | L152: 23.3 | M152: 23.89503
A153: 144 | B153: NMDC | C153: 110.7 | D153: 111.52 | E153: 109.43 | F153: 108.17 | G153: 106.08 | H153: 112.78 | I153: 114.87 | J153: 116.13 | K153: 113.6 | L153: 110.25 | M153: 40.8068
A154: 145 | B154: NTPC | C154: 120.95 | D154: 120.65 | E154: 119.55 | F154: 118.15 | G154: 117.05 | H154: 122.05 | I154: 123.15 | J154: 124.55 | K154: 121.75 | L154: 119.25 | M154: 121.19474
A155: 146 | B155: NATIONALUM | C155: 43.9 | D155: 44.02 | E155: 43.53 | F155: 43.17 | G155: 42.68 | H155: 44.38 | I155: 44.87 | J155: 45.23 | K155: 44.5 | L155: 43.65 | M155: 68.25035
A156: 147 | B156: NESTLEIND | C156: 14967.8 | D156: 14905.67 | E156: 14812.43 | F156: 14657.07 | G156: 14563.83 | H156: 15061.03 | I156: 15154.27 | J156: 15309.63 | K156: 14998.9 | L156: 14750.3 | M156: 0.58061
A157: 148 | B157: OBEROIRLTY | C157: 492.05 | D157: 494.05 | E157: 486.15 | F157: 480.25 | G157: 472.35 | H157: 499.95 | I157: 507.85 | J157: 513.75 | K157: 501.95 | L157: 488.15 | M157: 1.63238
A158: 149 | B158: ONGC | C158: 140.55 | D158: 141.45 | E158: 138.90 | F158: 137.25 | G158: 134.70 | H158: 143.10 | I158: 145.65 | J158: 147.30 | K158: 144 | L158: 139.8 | M158: 70.64774
A159: 150 | B159: OIL | C159: 169.2 | D159: 167.85 | E159: 164.70 | F159: 160.20 | G159: 157.05 | H159: 172.35 | I159: 175.50 | J159: 180.00 | K159: 171 | L159: 163.35 | M159: 22.97991
A160: 151 | B160: OFSS | C160: 3110.45 | D160: 3102.98 | E160: 3065.97 | F160: 3021.48 | G160: 2984.47 | H160: 3147.47 | I160: 3184.48 | J160: 3228.97 | K160: 3140 | L160: 3058.5 | M160: 0.13047
A161: 152 | B161: ORIENTBANK | C161: 52.8 | D161: 52.40 | E161: 51.60 | F161: 50.40 | G161: 49.60 | H161: 53.60 | I161: 54.40 | J161: 55.60 | K161: 53.2 | L161: 51.2 | M161: 14.07539
A162: 153 | B162: PIIND | C162: 1400.7 | D162: 1401.07 | E162: 1382.13 | F162: 1363.57 | G162: 1344.63 | H162: 1419.63 | I162: 1438.57 | J162: 1457.13 | K162: 1420 | L162: 1382.5 | M162: 1.71026
A163: 154 | B163: PNBHOUSING | C163: 512.25 | D163: 513.83 | E163: 501.67 | F163: 491.08 | G163: 478.92 | H163: 524.42 | I163: 536.58 | J163: 547.17 | K163: 526 | L163: 503.25 | M163: 5.92956
A164: 155 | B164: PAGEIND | C164: 24591.65 | D164: 24346.55 | E164: 23945.10 | F164: 23298.55 | G164: 22897.10 | H164: 24993.10 | I164: 25394.55 | J164: 26041.10 | K164: 24748 | L164: 23700 | M164: 0.21159
A165: 156 | B165: PETRONET | C165: 285.5 | D165: 287.92 | E165: 278.08 | F165: 270.67 | G165: 260.83 | H165: 295.33 | I165: 305.17 | J165: 312.58 | K165: 297.75 | L165: 280.5 | M165: 132.04144
A166: 157 | B166: PFIZER | C166: 3900.65 | D166: 3895.38 | E166: 3858.27 | F166: 3815.88 | G166: 3778.77 | H166: 3937.77 | I166: 3974.88 | J166: 4017.27 | K166: 3932.5 | L166: 3853 | M166: 0.45508
A167: 158 | B167: PIDILITIND | C167: 1365.2 | D167: 1362.80 | E167: 1351.60 | F167: 1338.00 | G167: 1326.80 | H167: 1376.40 | I167: 1387.60 | J167: 1401.20 | K167: 1374 | L167: 1349.2 | M167: 5.3219
A168: 159 | B168: PEL | C168: 1696.8 | D168: 1704.32 | E168: 1658.63 | F168: 1620.47 | G168: 1574.78 | H168: 1742.48 | I168: 1788.17 | J168: 1826.33 | K168: 1750 | L168: 1666.15 | M168: 24.12821
A169: 160 | B169: PFC | C169: 106.75 | D169: 106.90 | E169: 105.35 | F169: 103.95 | G169: 102.40 | H169: 108.30 | I169: 109.85 | J169: 111.25 | K169: 108.45 | L169: 105.5 | M169: 43.93393
A170: 161 | B170: POWERGRID | C170: 199.95 | D170: 201.03 | E170: 198.22 | F170: 196.48 | G170: 193.67 | H170: 202.77 | I170: 205.58 | J170: 207.32 | K170: 203.85 | L170: 199.3 | M170: 36.10721
A171: 162 | B171: PRESTIGE | C171: 293.2 | D171: 296.60 | E171: 285.60 | F171: 278.00 | G171: 267.00 | H171: 304.20 | I171: 315.20 | J171: 322.80 | K171: 307.6 | L171: 289 | M171: 1.522
A172: 163 | B172: PGHH | C172: 12355.25 | D172: 12358.72 | E172: 11942.53 | F172: 11529.82 | G172: 11113.63 | H172: 12771.43 | I172: 13187.62 | J172: 13600.33 | K172: 12774.9 | L172: 11946 | M172: 0.12691
A173: 164 | B173: PNB | C173: 63.7 | D173: 63.23 | E173: 62.32 | F173: 60.93 | G173: 60.02 | H173: 64.62 | I173: 65.53 | J173: 66.92 | K173: 64.15 | L173: 61.85 | M173: 233.74034
A174: 165 | B174: QUESS | C174: 474.05 | D174: 472.87 | E174: 470.23 | F174: 466.42 | G174: 463.78 | H174: 476.68 | I174: 479.32 | J174: 483.13 | K174: 475.5 | L174: 469.05 | M174: 1.7056
A175: 166 | B175: RBLBANK | C175: 288.45 | D175: 284.22 | E175: 277.43 | F175: 266.42 | G175: 259.63 | H175: 295.23 | I175: 302.02 | J175: 313.03 | K175: 291 | L175: 273.2 | M175: 145.28128
A176: 167 | B176: RECLTD | C176: 137.4 | D176: 137.52 | E176: 134.53 | F176: 131.67 | G176: 128.68 | H176: 140.38 | I176: 143.37 | J176: 146.23 | K176: 140.5 | L176: 134.65 | M176: 73.80449
A177: 168 | B177: RAJESHEXPO | C177: 674.2 | D177: 677.05 | E177: 671.15 | F177: 668.10 | G177: 662.20 | H177: 680.10 | I177: 686.00 | J177: 689.05 | K177: 682.95 | L177: 674 | M177: 4.12379
A178: 169 | B178: RELIANCE | C178: 1479.1 | D178: 1474.65 | E178: 1464.75 | F178: 1450.40 | G178: 1440.50 | H178: 1489.00 | I178: 1498.90 | J178: 1513.25 | K178: 1484.55 | L178: 1460.3 | M178: 74.70723
A179: 170 | B179: RNAM | C179: 353.8 | D179: 345.23 | E179: 331.07 | F179: 308.33 | G179: 294.17 | H179: 367.97 | I179: 382.13 | J179: 404.87 | K179: 359.4 | L179: 322.5 | M179: 61.69884
A180: 171 | B180: SBILIFE | C180: 999.8 | D180: 1001.97 | E180: 973.93 | F180: 948.07 | G180: 920.03 | H180: 1027.83 | I180: 1055.87 | J180: 1081.73 | K180: 1030 | L180: 976.1 | M180: 76.10404
A181: 172 | B181: SRF | C181: 2796.15 | D181: 2775.37 | E181: 2735.78 | F181: 2675.42 | G181: 2635.83 | H181: 2835.73 | I181: 2875.32 | J181: 2935.68 | K181: 2814.95 | L181: 2715 | M181: 8.55803
A182: 173 | B182: SHREECEM | C182: 20246.95 | D182: 20305.65 | E182: 20011.30 | F182: 19775.65 | G182: 19481.30 | H182: 20541.30 | I182: 20835.65 | J182: 21071.30 | K182: 20600 | L182: 20070 | M182: 0.20701
A183: 174 | B183: SRTRANSFIN | C183: 1155.3 | D183: 1158.27 | E183: 1127.03 | F183: 1098.77 | G183: 1067.53 | H183: 1186.53 | I183: 1217.77 | J183: 1246.03 | K183: 1189.5 | L183: 1130 | M183: 17.9181
A184: 175 | B184: SIEMENS | C184: 1651.3 | D184: 1654.62 | E184: 1638.23 | F184: 1625.17 | G184: 1608.78 | H184: 1667.68 | I184: 1684.07 | J184: 1697.13 | K184: 1671 | L184: 1641.55 | M184: 3.19316
A185: 176 | B185: SBIN | C185: 289.9 | D185: 286.72 | E185: 282.43 | F185: 274.97 | G185: 270.68 | H185: 294.18 | I185: 298.47 | J185: 305.93 | K185: 291 | L185: 279.25 | M185: 514.69048
A186: 177 | B186: SAIL | C186: 37.35 | D186: 37.23 | E186: 36.82 | F186: 36.28 | G186: 35.87 | H186: 37.77 | I186: 38.18 | J186: 38.72 | K186: 37.65 | L186: 36.7 | M186: 265.12896
A187: 178 | B187: STRTECH | C187: 132.9 | D187: 133.68 | E187: 131.02 | F187: 129.13 | G187: 126.47 | H187: 135.57 | I187: 138.23 | J187: 140.12 | K187: 136.35 | L187: 131.8 | M187: 13.82491
A188: 179 | B188: SUNPHARMA | C188: 429.65 | D188: 426.77 | E188: 420.98 | F188: 412.32 | G188: 406.53 | H188: 435.43 | I188: 441.22 | J188: 449.88 | K188: 432.55 | L188: 418.1 | M188: 35.1161
A189: 180 | B189: SUNTV | C189: 519.15 | D189: 523.83 | E189: 512.37 | F189: 505.58 | G189: 494.12 | H189: 530.62 | I189: 542.08 | J189: 548.87 | K189: 535.3 | L189: 517.05 | M189: 11.50048
A190: 181 | B190: SYNGENE | C190: 330.15 | D190: 329.92 | E190: 328.33 | F190: 326.52 | G190: 324.93 | H190: 331.73 | I190: 333.32 | J190: 335.13 | K190: 331.5 | L190: 328.1 | M190: 0.55902
A191: 182 | B191: TVSMOTOR | C191: 494.85 | D191: 489.90 | E191: 479.00 | F191: 463.15 | G191: 452.25 | H191: 505.75 | I191: 516.65 | J191: 532.50 | K191: 500.8 | L191: 474.05 | M191: 29.95598
A192: 183 | B192: TATACHEM | C192: 614.3 | D192: 619.37 | E192: 602.03 | F192: 589.77 | G192: 572.43 | H192: 631.63 | I192: 648.97 | J192: 661.23 | K192: 636.7 | L192: 607.1 | M192: 17.34604
A193: 184 | B193: TCS | C193: 2252.8 | D193: 2229.88 | E193: 2199.77 | F193: 2146.73 | G193: 2116.62 | H193: 2282.92 | I193: 2313.03 | J193: 2366.07 | K193: 2260 | L193: 2176.85 | M193: 51.95136
A194: 185 | B194: TATAGLOBAL | C194: 291.75 | D194: 290.48 | E194: 285.97 | F194: 280.18 | G194: 275.67 | H194: 296.27 | I194: 300.78 | J194: 306.57 | K194: 295 | L194: 284.7 | M194: 56.28792
A195: 186 | B195: TATAMTRDVR | C195: 80 | D195: 79.40 | E195: 77.55 | F195: 75.10 | G195: 73.25 | H195: 81.85 | I195: 83.70 | J195: 86.15 | K195: 81.25 | L195: 76.95 | M195: 147.8545
A196: 187 | B196: TATAMOTORS | C196: 171.9 | D196: 171.37 | E196: 167.08 | F196: 162.27 | G196: 157.98 | H196: 176.18 | I196: 180.47 | J196: 185.28 | K196: 175.65 | L196: 166.55 | M196: 907.59545
A197: 188 | B197: TATAPOWER | C197: 58.6 | D197: 58.62 | E197: 58.23 | F197: 57.87 | G197: 57.48 | H197: 58.98 | I197: 59.37 | J197: 59.73 | K197: 59 | L197: 58.25 | M197: 44.77801
A198: 189 | B198: TATASTEEL | C198: 388 | D198: 388.67 | E198: 383.63 | F198: 379.27 | G198: 374.23 | H198: 393.03 | I198: 398.07 | J198: 402.43 | K198: 393.7 | L198: 384.3 | M198: 143.71442
A199: 190 | B199: TECHM | C199: 754.4 | D199: 754.92 | E199: 745.03 | F199: 735.67 | G199: 725.78 | H199: 764.28 | I199: 774.17 | J199: 783.53 | K199: 764.8 | L199: 745.55 | M199: 22.32609
A200: 191 | B200: NIACL | C200: 170.65 | D200: 167.72 | E200: 161.23 | F200: 151.82 | G200: 145.33 | H200: 177.13 | I200: 183.62 | J200: 193.03 | K200: 174.2 | L200: 158.3 | M200: 23.92694
A201: 192 | B201: RAMCOCEM | C201: 776.05 | D201: 773.35 | E201: 750.20 | F201: 724.35 | G201: 701.20 | H201: 799.20 | I201: 822.35 | J201: 848.20 | K201: 796.5 | L201: 747.5 | M201: 14.73994
A202: 193 | B202: TITAN | C202: 1316.15 | D202: 1325.05 | E202: 1303.10 | F202: 1290.05 | G202: 1268.10 | H202: 1338.10 | I202: 1360.05 | J202: 1373.10 | K202: 1347 | L202: 1312 | M202: 16.81593
A203: 194 | B203: TORNTPHARM | C203: 1765.4 | D203: 1775.92 | E203: 1741.98 | F203: 1718.57 | G203: 1684.63 | H203: 1799.33 | I203: 1833.27 | J203: 1856.68 | K203: 1809.85 | L203: 1752.5 | M203: 1.97325
A204: 195 | B204: TORNTPOWER | C204: 279.55 | D204: 280.15 | E204: 277.55 | F204: 275.55 | G204: 272.95 | H204: 282.15 | I204: 284.75 | J204: 286.75 | K204: 282.75 | L204: 278.15 | M204: 6.19648
A205: 196 | B205: UPL | C205: 584.15 | D205: 588.02 | E205: 576.23 | F205: 568.32 | G205: 556.53 | H205: 595.93 | I205: 607.72 | J205: 615.63 | K205: 599.8 | L205: 580.1 | M205: 23.93149
... 30 more rows

Sheet MidCap Intra
L5: Back To Main Page
A6: FOR INTRA DAY TRADING | K6: =Main!B10 -> 2019-10-31
A9: Sr.no | B9: Scrip | C9: CLOSE RATE | D9: Pivot Point | E9: Supports | H9: Resistances
C10: Point | E10: S1 | F10: S2 | G10: S3 | H10: R1 | I10: R2 | J10: R3 | K10: HIGH | L10: LOW | M10: Total Trade Quanity in Lakhs
A11: 1 | B11: 3MINDIA | C11: 22281.2 | D11: 22387.05 | E11: 21949.15 | F11: 21617.10 | G11: 21179.20 | H11: 22719.10 | I11: 23157.00 | J11: 23489.05 | K11: 22824.95 | L11: 22055 | M11: 0.04885
A12: 2 | B12: ACC | C12: 1532.25 | D12: 1541.82 | E12: 1511.63 | F12: 1491.02 | G12: 1460.83 | H12: 1562.43 | I12: 1592.62 | J12: 1613.23 | K12: 1572 | L12: 1521.2 | M12: 9.20215
A13: 3 | B13: AIAENG | C13: 1721.6 | D13: 1720.90 | E13: 1702.80 | F13: 1684.00 | G13: 1665.90 | H13: 1739.70 | I13: 1757.80 | J13: 1776.60 | K13: 1739 | L13: 1702.1 | M13: 0.38694
A14: 4 | B14: APLAPOLLO | C14: 1473.6 | D14: 1453.53 | E14: 1407.07 | F14: 1340.53 | G14: 1294.07 | H14: 1520.07 | I14: 1566.53 | J14: 1633.07 | K14: 1500 | L14: 1387 | M14: 0.14825
A15: 5 | B15: AUBANK | C15: 689.8 | D15: 696.02 | E15: 679.03 | F15: 668.27 | G15: 651.28 | H15: 706.78 | I15: 723.77 | J15: 734.53 | K15: 713 | L15: 685.25 | M15: 3.70908
A16: 6 | B16: AAVAS | C16: 1594.9 | D16: 1603.90 | E16: 1576.15 | F16: 1557.40 | G16: 1529.65 | H16: 1622.65 | I16: 1650.40 | J16: 1669.15 | K16: 1631.65 | L16: 1585.15 | M16: 0.24658
A17: 7 | B17: ABBOTINDIA | C17: 11922.5 | D17: 11957.98 | E17: 11864.52 | F17: 11806.53 | G17: 11713.07 | H17: 12015.97 | I17: 12109.43 | J17: 12167.42 | K17: 12051.45 | L17: 11900 | M17: 0.22409
A18: 8 | B18: ADANIGAS | C18: 146.9 | D18: 147.97 | E18: 145.53 | F18: 144.17 | G18: 141.73 | H18: 149.33 | I18: 151.77 | J18: 153.13 | K18: 150.4 | L18: 146.6 | M18: 13.06351
A19: 9 | B19: ADANIGREEN | C19: 89.9 | D19: 90.47 | E19: 88.93 | F19: 87.97 | G19: 86.43 | H19: 91.43 | I19: 92.97 | J19: 93.93 | K19: 92 | L19: 89.5 | M19: 11.88364
A20: 10 | B20: ADANIPORTS | C20: 398.1 | D20: 399.53 | E20: 394.07 | F20: 390.03 | G20: 384.57 | H20: 403.57 | I20: 409.03 | J20: 413.07 | K20: 405 | L20: 395.5 | M20: 55.90453
A21: 11 | B21: ADANIPOWER | C21: 66.05 | D21: 66.07 | E21: 65.48 | F21: 64.92 | G21: 64.33 | H21: 66.63 | I21: 67.22 | J21: 67.78 | K21: 66.65 | L21: 65.5 | M21: 44.33796
A22: 12 | B22: ADANITRANS | C22: 264.6 | D22: 264.82 | E22: 260.83 | F22: 257.07 | G22: 253.08 | H22: 268.58 | I22: 272.57 | J22: 276.33 | K22: 268.8 | L22: 261.05 | M22: 2.11276
A23: 13 | B23: ABCAPITAL | C23: 79.9 | D23: 80.33 | E23: 79.07 | F23: 78.23 | G23: 76.97 | H23: 81.17 | I23: 82.43 | J23: 83.27 | K23: 81.6 | L23: 79.5 | M23: 26.96635
A24: 14 | B24: ABFRL | C24: 211.65 | D24: 210.67 | E24: 206.98 | F24: 202.32 | G24: 198.63 | H24: 215.33 | I24: 219.02 | J24: 223.68 | K24: 214.35 | L24: 206 | M24: 4.136
A25: 15 | B25: ADVENZYMES | C25: 185 | D25: 184.32 | E25: 173.68 | F25: 162.37 | G25: 151.73 | H25: 195.63 | I25: 206.27 | J25: 217.58 | K25: 194.95 | L25: 173 | M25: 6.01675
A26: 16 | B26: AEGISCHEM | C26: 171.05 | D26: 172.77 | E26: 168.53 | F26: 166.02 | G26: 161.78 | H26: 175.28 | I26: 179.52 | J26: 182.03 | K26: 177 | L26: 170.25 | M26: 0.87672
A27: 17 | B27: AJANTPHARM | C27: 1025.35 | D27: 1022.12 | E27: 1014.23 | F27: 1003.12 | G27: 995.23 | H27: 1033.23 | I27: 1041.12 | J27: 1052.23 | K27: 1030 | L27: 1011 | M27: 0.29285
A28: 18 | B28: AKZOINDIA | C28: 2104 | D28: 2092.67 | E28: 2066.33 | F28: 2028.67 | G28: 2002.33 | H28: 2130.33 | I28: 2156.67 | J28: 2194.33 | K28: 2119 | L28: 2055 | M28: 0.2956
A29: 19 | B29: APLLTD | C29: 546.85 | D29: 547.23 | E29: 539.72 | F29: 532.58 | G29: 525.07 | H29: 554.37 | I29: 561.88 | J29: 569.02 | K29: 554.75 | L29: 540.1 | M29: 0.61786
A30: 20 | B30: ALKEM | C30: 1977 | D30: 1973.28 | E30: 1966.57 | F30: 1956.13 | G30: 1949.42 | H30: 1983.72 | I30: 1990.43 | J30: 2000.87 | K30: 1980 | L30: 1962.85 | M30: 0.09228
A31: 21 | B31: ALBK | C31: 27.05 | D31: 26.83 | E31: 26.07 | F31: 25.08 | G31: 24.32 | H31: 27.82 | I31: 28.58 | J31: 29.57 | K31: 27.6 | L31: 25.85 | M31: 15.82108
A32: 22 | B32: ALLCARGO | C32: 100.25 | D32: 100.13 | E32: 99.47 | F32: 98.68 | G32: 98.02 | H32: 100.92 | I32: 101.58 | J32: 102.37 | K32: 100.8 | L32: 99.35 | M32: 1.36957
A33: 23 | B33: AMARAJABAT | C33: 675.85 | D33: 673.78 | E33: 666.57 | F33: 657.28 | G33: 650.07 | H33: 683.07 | I33: 690.28 | J33: 699.57 | K33: 681 | L33: 664.5 | M33: 4.09195
A34: 24 | B34: AMBER | C34: 1001.35 | D34: 1000.45 | E34: 990.90 | F34: 980.45 | G34: 970.90 | H34: 1010.90 | I34: 1020.45 | J34: 1030.90 | K34: 1010 | L34: 990 | M34: 0.14621
A35: 25 | B35: AMBUJACEM | C35: 200.6 | D35: 201.32 | E35: 198.93 | F35: 197.27 | G35: 194.88 | H35: 202.98 | I35: 205.37 | J35: 207.03 | K35: 203.7 | L35: 199.65 | M35: 24.71767
A36: 26 | B36: ANDHRABANK | C36: 17.4 | D36: 17.13 | E36: 16.67 | F36: 15.93 | G36: 15.47 | H36: 17.87 | I36: 18.33 | J36: 19.07 | K36: 17.6 | L36: 16.4 | M36: 12.3517
A37: 27 | B37: APOLLOHOSP | C37: 1461.95 | D37: 1463.73 | E37: 1438.22 | F37: 1414.48 | G37: 1388.97 | H37: 1487.47 | I37: 1512.98 | J37: 1536.72 | K37: 1489.25 | L37: 1440 | M37: 7.51366
A38: 28 | B38: APOLLOTYRE | C38: 187.8 | D38: 186.92 | E38: 185.33 | F38: 182.87 | G38: 181.28 | H38: 189.38 | I38: 190.97 | J38: 193.43 | K38: 188.5 | L38: 184.45 | M38: 14.10885
A39: 29 | B39: ARVINDFASN | C39: 453.6 | D39: 456.65 | E39: 438.15 | F39: 422.70 | G39: 404.20 | H39: 472.10 | I39: 490.60 | J39: 506.05 | K39: 475.15 | L39: 441.2 | M39: 0.86243
A40: 30 | B40: ASHOKLEY | C40: 78.2 | D40: 78.70 | E40: 77.05 | F40: 75.90 | G40: 74.25 | H40: 79.85 | I40: 81.50 | J40: 82.65 | K40: 80.35 | L40: 77.55 | M40: 272.08583
A41: 31 | B41: ASHOKA | C41: 102.85 | D41: 103.38 | E41: 101.97 | F41: 101.08 | G41: 99.67 | H41: 104.27 | I41: 105.68 | J41: 106.57 | K41: 104.8 | L41: 102.5 | M41: 2.27138
A42: 32 | B42: ASIANPAINT | C42: 1821.3 | D42: 1818.43 | E42: 1806.87 | F42: 1792.43 | G42: 1780.87 | H42: 1832.87 | I42: 1844.43 | J42: 1858.87 | K42: 1830 | L42: 1804 | M42: 11.33258
A43: 33 | B43: ASTERDM | C43: 127.5 | D43: 127.55 | E43: 126.20 | F43: 124.90 | G43: 123.55 | H43: 128.85 | I43: 130.20 | J43: 131.50 | K43: 128.9 | L43: 126.25 | M43: 0.30597
A44: 34 | B44: ASTRAZEN | C44: 2711.4 | D44: 2687.65 | E44: 2601.30 | F44: 2491.20 | G44: 2404.85 | H44: 2797.75 | I44: 2884.10 | J44: 2994.20 | K44: 2774 | L44: 2577.55 | M44: 0.64047
A45: 35 | B45: ASTRAL | C45: 1113.55 | D45: 1119.85 | E45: 1099.70 | F45: 1085.85 | G45: 1065.70 | H45: 1133.70 | I45: 1153.85 | J45: 1167.70 | K45: 1140 | L45: 1106 | M45: 0.98398
A46: 36 | B46: ATUL | C46: 4251.95 | D46: 4266.00 | E46: 4217.05 | F46: 4182.15 | G46: 4133.20 | H46: 4300.90 | I46: 4349.85 | J46: 4384.75 | K46: 4314.95 | L46: 4231.1 | M46: 0.10532
A47: 37 | B47: AUROPHARMA | C47: 463 | D47: 466.90 | E47: 455.25 | F47: 447.50 | G47: 435.85 | H47: 474.65 | I47: 486.30 | J47: 494.05 | K47: 478.55 | L47: 459.15 | M47: 23.81573
A48: 38 | B48: AVANTIFEED | C48: 451 | D48: 446.02 | E48: 435.03 | F48: 419.07 | G48: 408.08 | H48: 461.98 | I48: 472.97 | J48: 488.93 | K48: 457 | L48: 430.05 | M48: 5.6972
A49: 39 | B49: DMART | C49: 1975.7 | D49: 1966.90 | E49: 1949.80 | F49: 1923.90 | G49: 1906.80 | H49: 1992.80 | I49: 2009.90 | J49: 2035.80 | K49: 1984 | L49: 1941 | M49: 5.20758
A50: 40 | B50: AXISBANK | C50: 747.4 | D50: 744.27 | E50: 738.63 | F50: 729.87 | G50: 724.23 | H50: 753.03 | I50: 758.67 | J50: 767.43 | K50: 749.9 | L50: 735.5 | M50: 101.88947
A51: 41 | B51: BASF | C51: 1001.35 | D51: 1005.12 | E51: 981.23 | F51: 961.12 | G51: 937.23 | H51: 1025.23 | I51: 1049.12 | J51: 1069.23 | K51: 1029 | L51: 985 | M51: 0.31656
A52: 42 | B52: BEML | C52: 1058.65 | D52: 1062.53 | E52: 1016.12 | F52: 973.58 | G52: 927.17 | H52: 1105.07 | I52: 1151.48 | J52: 1194.02 | K52: 1108.95 | L52: 1020 | M52: 25.5602
A53: 43 | B53: BSE | C53: 547.4 | D53: 550.13 | E53: 542.27 | F53: 537.13 | G53: 529.27 | H53: 555.27 | I53: 563.13 | J53: 568.27 | K53: 558 | L53: 545 | M53: 0.99895
A54: 44 | B54: BAJAJ-AUTO | C54: 3222.9 | D54: 3208.47 | E54: 3187.53 | F54: 3152.17 | G54: 3131.23 | H54: 3243.83 | I54: 3264.77 | J54: 3300.13 | K54: 3229.4 | L54: 3173.1 | M54: 5.72787
A55: 45 | B55: BAJAJCON | C55: 245.65 | D55: 247.18 | E55: 240.47 | F55: 235.28 | G55: 228.57 | H55: 252.37 | I55: 259.08 | J55: 264.27 | K55: 253.9 | L55: 242 | M55: 3.12749
A56: 46 | B56: BAJAJELEC | C56: 378.95 | D56: 378.98 | E56: 376.97 | F56: 374.98 | G56: 372.97 | H56: 380.97 | I56: 382.98 | J56: 384.97 | K56: 381 | L56: 377 | M56: 0.60253
A57: 47 | B57: BAJFINANCE | C57: 3992 | D57: 4017.32 | E57: 3959.68 | F57: 3927.37 | G57: 3869.73 | H57: 4049.63 | I57: 4107.27 | J57: 4139.58 | K57: 4074.95 | L57: 3985 | M57: 13.38554
A58: 48 | B58: BAJAJFINSV | C58: 8082.4 | D58: 8114.23 | E58: 8029.42 | F58: 7976.43 | G58: 7891.62 | H58: 8167.22 | I58: 8252.03 | J58: 8305.02 | K58: 8199.05 | L58: 8061.25 | M58: 2.26406
A59: 49 | B59: BAJAJHLDNG | C59: 3682.85 | D59: 3691.17 | E59: 3667.33 | F59: 3651.82 | G59: 3627.98 | H59: 3706.68 | I59: 3730.52 | J59: 3746.03 | K59: 3715 | L59: 3675.65 | M59: 0.1049
A60: 50 | B60: BALKRISIND | C60: 867.3 | D60: 869.45 | E60: 853.90 | F60: 840.50 | G60: 824.95 | H60: 882.85 | I60: 898.40 | J60: 911.80 | K60: 885 | L60: 856.05 | M60: 4.87654
A61: 51 | B61: BALMLAWRIE | C61: 200.1 | D61: 202.82 | E61: 192.33 | F61: 184.57 | G61: 174.08 | H61: 210.58 | I61: 221.07 | J61: 228.83 | K61: 213.3 | L61: 195.05 | M61: 10.42398
A62: 52 | B62: BALRAMCHIN | C62: 156.55 | D62: 156.33 | E62: 153.67 | F62: 150.78 | G62: 148.12 | H62: 159.22 | I62: 161.88 | J62: 164.77 | K62: 159 | L62: 153.45 | M62: 8.73051
A63: 53 | B63: BANDHANBNK | C63: 614.25 | D63: 610.67 | E63: 597.58 | F63: 580.92 | G63: 567.83 | H63: 627.33 | I63: 640.42 | J63: 657.08 | K63: 623.75 | L63: 594 | M63: 57.63829
A64: 54 | B64: BANKBARODA | C64: 95.55 | D64: 95.15 | E64: 93.20 | F64: 90.85 | G64: 88.90 | H64: 97.50 | I64: 99.45 | J64: 101.80 | K64: 97.1 | L64: 92.8 | M64: 315.68294
A65: 55 | B65: BANKINDIA | C65: 71.05 | D65: 69.78 | E65: 68.17 | F65: 65.28 | G65: 63.67 | H65: 72.67 | I65: 74.28 | J65: 77.17 | K65: 71.4 | L65: 66.9 | M65: 116.5011
A66: 56 | B66: MAHABANK | C66: 11.3 | D66: 11.25 | E66: 11.05 | F66: 10.80 | G66: 10.60 | H66: 11.50 | I66: 11.70 | J66: 11.95 | K66: 11.45 | L66: 11 | M66: 9.56202
A67: 57 | B67: BATAINDIA | C67: 1780.2 | D67: 1777.75 | E67: 1766.50 | F67: 1752.80 | G67: 1741.55 | H67: 1791.45 | I67: 1802.70 | J67: 1816.40 | K67: 1789 | L67: 1764.05 | M67: 3.53785
A68: 58 | B68: BAYERCROP | C68: 3364.75 | D68: 3346.87 | E68: 3303.73 | F68: 3242.72 | G68: 3199.58 | H68: 3407.88 | I68: 3451.02 | J68: 3512.03 | K68: 3390 | L68: 3285.85 | M68: 0.04289
A69: 59 | B69: BERGEPAINT | C69: 498 | D69: 498.82 | E69: 494.73 | F69: 491.47 | G69: 487.38 | H69: 502.08 | I69: 506.17 | J69: 509.43 | K69: 502.9 | L69: 495.55 | M69: 13.88372
A70: 60 | B70: BDL | C70: 336.75 | D70: 335.78 | E70: 323.57 | F70: 310.38 | G70: 298.17 | H70: 348.97 | I70: 361.18 | J70: 374.37 | K70: 348 | L70: 322.6 | M70: 2.04953
A71: 61 | B71: BEL | C71: 119.35 | D71: 119.72 | E71: 117.33 | F71: 115.32 | G71: 112.93 | H71: 121.73 | I71: 124.12 | J71: 126.13 | K71: 122.1 | L71: 117.7 | M71: 93.64442
A72: 62 | B72: BHARATFORG | C72: 456 | D72: 458.80 | E72: 450.05 | F72: 444.10 | G72: 435.35 | H72: 464.75 | I72: 473.50 | J72: 479.45 | K72: 467.55 | L72: 452.85 | M72: 13.74801
A73: 63 | B73: BHEL | C73: 58.9 | D73: 59.37 | E73: 57.63 | F73: 56.37 | G73: 54.63 | H73: 60.63 | I73: 62.37 | J73: 63.63 | K73: 61.1 | L73: 58.1 | M73: 794.79137
A74: 64 | B74: BPCL | C74: 525.1 | D74: 526.05 | E74: 517.50 | F74: 509.90 | G74: 501.35 | H74: 533.65 | I74: 542.20 | J74: 549.80 | K74: 534.6 | L74: 518.45 | M74: 75.23025
A75: 65 | B75: BHARTIARTL | C75: 367.95 | D75: 366.65 | E75: 361.95 | F75: 355.95 | G75: 351.25 | H75: 372.65 | I75: 377.35 | J75: 383.35 | K75: 371.35 | L75: 360.65 | M75: 168.69202
A76: 66 | B76: INFRATEL | C76: 183.2 | D76: 186.47 | E76: 173.08 | F76: 162.97 | G76: 149.58 | H76: 196.58 | I76: 209.97 | J76: 220.08 | K76: 199.85 | L76: 176.35 | M76: 351.36167
A77: 67 | B77: BIOCON | C77: 248.25 | D77: 247.28 | E77: 244.97 | F77: 241.68 | G77: 239.37 | H77: 250.57 | I77: 252.88 | J77: 256.17 | K77: 249.6 | L77: 244 | M77: 32.32514
A78: 68 | B78: BIRLACORPN | C78: 574.65 | D78: 578.17 | E78: 567.48 | F78: 560.32 | G78: 549.63 | H78: 585.33 | I78: 596.02 | J78: 603.18 | K78: 588.85 | L78: 571 | M78: 0.27828
A79: 69 | B79: BSOFT | C79: 66.75 | D79: 67.98 | E79: 65.27 | F79: 63.78 | G79: 61.07 | H79: 69.47 | I79: 72.18 | J79: 73.67 | K79: 70.7 | L79: 66.5 | M79: 2.9438
A80: 70 | B80: BLISSGVS | C80: 135.1 | D80: 135.37 | E80: 133.73 | F80: 132.37 | G80: 130.73 | H80: 136.73 | I80: 138.37 | J80: 139.73 | K80: 137 | L80: 134 | M80: 0.77738
A81: 71 | B81: BLUEDART | C81: 2399 | D81: 2397.20 | E81: 2384.40 | F81: 2369.80 | G81: 2357.00 | H81: 2411.80 | I81: 2424.60 | J81: 2439.20 | K81: 2410 | L81: 2382.6 | M81: 0.04223
A82: 72 | B82: BLUESTARCO | C82: 848.05 | D82: 845.53 | E82: 838.07 | F82: 828.08 | G82: 820.62 | H82: 855.52 | I82: 862.98 | J82: 872.97 | K82: 853 | L82: 835.55 | M82: 0.33854
A83: 73 | B83: BBTC | C83: 1201.45 | D83: 1209.65 | E83: 1185.05 | F83: 1168.65 | G83: 1144.05 | H83: 1226.05 | I83: 1250.65 | J83: 1267.05 | K83: 1234.25 | L83: 1193.25 | M83: 1.23781
A84: 74 | B84: BOMDYEING | C84: 81.25 | D84: 81.33 | E84: 79.92 | F84: 78.58 | G84: 77.17 | H84: 82.67 | I84: 84.08 | J84: 85.42 | K84: 82.75 | L84: 80 | M84: 18.6736
A85: 75 | B85: BOSCHLTD | C85: 15586 | D85: 15605.97 | E85: 15369.23 | F85: 15152.47 | G85: 14915.73 | H85: 15822.73 | I85: 16059.47 | J85: 16276.23 | K85: 15842.7 | L85: 15389.2 | M85: 0.16512
A86: 76 | B86: BRIGADE | C86: 206.5 | D86: 202.88 | E86: 195.87 | F86: 185.23 | G86: 178.22 | H86: 213.52 | I86: 220.53 | J86: 231.17 | K86: 209.9 | L86: 192.25 | M86: 1.06483
A87: 77 | B87: BRITANNIA | C87: 3290.1 | D87: 3321.70 | E87: 3244.40 | F87: 3198.70 | G87: 3121.40 | H87: 3367.40 | I87: 3444.70 | J87: 3490.40 | K87: 3399 | L87: 3276 | M87: 4.96662
A88: 78 | B88: CARERATING | C88: 538 | D88: 537.37 | E88: 534.73 | F88: 531.47 | G88: 528.83 | H88: 540.63 | I88: 543.27 | J88: 546.53 | K88: 540 | L88: 534.1 | M88: 0.27164
A89: 79 | B89: CCL | C89: 203.7 | D89: 203.90 | E89: 199.80 | F89: 195.90 | G89: 191.80 | H89: 207.80 | I89: 211.90 | J89: 215.80 | K89: 208 | L89: 200 | M89: 0.49432
A90: 80 | B90: CESC | C90: 809.8 | D90: 811.68 | E90: 803.62 | F90: 797.43 | G90: 789.37 | H90: 817.87 | I90: 825.93 | J90: 832.12 | K90: 819.75 | L90: 805.5 | M90: 1.71937
A91: 81 | B91: CGPOWER | C91: 14.65 | D91: 14.73 | E91: 14.47 | F91: 14.28 | G91: 14.02 | H91: 14.92 | I91: 15.18 | J91: 15.37 | K91: 15 | L91: 14.55 | M91: 3.4732
A92: 82 | B92: CRISIL | C92: 1404.55 | D92: 1396.93 | E92: 1385.87 | F92: 1367.18 | G92: 1356.12 | H92: 1415.62 | I92: 1426.68 | J92: 1445.37 | K92: 1408 | L92: 1378.25 | M92: 0.08901
A93: 83 | B93: CADILAHC | C93: 250.05 | D93: 249.52 | E93: 247.13 | F93: 244.22 | G93: 241.83 | H93: 252.43 | I93: 254.82 | J93: 257.73 | K93: 251.9 | L93: 246.6 | M93: 5.91101
A94: 84 | B94: CANFINHOME | C94: 394.55 | D94: 396.45 | E94: 390.90 | F94: 387.25 | G94: 381.70 | H94: 400.10 | I94: 405.65 | J94: 409.30 | K94: 402 | L94: 392.8 | M94: 1.22641
A95: 85 | B95: CANBK | C95: 200.05 | D95: 198.77 | E95: 195.43 | F95: 190.82 | G95: 187.48 | H95: 203.38 | I95: 206.72 | J95: 211.33 | K95: 202.1 | L95: 194.15 | M95: 76.26092
A96: 86 | B96: CAPLIPOINT | C96: 396.05 | D96: 397.95 | E96: 386.50 | F96: 376.95 | G96: 365.50 | H96: 407.50 | I96: 418.95 | J96: 428.50 | K96: 409.4 | L96: 388.4 | M96: 2.41693
A97: 87 | B97: CGCL | C97: 200.45 | D97: 200.75 | E97: 196.80 | F97: 193.15 | G97: 189.20 | H97: 204.40 | I97: 208.35 | J97: 212.00 | K97: 204.7 | L97: 197.1 | M97: 3.97576
A98: 88 | B98: CARBORUNIV | C98: 313.1 | D98: 310.55 | E98: 306.60 | F98: 300.10 | G98: 296.15 | H98: 317.05 | I98: 321.00 | J98: 327.50 | K98: 314.5 | L98: 304.05 | M98: 0.4355
A99: 89 | B99: CASTROLIND | C99: 153.3 | D99: 154.43 | E99: 149.47 | F99: 145.63 | G99: 140.67 | H99: 158.27 | I99: 163.23 | J99: 167.07 | K99: 159.4 | L99: 150.6 | M99: 45.23284
A100: 90 | B100: CEATLTD | C100: 967 | D100: 967.23 | E100: 960.77 | F100: 954.53 | G100: 948.07 | H100: 973.47 | I100: 979.93 | J100: 986.17 | K100: 973.7 | L100: 961 | M100: 0.60568
A101: 91 | B101: CENTRALBK | C101: 20.85 | D101: 20.17 | E101: 18.73 | F101: 16.62 | G101: 15.18 | H101: 22.28 | I101: 23.72 | J101: 25.83 | K101: 21.6 | L101: 18.05 | M101: 31.83329
A102: 92 | B102: CDSL | C102: 224.85 | D102: 221.12 | E102: 211.73 | F102: 198.62 | G102: 189.23 | H102: 234.23 | I102: 243.62 | J102: 256.73 | K102: 230.5 | L102: 208 | M102: 19.36302
A103: 93 | B103: CENTURYPLY | C103: 163.05 | D103: 164.25 | E103: 160.80 | F103: 158.55 | G103: 155.10 | H103: 166.50 | I103: 169.95 | J103: 172.20 | K103: 167.7 | L103: 162 | M103: 0.81992
A104: 94 | B104: CERA | C104: 2580.45 | D104: 2603.17 | E104: 2518.33 | F104: 2456.22 | G104: 2371.38 | H104: 2665.28 | I104: 2750.12 | J104: 2812.23 | K104: 2688 | L104: 2541.05 | M104: 0.08062
A105: 95 | B105: CHALET | C105: 319 | D105: 321.97 | E105: 313.03 | F105: 307.07 | G105: 298.13 | H105: 327.93 | I105: 336.87 | J105: 342.83 | K105: 330.9 | L105: 316 | M105: 0.03312
A106: 96 | B106: CHAMBLFERT | C106: 160.15 | D106: 160.58 | E106: 158.67 | F106: 157.18 | G106: 155.27 | H106: 162.07 | I106: 163.98 | J106: 165.47 | K106: 162.5 | L106: 159.1 | M106: 1.26362
A107: 97 | B107: CHENNPETRO | C107: 155.7 | D107: 155.85 | E107: 154.90 | F107: 154.10 | G107: 153.15 | H107: 156.65 | I107: 157.60 | J107: 158.40 | K107: 156.8 | L107: 155.05 | M107: 2.18298
A108: 98 | B108: CHOLAHLDNG | C108: 459.15 | D108: 456.77 | E108: 452.68 | F108: 446.22 | G108: 442.13 | H108: 463.23 | I108: 467.32 | J108: 473.78 | K108: 460.85 | L108: 450.3 | M108: 0.17374
A109: 99 | B109: CHOLAFIN | C109: 307.1 | D109: 304.03 | E109: 299.07 | F109: 291.03 | G109: 286.07 | H109: 312.07 | I109: 317.03 | J109: 325.07 | K109: 309 | L109: 296 | M109: 16.12084
A110: 100 | B110: CIPLA | C110: 465 | D110: 468.73 | E110: 458.52 | F110: 452.03 | G110: 441.82 | H110: 475.22 | I110: 485.43 | J110: 491.92 | K110: 478.95 | L110: 462.25 | M110: 26.40132
A111: 101 | B111: CUB | C111: 208.35 | D111: 209.45 | E111: 206.90 | F111: 205.45 | G111: 202.90 | H111: 210.90 | I111: 213.45 | J111: 214.90 | K111: 212 | L111: 208 | M111: 2.69978
A112: 102 | B112: COALINDIA | C112: 206.25 | D112: 207.60 | E112: 204.25 | F112: 202.25 | G112: 198.90 | H112: 209.60 | I112: 212.95 | J112: 214.95 | K112: 210.95 | L112: 205.6 | M112: 44.87164
A113: 103 | B113: COCHINSHIP | C113: 396.2 | D113: 396.90 | E113: 385.30 | F113: 374.40 | G113: 362.80 | H113: 407.80 | I113: 419.40 | J113: 430.30 | K113: 408.5 | L113: 386 | M113: 3.88154
A114: 104 | B114: COFFEEDAY | C114: 29.1 | D114: 28.20 | E114: 27.30 | F114: 25.50 | G114: 24.60 | H114: 30.00 | I114: 30.90 | J114: 32.70 | K114: 29.1 | L114: 26.4 | M114: 16.26964
A115: 105 | B115: COLPAL | C115: 1535.25 | D115: 1528.23 | E115: 1517.07 | F115: 1498.88 | G115: 1487.72 | H115: 1546.42 | I115: 1557.58 | J115: 1575.77 | K115: 1539.4 | L115: 1510.05 | M115: 4.40097
A116: 106 | B116: CONCOR | C116: 592.85 | D116: 596.37 | E116: 584.93 | F116: 577.02 | G116: 565.58 | H116: 604.28 | I116: 615.72 | J116: 623.63 | K116: 607.8 | L116: 588.45 | M116: 17.51576
A117: 107 | B117: COROMANDEL | C117: 470.55 | D117: 469.52 | E117: 466.03 | F117: 461.52 | G117: 458.03 | H117: 474.03 | I117: 477.52 | J117: 482.03 | K117: 473 | L117: 465 | M117: 1.49693
A118: 108 | B118: CORPBANK | C118: 15.5 | D118: 15.37 | E118: 14.83 | F118: 14.17 | G118: 13.63 | H118: 16.03 | I118: 16.57 | J118: 17.23 | K118: 15.9 | L118: 14.7 | M118: 5.86009
A119: 109 | B119: COX&KINGS | C119: 1.8 | D119: 1.80 | E119: 1.80 | F119: 1.80 | G119: 1.80 | H119: 1.80 | I119: 1.80 | J119: 1.80 | K119: 1.8 | L119: 1.8 | M119: 3.0624
A120: 110 | B120: CREDITACC | C120: 644.15 | D120: 650.83 | E120: 635.67 | F120: 627.18 | G120: 612.02 | H120: 659.32 | I120: 674.48 | J120: 682.97 | K120: 666 | L120: 642.35 | M120: 0.45478
A121: 111 | B121: CROMPTON | C121: 249.45 | D121: 250.83 | E121: 246.92 | F121: 244.38 | G121: 240.47 | H121: 253.37 | I121: 257.28 | J121: 259.82 | K121: 254.75 | L121: 248.3 | M121: 4.14063
A122: 112 | B122: CUMMINSIND | C122: 554.15 | D122: 551.08 | E122: 544.42 | F122: 534.68 | G122: 528.02 | H122: 560.82 | I122: 567.48 | J122: 577.22 | K122: 557.75 | L122: 541.35 | M122: 9.44203
A123: 113 | B123: CYIENT | C123: 399.3 | D123: 401.10 | E123: 396.20 | F123: 393.10 | G123: 388.20 | H123: 404.20 | I123: 409.10 | J123: 412.20 | K123: 406 | L123: 398 | M123: 1.00942
A124: 114 | B124: DBCORP | C124: 147.85 | D124: 148.72 | E124: 144.53 | F124: 141.22 | G124: 137.03 | H124: 152.03 | I124: 156.22 | J124: 159.53 | K124: 152.9 | L124: 145.4 | M124: 0.80785
A125: 115 | B125: DCBBANK | C125: 176.85 | D125: 177.23 | E125: 175.77 | F125: 174.68 | G125: 173.22 | H125: 178.32 | I125: 179.78 | J125: 180.87 | K125: 178.7 | L125: 176.15 | M125: 16.30378
A126: 116 | B126: DCMSHRIRAM | C126: 374.85 | D126: 377.50 | E126: 371.20 | F126: 367.55 | G126: 361.25 | H126: 381.15 | I126: 387.45 | J126: 391.10 | K126: 383.8 | L126: 373.85 | M126: 0.59706
A127: 117 | B127: DLF | C127: 181.55 | D127: 181.27 | E127: 179.53 | F127: 177.52 | G127: 175.78 | H127: 183.28 | I127: 185.02 | J127: 187.03 | K127: 183 | L127: 179.25 | M127: 65.63814
A128: 118 | B128: DABUR | C128: 460.35 | D128: 461.70 | E128: 455.60 | F128: 450.85 | G128: 444.75 | H128: 466.45 | I128: 472.55 | J128: 477.30 | K128: 467.8 | L128: 456.95 | M128: 17.96647
A129: 119 | B129: DALBHARAT | C129: 814.35 | D129: 814.95 | E129: 807.90 | F129: 801.45 | G129: 794.40 | H129: 821.40 | I129: 828.45 | J129: 834.90 | K129: 822 | L129: 808.5 | M129: 0.39173
A130: 120 | B130: DEEPAKNTR | C130: 341.1 | D130: 342.50 | E130: 336.60 | F130: 332.10 | G130: 326.20 | H130: 347.00 | I130: 352.90 | J130: 357.40 | K130: 348.4 | L130: 338 | M130: 2.78725
A131: 121 | B131: DELTACORP | C131: 205.15 | D131: 204.98 | E131: 199.22 | F131: 193.28 | G131: 187.52 | H131: 210.92 | I131: 216.68 | J131: 222.62 | K131: 210.75 | L131: 199.05 | M131: 21.05447
A132: 122 | B132: DEN | C132: 48.1 | D132: 48.23 | E132: 47.47 | F132: 46.83 | G132: 46.07 | H132: 48.87 | I132: 49.63 | J132: 50.27 | K132: 49 | L132: 47.6 | M132: 0.19564
A133: 123 | B133: DHFL | C133: 16.65 | D133: 16.15 | E133: 15.65 | F133: 14.65 | G133: 14.15 | H133: 17.15 | I133: 17.65 | J133: 18.65 | K133: 16.65 | L133: 15.15 | M133: 39.7995
A134: 124 | B134: DBL | C134: 430.6 | D134: 432.62 | E134: 422.78 | F134: 414.97 | G134: 405.13 | H134: 440.43 | I134: 450.27 | J134: 458.08 | K134: 442.45 | L134: 424.8 | M134: 2.65526
A135: 125 | B135: DISHTV | C135: 10.7 | D135: 10.88 | E135: 10.37 | F135: 10.03 | G135: 9.52 | H135: 11.22 | I135: 11.73 | J135: 12.07 | K135: 11.4 | L135: 10.55 | M135: 262.9179
A136: 126 | B136: DCAL | C136: 117.05 | D136: 116.87 | E136: 111.28 | F136: 105.52 | G136: 99.93 | H136: 122.63 | I136: 128.22 | J136: 133.98 | K136: 122.45 | L136: 111.1 | M136: 3.50948
A137: 127 | B137: DIVISLAB | C137: 1736.6 | D137: 1742.18 | E137: 1723.42 | F137: 1710.23 | G137: 1691.47 | H137: 1755.37 | I137: 1774.13 | J137: 1787.32 | K137: 1760.95 | L137: 1729 | M137: 3.35535
A138: 128 | B138: DIXON | C138: 2971.55 | D138: 2991.55 | E138: 2943.10 | F138: 2914.65 | G138: 2866.20 | H138: 3020.00 | I138: 3068.45 | J138: 3096.90 | K138: 3040 | L138: 2963.1 | M138: 0.07347
A139: 129 | B139: LALPATHLAB | C139: 1585.15 | D139: 1595.82 | E139: 1561.63 | F139: 1538.12 | G139: 1503.93 | H139: 1619.33 | I139: 1653.52 | J139: 1677.03 | K139: 1630 | L139: 1572.3 | M139: 0.69799
A140: 130 | B140: DRREDDY | C140: 2759.9 | D140: 2776.82 | E140: 2724.63 | F140: 2689.37 | G140: 2637.18 | H140: 2812.08 | I140: 2864.27 | J140: 2899.53 | K140: 2829 | L140: 2741.55 | M140: 5.93147
A141: 131 | B141: EIDPARRY | C141: 171.95 | D141: 171.50 | E141: 168.70 | F141: 165.45 | G141: 162.65 | H141: 174.75 | I141: 177.55 | J141: 180.80 | K141: 174.3 | L141: 168.25 | M141: 2.60483
A142: 132 | B142: EIHOTEL | C142: 169.8 | D142: 170.28 | E142: 168.12 | F142: 166.43 | G142: 164.27 | H142: 171.97 | I142: 174.13 | J142: 175.82 | K142: 172.45 | L142: 168.6 | M142: 0.99008
A143: 133 | B143: EDELWEISS | C143: 92.65 | D143: 92.53 | E143: 91.12 | F143: 89.58 | G143: 88.17 | H143: 94.07 | I143: 95.48 | J143: 97.02 | K143: 93.95 | L143: 91 | M143: 22.79462
A144: 134 | B144: EICHERMOT | C144: 22511.5 | D144: 22236.83 | E144: 21874.67 | F144: 21237.83 | G144: 20875.67 | H144: 22873.67 | I144: 23235.83 | J144: 23872.67 | K144: 22599 | L144: 21600 | M144: 2.02269
A145: 135 | B145: ELGIEQUIP | C145: 278.85 | D145: 280.13 | E145: 276.27 | F145: 273.68 | G145: 269.82 | H145: 282.72 | I145: 286.58 | J145: 289.17 | K145: 284 | L145: 277.55 | M145: 0.08678
A146: 136 | B146: EMAMILTD | C146: 325.85 | D146: 328.22 | E146: 321.53 | F146: 317.22 | G146: 310.53 | H146: 332.53 | I146: 339.22 | J146: 343.53 | K146: 334.9 | L146: 323.9 | M146: 1.89502
A147: 137 | B147: ENDURANCE | C147: 1056.6 | D147: 1055.48 | E147: 1041.12 | F147: 1025.63 | G147: 1011.27 | H147: 1070.97 | I147: 1085.33 | J147: 1100.82 | K147: 1069.85 | L147: 1040 | M147: 0.06428
A148: 138 | B148: ENGINERSIN | C148: 117.6 | D148: 116.33 | E148: 113.27 | F148: 108.93 | G148: 105.87 | H148: 120.67 | I148: 123.73 | J148: 128.07 | K148: 119.4 | L148: 112 | M148: 36.65371
A149: 139 | B149: EQUITAS | C149: 94.7 | D149: 95.18 | E149: 93.52 | F149: 92.33 | G149: 90.67 | H149: 96.37 | I149: 98.03 | J149: 99.22 | K149: 96.85 | L149: 94 | M149: 25.27331
A150: 140 | B150: ERIS | C150: 447.95 | D150: 450.72 | E150: 438.33 | F150: 428.72 | G150: 416.33 | H150: 460.33 | I150: 472.72 | J150: 482.33 | K150: 463.1 | L150: 441.1 | M150: 0.46354
A151: 141 | B151: ESCORTS | C151: 666.05 | D151: 665.33 | E151: 658.02 | F151: 649.98 | G151: 642.67 | H151: 673.37 | I151: 680.68 | J151: 688.72 | K151: 672.65 | L151: 657.3 | M151: 20.0119
A152: 142 | B152: ESSELPACK | C152: 113.4 | D152: 112.80 | E152: 109.65 | F152: 105.90 | G152: 102.75 | H152: 116.55 | I152: 119.70 | J152: 123.45 | K152: 115.95 | L152: 109.05 | M152: 0.6917
A153: 143 | B153: EXIDEIND | C153: 181.5 | D153: 182.13 | E153: 179.87 | F153: 178.23 | G153: 175.97 | H153: 183.77 | I153: 186.03 | J153: 187.67 | K153: 184.4 | L153: 180.5 | M153: 25.43054
A154: 144 | B154: FDC | C154: 180.8 | D154: 180.98 | E154: 177.62 | F154: 174.43 | G154: 171.07 | H154: 184.17 | I154: 187.53 | J154: 190.72 | K154: 184.35 | L154: 177.8 | M154: 0.64209
A155: 145 | B155: FEDERALBNK | C155: 82.05 | D155: 82.22 | E155: 81.58 | F155: 81.12 | G155: 80.48 | H155: 82.68 | I155: 83.32 | J155: 83.78 | K155: 82.85 | L155: 81.75 | M155: 91.0983
A156: 146 | B156: FMGOETZE | C156: 550.2 | D156: 552.73 | E156: 546.47 | F156: 542.73 | G156: 536.47 | H156: 556.47 | I156: 562.73 | J156: 566.47 | K156: 559 | L156: 549 | M156: 0.0064
A157: 147 | B157: FINEORG | C157: 1913.4 | D157: 1914.83 | E157: 1889.67 | F157: 1865.93 | G157: 1840.77 | H157: 1938.57 | I157: 1963.73 | J157: 1987.47 | K157: 1940 | L157: 1891.1 | M157: 0.05901
A158: 148 | B158: FINCABLES | C158: 388.05 | D158: 385.35 | E158: 380.70 | F158: 373.35 | G158: 368.70 | H158: 392.70 | I158: 397.35 | J158: 404.70 | K158: 390 | L158: 378 | M158: 0.28623
A159: 149 | B159: FINPIPE | C159: 605.75 | D159: 606.62 | E159: 601.13 | F159: 596.52 | G159: 591.03 | H159: 611.23 | I159: 616.72 | J159: 621.33 | K159: 612.1 | L159: 602 | M159: 0.70682
A160: 150 | B160: FSL | C160: 49 | D160: 49.40 | E160: 48.00 | F160: 47.00 | G160: 45.60 | H160: 50.40 | I160: 51.80 | J160: 52.80 | K160: 50.8 | L160: 48.4 | M160: 18.4637
A161: 151 | B161: FORTIS | C161: 139 | D161: 139.23 | E161: 137.87 | F161: 136.73 | G161: 135.37 | H161: 140.37 | I161: 141.73 | J161: 142.87 | K161: 140.6 | L161: 138.1 | M161: 9.05366
A162: 152 | B162: FCONSUMER | C162: 24.5 | D162: 24.62 | E162: 24.08 | F162: 23.67 | G162: 23.13 | H162: 25.03 | I162: 25.57 | J162: 25.98 | K162: 25.15 | L162: 24.2 | M162: 10.11742
A163: 153 | B163: FLFL | C163: 412.2 | D163: 411.75 | E163: 408.50 | F163: 404.80 | G163: 401.55 | H163: 415.45 | I163: 418.70 | J163: 422.40 | K163: 415 | L163: 408.05 | M163: 0.23029
A164: 154 | B164: FRETAIL | C164: 384.65 | D164: 385.23 | E164: 380.72 | F164: 376.78 | G164: 372.27 | H164: 389.17 | I164: 393.68 | J164: 397.62 | K164: 389.75 | L164: 381.3 | M164: 1.1631
A165: 155 | B165: GAIL | C165: 133.6 | D165: 131.07 | E165: 128.13 | F165: 122.67 | G165: 119.73 | H165: 136.53 | I165: 139.47 | J165: 144.93 | K165: 134 | L165: 125.6 | M165: 159.23937
A166: 156 | B166: GEPIL | C166: 735.5 | D166: 731.77 | E166: 723.73 | F166: 711.97 | G166: 703.93 | H166: 743.53 | I166: 751.57 | J166: 763.33 | K166: 739.8 | L166: 720 | M166: 0.14059
A167: 157 | B167: GET&D | C167: 205.4 | D167: 203.25 | E167: 192.10 | F167: 178.80 | G167: 167.65 | H167: 216.55 | I167: 227.70 | J167: 241.00 | K167: 214.4 | L167: 189.95 | M167: 0.96909
A168: 158 | B168: GHCL | C168: 216.5 | D168: 218.20 | E168: 213.85 | F168: 211.20 | G168: 206.85 | H168: 220.85 | I168: 225.20 | J168: 227.85 | K168: 222.55 | L168: 215.55 | M168: 0.55938
A169: 159 | B169: GMRINFRA | C169: 20.65 | D169: 20.62 | E169: 20.28 | F169: 19.92 | G169: 19.58 | H169: 20.98 | I169: 21.32 | J169: 21.68 | K169: 20.95 | L169: 20.25 | M169: 135.02437
A170: 160 | B170: GALAXYSURF | C170: 1479.9 | D170: 1498.15 | E170: 1447.30 | F170: 1414.70 | G170: 1363.85 | H170: 1530.75 | I170: 1581.60 | J170: 1614.20 | K170: 1549 | L170: 1465.55 | M170: 0.09449
A171: 161 | B171: GARFIBRES | C171: 1150.75 | D171: 1147.78 | E171: 1125.57 | F171: 1100.38 | G171: 1078.17 | H171: 1172.97 | I171: 1195.18 | J171: 1220.37 | K171: 1170 | L171: 1122.6 | M171: 0.17301
A172: 162 | B172: GAYAPROJ | C172: 128.2 | D172: 128.85 | E172: 125.95 | F172: 123.70 | G172: 120.80 | H172: 131.10 | I172: 134.00 | J172: 136.25 | K172: 131.75 | L172: 126.6 | M172: 1.26584
A173: 163 | B173: GICRE | C173: 317.65 | D173: 313.82 | E173: 297.83 | F173: 278.02 | G173: 262.03 | H173: 333.63 | I173: 349.62 | J173: 369.43 | K173: 329.8 | L173: 294 | M173: 24.47364
A174: 164 | B174: GILLETTE | C174: 8086.2 | D174: 8061.33 | E174: 8025.87 | F174: 7965.53 | G174: 7930.07 | H174: 8121.67 | I174: 8157.13 | J174: 8217.47 | K174: 8096.8 | L174: 8001 | M174: 0.04805
A175: 165 | B175: GLAXO | C175: 1599.05 | D175: 1599.65 | E175: 1574.30 | F175: 1549.55 | G175: 1524.20 | H175: 1624.40 | I175: 1649.75 | J175: 1674.50 | K175: 1625 | L175: 1574.9 | M175: 0.55638
A176: 166 | B176: GLENMARK | C176: 309.7 | D176: 311.08 | E176: 305.52 | F176: 301.33 | G176: 295.77 | H176: 315.27 | I176: 320.83 | J176: 325.02 | K176: 316.65 | L176: 306.9 | M176: 14.24761
A177: 167 | B177: GODFRYPHLP | C177: 1098.4 | D177: 1101.15 | E177: 1072.30 | F177: 1046.20 | G177: 1017.35 | H177: 1127.25 | I177: 1156.10 | J177: 1182.20 | K177: 1130 | L177: 1075.05 | M177: 0.92068
A178: 168 | B178: GODREJAGRO | C178: 516.65 | D178: 516.22 | E178: 507.43 | F178: 498.22 | G178: 489.43 | H178: 525.43 | I178: 534.22 | J178: 543.43 | K178: 525 | L178: 507 | M178: 0.40244
A179: 169 | B179: GODREJCP | C179: 732.95 | D179: 730.58 | E179: 721.17 | F179: 709.38 | G179: 699.97 | H179: 742.37 | I179: 751.78 | J179: 763.57 | K179: 740 | L179: 718.8 | M179: 6.7141
A180: 170 | B180: GODREJIND | C180: 414.1 | D180: 412.30 | E180: 409.60 | F180: 405.10 | G180: 402.40 | H180: 416.80 | I180: 419.50 | J180: 424.00 | K180: 415 | L180: 407.8 | M180: 0.934
A181: 171 | B181: GODREJPROP | C181: 993.55 | D181: 998.25 | E181: 984.30 | F181: 975.05 | G181: 961.10 | H181: 1007.50 | I181: 1021.45 | J181: 1030.70 | K181: 1012.2 | L181: 989 | M181: 1.81808
A182: 172 | B182: GRANULES | C182: 129.25 | D182: 129.83 | E182: 125.92 | F182: 122.58 | G182: 118.67 | H182: 133.17 | I182: 137.08 | J182: 140.42 | K182: 133.75 | L182: 126.5 | M182: 18.3846
A183: 173 | B183: GRAPHITE | C183: 282.7 | D183: 286.83 | E183: 274.37 | F183: 266.03 | G183: 253.57 | H183: 295.17 | I183: 307.63 | J183: 315.97 | K183: 299.3 | L183: 278.5 | M183: 33.52904
A184: 174 | B184: GRASIM | C184: 734.95 | D184: 730.32 | E184: 719.33 | F184: 703.72 | G184: 692.73 | H184: 745.93 | I184: 756.92 | J184: 772.53 | K184: 741.3 | L184: 714.7 | M184: 22.60375
A185: 175 | B185: GESHIP | C185: 293.95 | D185: 296.08 | E185: 290.62 | F185: 287.28 | G185: 281.82 | H185: 299.42 | I185: 304.88 | J185: 308.22 | K185: 301.55 | L185: 292.75 | M185: 0.45161
A186: 176 | B186: GREAVESCOT | C186: 137.65 | D186: 137.57 | E186: 134.33 | F186: 131.02 | G186: 127.78 | H186: 140.88 | I186: 144.12 | J186: 147.43 | K186: 140.8 | L186: 134.25 | M186: 1.5045
A187: 177 | B187: GRINDWELL | C187: 598.55 | D187: 603.32 | E187: 591.63 | F187: 584.72 | G187: 573.03 | H187: 610.23 | I187: 621.92 | J187: 628.83 | K187: 615 | L187: 596.4 | M187: 0.0912
A188: 178 | B188: GUJALKALI | C188: 452.8 | D188: 454.98 | E188: 448.32 | F188: 443.83 | G188: 437.17 | H188: 459.47 | I188: 466.13 | J188: 470.62 | K188: 461.65 | L188: 450.5 | M188: 0.17417
A189: 179 | B189: GUJGASLTD | C189: 195.7 | D189: 194.92 | E189: 187.33 | F189: 178.97 | G189: 171.38 | H189: 203.28 | I189: 210.87 | J189: 219.23 | K189: 202.5 | L189: 186.55 | M189: 11.97477
A190: 180 | B190: GMDCLTD | C190: 64.1 | D190: 63.10 | E190: 61.50 | F190: 58.90 | G190: 57.30 | H190: 65.70 | I190: 67.30 | J190: 69.90 | K190: 64.7 | L190: 60.5 | M190: 5.89809
A191: 181 | B191: GNFC | C191: 206.05 | D191: 206.72 | E191: 204.33 | F191: 202.62 | G191: 200.23 | H191: 208.43 | I191: 210.82 | J191: 212.53 | K191: 209.1 | L191: 205 | M191: 2.84415
A192: 182 | B192: GPPL | C192: 82 | D192: 82.40 | E192: 80.15 | F192: 78.30 | G192: 76.05 | H192: 84.25 | I192: 86.50 | J192: 88.35 | K192: 84.65 | L192: 80.55 | M192: 22.35404
A193: 183 | B193: GSFC | C193: 77.85 | D193: 78.08 | E193: 77.37 | F193: 76.88 | G193: 76.17 | H193: 78.57 | I193: 79.28 | J193: 79.77 | K193: 78.8 | L193: 77.6 | M193: 2.94249
A194: 184 | B194: GSPL | C194: 202.25 | D194: 203.92 | E194: 199.43 | F194: 196.62 | G194: 192.13 | H194: 206.73 | I194: 211.22 | J194: 214.03 | K194: 208.4 | L194: 201.1 | M194: 7.3741
A195: 185 | B195: GULFOILLUB | C195: 870.4 | D195: 868.50 | E195: 861.90 | F195: 853.40 | G195: 846.80 | H195: 877.00 | I195: 883.60 | J195: 892.10 | K195: 875.1 | L195: 860 | M195: 0.09506
A196: 186 | B196: HEG | C196: 1004.3 | D196: 1010.60 | E196: 982.70 | F196: 961.10 | G196: 933.20 | H196: 1032.20 | I196: 1060.10 | J196: 1081.70 | K196: 1038.5 | L196: 989 | M196: 4.38317
A197: 187 | B197: HCLTECH | C197: 1146.75 | D197: 1144.98 | E197: 1139.97 | F197: 1133.18 | G197: 1128.17 | H197: 1151.77 | I197: 1156.78 | J197: 1163.57 | K197: 1150 | L197: 1138.2 | M197: 12.20876
A198: 188 | B198: HDFCAMC | C198: 2985.85 | D198: 3003.63 | E198: 2957.32 | F198: 2928.78 | G198: 2882.47 | H198: 3032.17 | I198: 3078.48 | J198: 3107.02 | K198: 3049.95 | L198: 2975.1 | M198: 3.2971
A199: 189 | B199: HDFCBANK | C199: 1248.35 | D199: 1251.35 | E199: 1240.00 | F199: 1231.65 | G199: 1220.30 | H199: 1259.70 | I199: 1271.05 | J199: 1279.40 | K199: 1262.7 | L199: 1243 | M199: 60.05683
A200: 190 | B200: HDFCLIFE | C200: 632.45 | D200: 619.07 | E200: 594.48 | F200: 556.52 | G200: 531.93 | H200: 657.03 | I200: 681.62 | J200: 719.58 | K200: 643.65 | L200: 581.1 | M200: 271.56751
A201: 191 | B201: HATHWAY | C201: 21.45 | D201: 21.53 | E201: 21.12 | F201: 20.78 | G201: 20.37 | H201: 21.87 | I201: 22.28 | J201: 22.62 | K201: 21.95 | L201: 21.2 | M201: 2.59632
A202: 192 | B202: HATSUN | C202: 598.1 | D202: 603.18 | E202: 589.92 | F202: 581.73 | G202: 568.47 | H202: 611.37 | I202: 624.63 | J202: 632.82 | K202: 616.45 | L202: 595 | M202: 0.04768
A203: 193 | B203: HAVELLS | C203: 689.65 | D203: 685.73 | E203: 673.97 | F203: 658.28 | G203: 646.52 | H203: 701.42 | I203: 713.18 | J203: 728.87 | K203: 697.5 | L203: 670.05 | M203: 24.32177
A204: 194 | B204: HEIDELBERG | C204: 184.3 | D204: 185.25 | E204: 182.70 | F204: 181.10 | G204: 178.55 | H204: 186.85 | I204: 189.40 | J204: 191.00 | K204: 187.8 | L204: 183.65 | M204: 2.61878
A205: 195 | B205: HERITGFOOD | C205: 301.4 | D205: 302.47 | E205: 291.93 | F205: 282.47 | G205: 271.93 | H205: 311.93 | I205: 322.47 | J205: 331.93 | K205: 313 | L205: 293 | M205: 1.51295
A206: 196 | B206: HEROMOTOCO | C206: 2684.5 | D206: 2692.83 | E206: 2668.67 | F206: 2652.83 | G206: 2628.67 | H206: 2708.67 | I206: 2732.83 | J206: 2748.67 | K206: 2717 | L206: 2677 | M206: 7.39316
... 320 more rows

Sheet Bulk Deals
E6: Back To Main Page
A7: Subject : | B7: BULK DEAL | D7: =Main!B10 -> 2019-10-31
A9: Date | B9: Scrip code | C9: Scrip Name | D9: Client Name | E9: Buy / Sell | F9: Quantity Traded | G9: Trade Price / Wt.Avg.trade price | H9: Exchange
A10: 2019-10-30 | B10: 511463 | C10: ALEXANDER | D10: KAHAR NIKLESH KANAIYABHAI | E10: BUY | F10: 25,050 | G10: 20.70 | H10: BSE
A11: 2019-10-30 | B11: 511463 | C11: ALEXANDER | D11: NITINKUMAR GOVINDBHAI SALVE | E11: BUY | F11: 46,910 | G11: 20.44 | H11: BSE
A12: 2019-10-30 | B12: 511463 | C12: ALEXANDER | D12: NITINKUMAR GOVINDBHAI SALVE | E12: SELL | F12: 27,000 | G12: 20.62 | H12: BSE
A13: 2019-10-30 | B13: 511463 | C13: ALEXANDER | D13: KAHAR NIKLESH KANAIYABHAI | E13: SELL | F13: 49,300 | G13: 20.53 | H13: BSE
A14: 2019-10-30 | B14: 537766 | C14: BCP | D14: JITAL ASHISH THAKAR | E14: BUY | F14: 453,232 | G14: 7.64 | H14: BSE
A15: 2019-10-30 | B15: 542678 | C15: CHCL | D15: NNM SECURITIES PVT LTD | E15: BUY | F15: 4,000 | G15: 19.45 | H15: BSE
A16: 2019-10-30 | B16: 542678 | C16: CHCL | D16: NEWEDGE VINIMAY PRIVATE LIMITED | E16: BUY | F16: 200,000 | G16: 21.08 | H16: BSE
A17: 2019-10-30 | B17: 542678 | C17: CHCL | D17: NNM SECURITIES PVT LTD | E17: SELL | F17: 202,000 | G17: 21.06 | H17: BSE
A18: 2019-10-30 | B18: 542727 | C18: CPML | D18: VIJETA BROKING INDIA PRIVATE LIMITED | E18: BUY | F18: 8,000 | G18: 28.10 | H18: BSE
A19: 2019-10-30 | B19: 542727 | C19: CPML | D19: VIJETA BROKING INDIA PRIVATE LIMITED | E19: SELL | F19: 28,000 | G19: 24.28 | H19: BSE
A20: 2019-10-30 | B20: 542727 | C20: CPML | D20: JAYSHRI S MEHTA | E20: BUY | F20: 20,000 | G20: 24.22 | H20: BSE
A21: 2019-10-30 | B21: 540777 | C21: HDFCLIFE | D21: EURO PACIFIC GROWITH FUND | E21: BUY | F21: 31,103,517 | G21: 575.53 | H21: BSE
A22: 2019-10-30 | B22: 540777 | C22: HDFCLIFE | D22: STANDARD LIFE (MAURITIUS HOLDINGS) 2006 LTD | E22: SELL | F22: 100,000,000 | G22: 575.15 | H22: BSE
A23: 2019-10-30 | B23: 536709 | C23: INDRENEW | D23: TEENA KIRTI JAIN | E23: BUY | F23: 37,852 | G23: 13.06 | H23: BSE
A24: 2019-10-30 | B24: 542446 | C24: JONJUA | D24: NIMESHKUMAR BALDEVBHAI PARMAR | E24: BUY | F24: 31,200 | G24: 32.08 | H24: BSE
A25: 2019-10-30 | B25: 542446 | C25: JONJUA | D25: NIMESHKUMAR BALDEVBHAI PARMAR | E25: SELL | F25: 20,800 | G25: 31.95 | H25: BSE
A26: 2019-10-30 | B26: 540243 | C26: NEWLIGHT | D26: SHASHI MAKKAD . | E26: SELL | F26: 15,313 | G26: 34.40 | H26: BSE
A27: 2019-10-30 | B27: 512217 | C27: PRISMMEDI | D27: MANISH NITIN THAKUR | E27: BUY | F27: 77,288 | G27: 25.99 | H27: BSE
A28: 2019-10-30 | B28: 512217 | C28: PRISMMEDI | D28: MANISH NITIN THAKUR | E28: SELL | F28: 1,500 | G28: 24.05 | H28: BSE
A29: 2019-10-30 | B29: 511557 | C29: PROFINC | D29: PURAN CHAND CHOUDHARY | E29: BUY | F29: 71,903 | G29: 22.5 | H29: BSE
A30: 2019-10-30 | B30: 511557 | C30: PROFINC | D30: NEHA ANUPAM GUPTA | E30: BUY | F30: 100,000 | G30: 22.47 | H30: BSE
A31: 2019-10-30 | B31: 511557 | C31: PROFINC | D31: PURAN CHAND CHOUDHARY | E31: SELL | F31: 60,000 | G31: 22.45 | H31: BSE
A32: 2019-10-30 | B32: 511557 | C32: PROFINC | D32: SAPNA BHAVESH SHAH | E32: SELL | F32: 48,893 | G32: 22.5 | H32: BSE
A33: 2019-10-30 | B33: 541634 | C33: RAWEDGE | D33: NNM SECURITIES PVT LTD | E33: BUY | F33: 1,600 | G33: 67 | H33: BSE
A34: 2019-10-30 | B34: 541634 | C34: RAWEDGE | D34: NEWEDGE VINIMAY PRIVATE LIMITED | E34: BUY | F34: 80,000 | G34: 70.6 | H34: BSE
A35: 2019-10-30 | B35: 541634 | C35: RAWEDGE | D35: NNM SECURITIES PVT LTD | E35: SELL | F35: 81,600 | G35: 70.58 | H35: BSE
A36: 2019-10-30 | B36: 542725 | C36: SBC | D36: VRIDHI KUJUR | E36: SELL | F36: 54,000 | G36: 25.73 | H36: BSE
A37: 2019-10-30 | B37: 532070 | C37: SUPRBPA | D37: REKHA NAVINKUMAR TANK | E37: SELL | F37: 30,000 | G37: 9.94 | H37: BSE
A38: 2019-10-30 | B38: ADROITINFO | C38: Adroit Infotech Limited | D38: SUNKERNENISUDHAKRANREDDY | E38: BUY | F38: 199,735 | G38: 6.85 | H38: NSE
A39: 2019-10-30 | B39: FELIX | C39: Felix Industries Ltd. | D39: SILKON TRADES LLP | E39: BUY | F39: 28,000 | G39: 15.5 | H39: NSE
A40: 2019-10-30 | B40: IBULHSGFIN | C40: Indiabulls Hsg Fin Ltd | D40: TOWER RESEARCH CAPITAL MARKETS INDIA PRIVATE LIMITED | E40: BUY | F40: 5,299,969 | G40: 217.02 | H40: NSE
A41: 2019-10-30 | B41: IBULHSGFIN | C41: Indiabulls Hsg Fin Ltd | D41: SURJECTIVE RESEARCH CAPITAL LLP | E41: BUY | F41: 2,413,894 | G41: 216.78 | H41: NSE
A42: 2019-10-30 | B42: JISLDVREQS | C42: Jain DVR Equity Shares | D42: SWATI PRASHANT PATEL | E42: BUY | F42: 115,263 | G42: 9.64 | H42: NSE
A43: 2019-10-30 | B43: KHFM | C43: KHFM Hos Fac Mana Ser Ltd | D43: INDIAPRIDE ADVISORY PRIVATE LIMITED | E43: BUY | F43: 57,000 | G43: 26.59 | H43: NSE
A44: 2019-10-30 | B44: LAKSHVILAS | C44: Lakshmi Vilas Bank Ltd | D44: ALPHA LEON ENTERPRISES LLP | E44: BUY | F44: 2,879,701 | G44: 13.85 | H44: NSE
A45: 2019-10-30 | B45: LAKSHVILAS | C45: Lakshmi Vilas Bank Ltd | D45: SETU SECURITIES PVT LTD | E45: BUY | F45: 1,900,415 | G45: 13.72 | H45: NSE
A46: 2019-10-30 | B46: YESBANK | C46: Yes Bank Limited | D46: TOWER RESEARCH CAPITAL MARKETS INDIA PRIVATE LIMITED | E46: BUY | F46: 31,196,262 | G46: 57.83 | H46: NSE
A47: 2019-10-30 | B47: ADROITINFO | C47: Adroit Infotech Limited | D47: JOKEMAN MEDIA AND ENTERTAINMENT PVT LTD | E47: SELL | F47: 200,000 | G47: 6.85 | H47: NSE
A48: 2019-10-30 | B48: CEREBRAINT | C48: Cerebra Int Tech Ltd | D48: BIPINKUMAR TULSIDAS PATEL | E48: SELL | F48: 738,414 | G48: 19.5 | H48: NSE
A49: 2019-10-30 | B49: IBULHSGFIN | C49: Indiabulls Hsg Fin Ltd | D49: SURJECTIVE RESEARCH CAPITAL LLP | E49: SELL | F49: 2,416,456 | G49: 216.84 | H49: NSE
A50: 2019-10-30 | B50: IBULHSGFIN | C50: Indiabulls Hsg Fin Ltd | D50: TOWER RESEARCH CAPITAL MARKETS INDIA PRIVATE LIMITED | E50: SELL | F50: 5,135,261 | G50: 217.28 | H50: NSE
A51: 2019-10-30 | B51: JISLDVREQS | C51: Jain DVR Equity Shares | D51: GARIMA GIRISH PURI | E51: SELL | F51: 105,000 | G51: 9.47 | H51: NSE
A52: 2019-10-30 | B52: KHFM | C52: KHFM Hos Fac Mana Ser Ltd | D52: SANJAY KUMAR SINGH | E52: SELL | F52: 57,000 | G52: 26.56 | H52: NSE
A53: 2019-10-30 | B53: LAKSHVILAS | C53: Lakshmi Vilas Bank Ltd | D53: ALPHA LEON ENTERPRISES LLP | E53: SELL | F53: 2,650,719 | G53: 14.03 | H53: NSE
A54: 2019-10-30 | B54: LAKSHVILAS | C54: Lakshmi Vilas Bank Ltd | D54: MOTILAL OSWAL ASSET MANAGEMENT COMPANY LIMITED PMS A/C IIS | E54: SELL | F54: 4,320,458 | G54: 13.93 | H54: NSE
A55: 2019-10-30 | B55: LAKSHVILAS | C55: Lakshmi Vilas Bank Ltd | D55: SETU SECURITIES PVT LTD | E55: SELL | F55: 2,020,398 | G55: 14.43 | H55: NSE
A56: 2019-10-30 | B56: ORTEL | C56: Ortel Communications Ltd | D56: RIVENDELL PE LLC | E56: SELL | F56: 305,603 | G56: 0.25 | H56: NSE
A57: 2019-10-30 | B57: SBILIFE | C57: SBI Life Insurance Co Ltd | D57: VALUE LINE PTE LTD | E57: SELL | F57: 5,467,000 | G57: 976.25 | H57: NSE
A58: 2019-10-30 | B58: YESBANK | C58: Yes Bank Limited | D58: TOWER RESEARCH CAPITAL MARKETS INDIA PRIVATE LIMITED | E58: SELL | F58: 30,221,202 | G58: 57.86 | H58: NSE

Sheet Call Tracker (Equity & F&O)
M5: Back To Main Page
A6: Retail Research Technical Calls & Fundamental Performance Report for the month of October-2019
M7: =Main!B10 -> 2019-10-31
B8: Positional Call
A9: Sr.no | B9: Date | D9: Company | E9: Rec | F9: Rec Price | G9: Stop Loss*** | H9: Call Closed At | I9: Target | J9: Remark | K9: Profit / Loss per Share | L9: Gain / Loss % | M9: Status | N9: Closed Date | O9: NSE Closed Price
A10: 1 | B10: 2019-08-30 | D10: BIOCON | E10: Buy{} | F10: 229.5 | G10: 214.3 | H10: 242.5 | I10: 255-260 | J10: Profit of Rs.13/- | K10: =H10-F10 -> 13 | L10: =K10/F10 -> 5.66% | M10: Successful | N10: 2019-10-10 | R10: R
A11: 2 | B11: 2019-09-09 | D11: TORNTPHARM | E11: Sell | F11: 1705 | G11: 1808 | H11: 1618 | I11: 1560-1540 | J11: Profit of Rs.87/- | K11: =F11-H11 -> 87 | L11: =K11/F11 -> 5.10% | M11: Successful | N11: 2019-10-01 | R11: R
A12: 3 | B12: 2019-09-25 | D12: AXISBANK | E12: Buy | F12: 695 | G12: 628 | H12: 730 | I12: 800-820 | J12: Profit of Rs.35/- | K12: =H12-F12 -> 35 | L12: 5.04% | M12: Successful | N12: 2019-10-23 | R12: H
A13: 4 | B13: 2019-09-26 | D13: HDFC | E13: Buy | F13: 2070 | G13: 1940 | H13: 2138 | I13: 2250-2300 | J13: Part Profit of Rs.68/- | K13: =H13-F13 -> 68 | L13: =K13/F13 -> 3.29% | M13: Successful | N13: 2019-10-22 | O13: =VLOOKUP(D13,Sheet2!A43:M1682,6,0) -> 2107.45 | R13: H
A14: 5 | B14: 2019-09-26 | D14: BANKBARODA | E14: Buy | F14: 96 | G14: 89 | H14: 89.5 | I14: 110-114 | J14: Loss of Rs.6.5/- | K14: =H14-F14 -> -6.5 | L14: =K14/F14 -> -6.77% | M14: UnSuccessful | N14: 2019-10-01 | R14: H
A15: 6 | B15: 2019-09-30 | D15: BPCL | E15: Sell | F15: 475 | G15: 510 | H15: 503 | I15: 420-410 | J15: Loss of Rs.28/- | K15: =F15-H15 -> -28 | L15: -5.89% | M15: UnSuccessful | N15: 2019-10-03 | R15: H
A16: 7 | B16: 2019-10-01 | D16: CUMMINSIND | E16: Buy | F16: 576.5 | G16: 530 | H16: 559.5 | I16: 640-660 | J16: Loss of Rs.17/- | K16: =H16-F16 -> -17 | L16: =K16/F16 -> -2.95% | M16: UnSuccessful | N16: 2019-10-24 | R16: H
A17: 8 | B17: 2019-10-01 | D17: UPL | E17: Buy | F17: 592-598 | G17: 564 | I17: 650-660 | J17: Open | O17: =VLOOKUP(D17,Sheet2!A47:M1686,6,0) -> 584.15 | R17: R
A18: 9 | B18: 2019-10-03 | D18: HEIDELBERG | E18: Buy | F18: 183 | G18: 169 | H18: 195 | I18: 205-210 | J18: Profit of Rs.12/- | K18: =H18-F18 -> 12 | L18: =K18/F18 -> 6.56% | M18: Successful | N18: 2019-10-18 | R18: H
A19: 10 | B19: 2019-10-03 | D19: APOLLOHOSP | E19: Buy{} | F19: 1378.5 | G19: 1286 | H19: 1448 | I19: 1550-1580 | J19: Profit of Rs.69.5/- | K19: =H19-F19 -> 69.5 | L19: =K19/F19 -> 5.04% | M19: Successful | N19: 2019-10-11 | R19: R
A20: 11 | B20: 2019-10-04 | D20: HDFCAMC | E20: Buy | F20: 2665 | G20: 2537 | H20: 2835 | I20: 2930-2960 | J20: Profit of Rs.170/- | K20: =H20-F20 -> 170 | L20: =K20/F20 -> 6.38% | M20: Successful | N20: 2019-10-18 | R20: R
A21: 12 | B21: 2019-10-07 | D21: PIDILITIND | E21: Buy | F21: 1365-1370 | G21: 1297 | I21: 1500-1520 | J21: Open | O21: =VLOOKUP(D21,Sheet2!A51:M1690,6,0) -> 1365.2 | R21: R
A22: 13 | B22: 2019-10-07 | D22: AMBUJACEM | E22: Buy | F22: 189 | G22: 179 | H22: 200.5 | I22: 205-210 | J22: Profit of Rs.11.5/- | K22: =H22-F22 -> 11.5 | L22: =K22/F22 -> 6.08% | M22: Successful | N22: 2019-10-16 | R22: R
A23: 14 | B23: 2019-10-09 | D23: ACC | E23: Buy | F23: 1440 | G23: 1345 | H23: 1537.5 | I23: 1600-1650 | J23: Profit of Rs.97.5/- | K23: =H23-F23 -> 97.5 | L23: =K23/F23 -> 6.77% | M23: Successful | N23: 2019-10-16 | R23: H
A24: 15 | B24: 2019-10-10 | D24: MOTHERSUMI | E24: Buy{} | F24: 94.5 | G24: 87.7 | H24: 100.5 | I24: 103-106 | J24: Profit of Rs.6/- | K24: =H24-F24 -> 6 | L24: =K24/F24 -> 6.35% | M24: Successful | N24: 2019-10-14 | R24: R
A25: 16 | B25: 2019-10-10 | D25: CIPLA | E25: Buy | F25: 425.5 | G25: 398 | H25: 398 | I25: 470-480 | J25: Loss of Rs.27.5/- | K25: -27.5 | L25: =K25/F25 -> -6.46% | M25: UnSuccessful | N25: 2019-10-11 | R25: R
A26: 17 | B26: 2019-10-10 | D26: POWERGRID | E26: Buy | F26: 197 | G26: 187 | H26: 207.5 | I26: 215-220 | J26: Profit of Rs.10.5/- | K26: =H26-F26 -> 10.5 | L26: 5.33% | M26: Successful | N26: 2019-10-22 | R26: R
A27: 18 | B27: 2019-10-16 | D27: INFY | E27: Buy | F27: 770 | G27: 736 | H27: 691.1 | I27: 835-845 | J27: Loss of Rs.78.90/- | K27: -78.9 | L27: =K27/F27 -> -10.25% | M27: UnSuccessful | N27: 2019-10-22 | R27: R
A28: 19 | B28: 2019-10-22 | D28: HEIDELBERG | E28: Buy | F28: 187.50-189.50 | G28: 178 | I28: 205-210 | J28: Open | O28: =VLOOKUP(D28,Sheet2!A58:M1697,6,0) -> 184.3 | R28: H
A29: 20 | B29: 2019-10-25 | D29: ABFRL | E29: Buy | F29: 201 | G29: 189.3 | H29: 214 | I29: 222-226 | J29: Part Profit of Rs.13/- | K29: =H29-F29 -> 13 | L29: =K29/F29 -> 6.47% | M29: Successful | N29: 2019-10-30 | R29: R
A30: 21 | B30: 2019-10-27 | D30: AMBUJACEM | E30: Buy | F30: 197 | G30: 185.4 | H30: 203.5 | I30: 216-220 | J30: Part Profit of Rs.6.5/- | K30: =H30-F30 -> 6.5 | L30: =K30/F30 -> 3.30% | M30: Successful | N30: 2019-10-30 | O30: =VLOOKUP(D30,Sheet2!A60:M1699,6,0) -> 200.6 | R30: R
A31: 22 | B31: 2019-10-29 | D31: BANKBARODA | E31: Buy | F31: 92 | G31: 84.5 | H31: 95.75 | I31: 104-106 | J31: Part Profit of Rs.3.75/- | K31: =H31-F31 -> 3.75 | L31: =K31/F31 -> 4.08% | M31: Successful | N31: 2019-10-30 | O31: =VLOOKUP(D31,Sheet2!A61:M1700,6,0) -> 95.55 | R31: H
A35: CLBS = Closing Basis ***
A36: Dividend adjusted <> | F36: Reinitiated $
A37: Part book {} | F37: Revised stoploss #
B39: Momentum Call
A40: Sr.no | B40: Date | D40: Company | E40: Rec | F40: Rec Price | G40: Stop Loss | H40: Call Closed At | I40: Target | J40: Remark | K40: Profit / Loss per Share/Lot | L40: Gain / Loss % | M40: Gain / Loss per Lot | N40: Lot | O40: Status | P40: Closed Date
A41: 1 | B41: 2019-09-24 | D41: AMARAJABAT OCT FUT | E41: Buy | F41: 722 | G41: 703 | H41: 703.5 | I41: 750-760 | J41: Loss of Rs.18.5/- | K41: =H41-F41 -> -18.5 | M41: =N41*K41 -> -12950 | N41: 700 | O41: UnSuccessful | P41: 2019-10-01 | R41: N
A42: 2 | B42: 2019-09-30 | D42: IGL | E42: Sell | F42: 349 | G42: 361 | H42: 342 | I42: 330-325 | J42: Profit of Rs.7/- | K42: =F42-H42 -> 7 | L42: =K42/F42 -> 2.01% | O42: Successful | P42: 2019-10-01 | R42: H
A43: 3 | B43: 2019-09-30 | D43: ENGINERSIN | E43: Sell | F43: 119 | G43: 123.3 | H43: 116.5 | I43: 111-109 | J43: Profit of Rs.2.5/- | K43: =F43-H43 -> 2.5 | L43: =K43/F43 -> 2.10% | O43: Successful | P43: 2019-10-01 | R43: R
A44: 4 | B44: 2019-09-30 | D44: ADANIPORTS | E44: Sell | F44: 412.5 | G44: 425.3 | H44: 406 | I44: 395-390 | J44: Profit of Rs.6.5/- | K44: =F44-H44 -> 6.5 | L44: =K44/F44 -> 1.58% | O44: Successful | P44: 2019-10-01 | R44: H
A45: 5 | B45: 2019-10-01 | D45: HDFC | E45: Buy | F45: 1995 | G45: 1949 | H45: 2026 | I45: 2080-2100 | J45: Profit of Rs.31/- | K45: =H45-F45 -> 31 | L45: =K45/F45 -> 1.55% | O45: Successful | P45: 2019-10-01 | R45: H
A46: 6 | B46: 2019-10-01 | D46: POWERGRID OCT FUT | E46: Buy | F46: 196.75 | G46: 193.5 | H46: 198.75 | I46: 205 | J46: Profit of Rs.2/- | K46: =H46-F46 -> 2 | M46: =N46*K46 -> 8000 | N46: 4000 | O46: Successful | P46: 2019-10-03 | R46: N
A47: 7 | B47: 2019-10-01 | D47: NIFTY OCT FUT | E47: Buy | F47: 11430 | G47: 11340 | H47: 11350 | I47: 11570-11600 | J47: Loss of Rs.80/- | K47: =H47-F47 -> -80 | M47: =N47*K47 -> -6000 | N47: 75 | O47: UnSuccessful | P47: 2019-10-01 | R47: R
A48: 8 | B48: 2019-10-03 | D48: LT | E48: Buy | F48: 1440 | G48: 1390 | H48: 1474 | I48: 1500-1520 | J48: Profit of Rs.34/- | K48: 34 | L48: =K48/F48 -> 2.36% | O48: Successful | P48: 2019-10-03 | R48: H
A49: 9 | B49: 2019-10-03 | D49: TATASTEEL | E49: Buy | F49: 348 | G49: 338 | H49: 335 | I49: 370 | J49: Loss of Rs.13/- | K49: -13 | L49: -3.74% | O49: UnSuccessful | P49: 2019-10-04 | R49: R
A50: 10 | B50: 2019-10-03 | D50: CESC OCT FUT | E50: Buy | F50: 747 | G50: 734.7 | H50: 760.5 | I50: 770 | J50: Profit of Rs.13.5/- | K50: =H50-F50 -> 13.5 | M50: =N50*K50 -> 10800 | N50: 800 | O50: Successful | P50: 2019-10-04 | R50: R
A51: 11 | B51: 2019-10-03 | D51: MFSL OCT FUT | E51: Buy | F51: 417 | G51: 406 | H51: 417 | I51: 435 | J51: Neutral | K51: 0 | N51: 1200 | O51: Neutral | P51: 2019-10-04 | R51: N
A52: 12 | B52: 2019-10-04 | D52: NIITTECH | E52: Buy | F52: 1355 | G52: 1319 | H52: 1377.5 | I52: 1420-1440 | J52: Profit of Rs.22.5/- | K52: =H52-F52 -> 22.5 | L52: =K52/F52 -> 1.66% | O52: Successful | P52: 2019-10-04 | R52: H
A53: 13 | B53: 2019-10-04 | D53: HINDALCO | E53: Buy | F53: 183.5 | G53: 179 | H53: 187.25 | I53: 192-195 | J53: Profit of Rs.3.75/- | K53: =H53-F53 -> 3.75 | L53: =K53/F53 -> 2.04% | O53: Successful | P53: 2019-10-11 | R53: R
A54: 14 | B54: 2019-10-04 | D54: TATAELXSI OCT FUT | E54: Buy | F54: 686.5 | G54: 666 | H54: 666 | I54: 710-720 | J54: Loss of Rs.20.5/- | K54: =H54-F54 -> -20.5 | M54: =N54*K54 -> -12300 | N54: 600 | O54: UnSuccessful | P54: 2019-10-09 | R54: N
A55: 15 | B55: 2019-10-03 | D55: CESC OCT FUT | E55: Buy | F55: 747 | G55: 734.7 | H55: 734.7 | I55: 770 | J55: Loss of Rs.12.3/- | K55: =H55-F55 -> -12.3 | M55: =N55*K55 -> -9840 | N55: 800 | O55: UnSuccessful | P55: 2019-10-04 | R55: R
A56: 16 | B56: 2019-10-04 | D56: AMARAJABAT OCT FUT | E56: Buy | F56: 699 | G56: 681 | H56: 681.5 | I56: 730 | J56: Loss of Rs.17.50/- | K56: =H56-F56 -> -17.5 | M56: =N56*K56 -> -12250 | N56: 700 | O56: UnSuccessful | P56: 2019-10-09 | R56: N
A57: 17 | B57: 2019-10-04 | D57: NIFTY OCT FUT | E57: Buy | F57: 11280 | G57: 11175 | H57: 11175 | I57: 11370 | J57: Loss of Rs.105/- | K57: =H57-F57 -> -105 | M57: =N57*K57 -> -7875 | N57: 75 | O57: UnSuccessful | P57: 2019-10-07 | R57: R
A58: 18 | B58: 2019-10-04 | D58: DABUR | E58: Buy | F58: 425.5 | G58: 411.7 | H58: 435.5 | I58: 448-453 | J58: Profit of Rs.10/- | K58: 10 | L58: =K58/F58 -> 2.35% | O58: Successful | P58: 2019-10-09 | R58: R
A59: 19 | B59: 2019-10-07 | D59: M&M OCT FUT | E59: Buy | F59: 558 | G59: 545 | H59: 566 | I59: 580 | J59: Profit of Rs.8/- | K59: =H59-F59 -> 8 | M59: =N59*K59 -> 8000 | N59: 1000 | O59: Successful | P59: 2019-10-08 | R59: N
A60: 20 | B60: 2019-10-07 | D60: JUBLFOOD OCT FUT | E60: Buy | F60: 1276.5 | G60: 1253 | H60: 1296 | I60: 1320-1330 | J60: Profit of Rs.19.5/- | K60: =H60-F60 -> 19.5 | M60: =N60*K60 -> 9750 | N60: 500 | O60: Successful | P60: 2019-10-07 | R60: R
A61: 21 | B61: 2019-10-07 | D61: VOLTAS OCT FUT | E61: Sell | F61: 666 | G61: 678 | H61: 677 | I61: 650 | J61: Loss of Rs.11/- | K61: =F61-H61 -> -11 | M61: =N61*K61 -> -11000 | N61: 1000 | O61: UnSuccessful | P61: 2019-10-09 | R61: N
A62: 22 | B62: 2019-10-09 | D62: GODREJCP | E62: Buy | F62: 661 | G62: 641.7 | H62: 674 | I62: 690-700 | J62: Profit of Rs.13/- | K62: 13 | L62: =K62/F62 -> 1.97% | O62: Successful | P62: 2019-10-09 | R62: R
A63: 23 | B63: 2019-10-09 | D63: GRASIM OCT FUT | E63: Sell | F63: 667 | G63: 685 | H63: 692.5 | I63: 635 | J63: Loss of Rs.25.50/- | K63: =F63-H63 -> -25.5 | M63: =N63*K63 -> -19125 | N63: 750 | O63: UnSuccessful | P63: 2019-10-10 | R63: N
A64: 24 | B64: 2019-10-10 | D64: NIITTECH | E64: Buy | F64: 1352.5 | G64: 1317 | H64: 1375.5 | I64: 1420-1440 | J64: Profit of Rs.23/- | K64: =H64-F64 -> 23 | L64: =K64/F64 -> 1.70% | O64: Successful | P64: 2019-10-10 | R64: H
A65: 25 | B65: 2019-10-10 | D65: MCDOWELL-N | E65: Buy | F65: 626.5 | G65: 608 | H65: 608 | I65: 660-670 | J65: Loss of Rs.18.50/- | K65: -18.5 | L65: -2.95% | O65: UnSuccessful | P65: 2019-10-11 | R65: R
A66: 26 | B66: 2019-10-10 | D66: KOTAKBANK OCT FUT | E66: Buy | F66: 1601.5 | G66: 1570 | H66: 1621.5 | I66: 1650 | J66: Profit of Rs.20/- | K66: =H66-F66 -> 20 | M66: =N66*K66 -> 8000 | N66: 400 | O66: Successful | P66: 2019-10-11 | R66: N
A67: 27 | B67: 2019-10-10 | D67: NIFTY OCT FUT | E67: Buy | F67: 11275 | G67: 11190 | H67: 11330 | I67: 11400-11450 | J67: Profit of Rs.55/- | K67: 55 | M67: =N67*K67 -> 4125 | N67: 75 | O67: Successful | P67: 2019-10-11 | R67: H
A68: 28 | B68: 2019-10-10 | D68: HINDUNILVR OCT FUT | E68: Buy | F68: 1937.5 | G68: 1897 | H68: 1962 | I68: 2000-2020 | J68: Profit of Rs.24.50/- | K68: =H68-F68 -> 24.5 | M68: =N68*K68 -> 7350 | N68: 300 | O68: Successful | P68: 2019-10-10 | R68: R
A69: 29 | B69: 2019-10-10 | D69: COLPAL OCT FU | E69: Buy | F69: 1495 | G69: 1476 | H69: 1508 | I69: 1530 | J69: Profit of Rs.13/- | K69: 13 | M69: =N69*K69 -> 9100 | N69: 700 | O69: Successful | P69: 2019-10-11 | R69: N
A70: 30 | B70: 2019-10-10 | D70: RAYMOND | E70: Sell | F70: 597 | G70: 607.3 | H70: 587 | I70: 575-570 | J70: Profit of Rs.10/- | K70: =F70-H70 -> 10 | L70: =K70/F70 -> 1.68% | O70: Successful | P70: 2019-10-10 | R70: R
A71: 31 | B71: 2019-10-10 | D71: MFSL OCT FUT | E71: Buy | F71: 408 | G71: 398 | H71: 416 | I71: 425 | J71: Profit of Rs.8/- | K71: =H71-F71 -> 8 | M71: =N71*K71 -> 9600 | N71: 1200 | O71: Successful | P71: 2019-10-14 | R71: N
A72: 32 | B72: 2019-10-11 | D72: AMBUJACEM OCT FUT | E72: Buy | F72: 188.5 | G72: 183 | H72: 191.75 | I72: 198 | J72: Profit of Rs.3.25/- | K72: =H72-F72 -> 3.25 | M72: =N72*K72 -> 8125 | N72: 2500 | O72: Successful | P72: 2019-10-14 | R72: N
A73: 33 | B73: 2019-10-11 | D73: KOTAKBANK OCT FUT | E73: Buy | F73: 1590 | G73: 1560 | H73: 1609 | I73: 1650 | J73: Profit of Rs.19/- | K73: =H73-F73 -> 19 | M73: =N73*K73 -> 7600 | N73: 400 | O73: Successful | P73: 2019-10-14 | R73: N
A74: 34 | B74: 2019-10-11 | D74: KALPATPOWR | E74: Buy | F74: 447 | G74: 434 | H74: 457 | I74: 470-480 | J74: Profit of Rs.10/- | K74: =H74-F74 -> 10 | L74: =K74/F74 -> 2.24% | O74: Successful | P74: 2019-10-22 | R74: H
A75: 35 | B75: 2019-10-11 | D75: M&M OCT FUT | E75: Buy | F75: 557 | G75: 544 | H75: 564.5 | I75: 580 | J75: Profit of Rs.7.5/- | K75: =H75-F75 -> 7.5 | M75: =N75*K75 -> 7500 | N75: 1000 | O75: Successful | P75: 2019-10-11 | R75: N
A76: 36 | B76: 2019-10-14 | D76: NIITTECH | E76: Buy | F76: 1405 | G76: 1378 | H76: 1438.5 | I76: 1440-1460 | J76: Profit of Rs.33.5/- | K76: 33.5 | L76: =K76/F76 -> 2.38% | O76: Successful | P76: 2019-10-15 | R76: H
A77: 37 | B77: 2019-10-14 | D77: KOTAKBANK OCT FUT | E77: Buy | F77: 1590 | G77: 1560 | H77: 1609 | I77: 1650 | J77: Profit of Rs.19/- | K77: =H77-F77 -> 19 | M77: =N77*K77 -> 7600 | N77: 400 | O77: Successful | P77: 2019-10-14 | R77: N
A78: 38 | B78: 2019-10-14 | D78: AMARAJABAT | E78: Buy | F78: 681.5 | G78: 659 | H78: 658 | I78: 715-720 | J78: Loss of Rs.23.50/- | K78: -23.5 | L78: =K78/F78 -> -3.45% | O78: UnSuccessful | P78: 2019-10-15 | R78: H
A79: 39 | B79: 2019-10-14 | D79: BATAINDIA OCT FUT | E79: Buy | F79: 1716 | G79: 1690 | H79: 1730 | I79: 1760 | J79: Profit of Rs.14/- | K79: 14 | M79: =N79*K79 -> 7700 | N79: 550 | O79: Successful | P79: 2019-10-17 | R79: N
A80: 40 | B80: 2019-10-14 | D80: CHOLAFIN | E80: Buy | F80: 284 | G80: 276.7 | H80: 273.5 | I80: 300-305 | J80: Loss of Rs.10.5/- | K80: =H80-F80 -> -10.5 | L80: =K80/F80 -> -3.70% | O80: UnSuccessful | P80: 2019-10-15 | R80: R
A81: 41 | B81: 2019-10-15 | D81: BHARATFORG OCT FUT | E81: Buy | F81: 429 | G81: 418 | H81: 435 | I81: 450 | J81: Profit of Rs.6/- | K81: =H81-F81 -> 6 | M81: =N81*K81 -> 7200 | N81: 1200 | O81: Successful | P81: 2019-10-15 | R81: N
A82: 42 | B82: 2019-10-15 | D82: SUNPHARMA | E82: Buy | F82: 396.5 | G82: 386.7 | H82: 405 | I82: 420-425 | J82: Profit of Rs.8.50/- | K82: 8.5 | L82: =K82/F82 -> 2.14% | O82: Successful | P82: 2019-10-18 | R82: R
A83: 43 | B83: 2019-10-15 | D83: LT | E83: Buy | F83: 1440 | G83: 1390 | H83: 1441.5 | I83: 1500-1520 | J83: Neutral | K83: =F83-H83 -> -1.5 | L83: -0.10% | O83: Neutral | P83: 2019-10-29 | R83: H
A84: 44 | B84: 2019-10-15 | D84: HAVELLS | E84: Buy | F84: 657.5 | G84: 639 | H84: 668.5 | I84: 690-700 | J84: Profit of Rs.11/- | K84: =H84-F84 -> 11 | L84: =K84/F84 -> 1.67% | O84: Successful | P84: 2019-10-15 | R84: H
A85: 45 | B85: 2019-10-15 | D85: INFRATEL OCT FUT | E85: Sell | F85: 260.5 | G85: 266.5 | H85: 257 | I85: 250-248 | J85: Profit of Rs.3.5/- | K85: =F85-H85 -> 3.5 | M85: =N85*K85 -> 7000 | N85: 2000 | O85: Successful | P85: 2019-10-15 | R85: N
A86: 46 | B86: 2019-10-15 | D86: HINDALCO | E86: Buy | F86: 190 | G86: 185 | H86: 194.5 | I86: 200 | J86: Profit of Rs.4.5/- | K86: =H86-F86 -> 4.5 | L86: =K86/F86 -> 2.37% | O86: Successful | P86: 2019-10-15 | R86: H
A87: 47 | B87: 2019-10-16 | D87: MFSL OCT FUT | E87: Buy | F87: 406 | G87: 396 | H87: 413 | I87: 425 | J87: Profit of Rs.7/- | K87: =H87-F87 -> 7 | M87: =N87*K87 -> 8400 | N87: 1200 | O87: Successful | P87: 2019-10-16 | R87: N
A88: 48 | B88: 2019-10-16 | D88: JUBLFOOD OCT FUT | E88: Buy | F88: 1328 | G88: 1305 | H88: 1305 | I88: 1370-1380 | J88: Loss of Rs.23/- | K88: =H88-F88 -> -23 | M88: =N88*K88 -> -11500 | N88: 500 | O88: UnSuccessful | P88: 2019-10-16 | R88: R
A89: 49 | B89: 2019-10-16 | D89: BIOCON | E89: Sell | F89: 259 | G89: 266.3 | H89: 254.5 | I89: 244-240 | J89: Profit of Rs.4.5/- | K89: =F89-H89 -> 4.5 | L89: =K89/F89 -> 1.74% | O89: Successful | P89: 2019-10-16 | R89: R
A90: 50 | B90: 2019-10-16 | D90: COLPAL OCT FUT | E90: Buy | F90: 1528 | G90: 1510 | H90: 1540 | I90: 1560 | J90: Profit of Rs.12/- | K90: =H90-F90 -> 12 | M90: =N90*K90 -> 8400 | N90: 700 | O90: Successful | P90: 2019-10-17 | R90: N
A91: 51 | B91: 2019-10-16 | D91: INFRATEL OCT FUT | E91: Sell | F91: 257 | G91: 263 | H91: 253.25 | I91: 248 | J91: Profit of Rs.3.75/- | K91: =F91-H91 -> 3.75 | M91: =N91*K91 -> 7500 | N91: 2000 | O91: Successful | P91: 2019-10-17 | R91: N
A92: 52 | B92: 2019-10-17 | D92: POWERGRID OCT FUT | E92: Buy | F92: 198.25 | G92: 195 | H92: 200.25 | I92: 205 | J92: Profit of Rs.2/- | K92: 2 | M92: =N92*K92 -> 8000 | N92: 4000 | O92: Successful | P92: 2019-10-18 | R92: N
A93: 53 | B93: 2019-10-17 | D93: ABFRL | E93: Buy | F93: 199 | G93: 194 | H93: 204 | I93: 212-216 | J93: Profit of Rs.5/- | K93: =H93-F93 -> 5 | L93: =K93/F93 -> 2.51% | O93: Successful | P93: 2019-10-17 | R93: R
A94: 54 | B94: 2019-10-17 | D94: RELIANCE | E94: Sell | F94: 1381.5 | G94: 1410 | H94: 1382 | I94: 1330-1320 | J94: Neutral | K94: =F94-H94 -> -0.5 | L94: =K94/F94 -> -0.04% | O94: Neutral | P94: 2019-10-17 | R94: H
A95: 55 | B95: 2019-10-17 | D95: NIITTECH | E95: Buy | F95: 1403 | G95: 1374 | H95: 1439 | I95: 1445-1465 | J95: Profit of Rs.36/- | K95: =H95-F95 -> 36 | L95: 2.57% | O95: Successful | P95: 2019-10-18 | R95: H
A96: 56 | B96: 2019-10-17 | D96: INDIGO | E96: Buy | F96: 1727.5 | G96: 1680 | H96: 1680 | I96: 1800 | J96: Loss of Rs.47.50/- | K96: -47.5 | L96: -2.75% | O96: UnSuccessful | P96: 2019-10-15 | R96: R
A97: 57 | B97: 2019-10-17 | D97: INFRATEL OCT FUT | E97: Sell | F97: 257 | G97: 263 | H97: 253 | I97: 248 | J97: Profit of Rs.4/- | K97: =F97-H97 -> 4 | M97: =N97*K97 -> 8000 | N97: 2000 | O97: Successful | P97: 2019-10-18 | R97: N
A98: 58 | B98: 2019-10-18 | D98: BEL | E98: Buy | F98: 117.5 | G98: 114.5 | H98: 114 | I98: 124-126 | J98: Loss of Rs.3.50/- | K98: =H98-F98 -> -3.5 | L98: =K98/F98 -> -2.98% | O98: UnSuccessful | P98: 2019-10-23 | R98: H
A99: 59 | B99: 2019-10-18 | D99: INFRATEL OCT FUT | E99: Sell | F99: 261 | G99: 267 | H99: 258.5 | I99: 248 | J99: Profit of Rs.2.50/- | K99: =F99-H99 -> 2.5 | M99: =N99*K99 -> 5000 | N99: 2000 | O99: Successful | P99: 2019-10-18 | R99: R
A100: 60 | B100: 2019-10-18 | D100: BHARATFORG OCT FUT | E100: Buy | F100: 449 | G100: 438 | H100: 455.5 | I100: 470 | J100: Profit of Rs.6.50/- | K100: =H100-F100 -> 6.5 | M100: 7800 | N100: 1200 | O100: Successful | P100: 2019-10-22 | R100: N
A101: 61 | B101: 2019-10-18 | D101: UBL OCT FUT | E101: Buy | F101: 1326 | G101: 1307 | H101: 1310 | I101: 1360 | J101: Loss of Rs.16/- | K101: =H101-F101 -> -16 | M101: -11200 | N101: 700 | O101: UnSuccessful | P101: 2019-10-22 | R101: N
A102: 62 | B102: 2019-10-22 | D102: CESC OCT FUT | E102: Buy | F102: 810 | G102: 794 | H102: 794 | I102: 835-840 | J102: Loss of Rs.16/- | K102: =H102-F102 -> -16 | M102: -12800 | N102: 800 | O102: UnSuccessful | P102: 2019-10-24 | R102: N
A103: 63 | B103: 2019-10-22 | D103: COLPAL OCT FUT | E103: Buy | F103: 1528 | G103: 1510 | H103: 1541 | I103: 1560 | J103: Profit of Rs.13/- | K103: =H103-F103 -> 13 | M103: 9100 | N103: 700 | O103: Successful | P103: 2019-10-22 | R103: N
A104: 64 | B104: 2019-10-22 | D104: BHARATFORG OCT FUT | E104: Buy | F104: 446 | G104: 435 | H104: 452.5 | I104: 465 | J104: Profit of Rs.6.50/- | K104: =H104-F104 -> 6.5 | M104: 7800 | N104: 1200 | O104: Successful | P104: 2019-10-23 | R104: N
A105: 65 | B105: 2019-10-22 | D105: SBIN | E105: Buy | F105: 272.5 | G105: 264 | H105: 266.5 | I105: 285 | J105: Loss of Rs.6/- | K105: -6 | L105: =K105/F105 -> -2.20% | O105: UnSuccessful | P105: 2019-10-24 | R105: H
A106: 66 | B106: 2019-10-23 | D106: BANKNIFTY OCT FUT | E106: Sell | F106: 29260 | G106: 29560 | H106: 29560 | I106: 28700 | J106: Loss of Rs.300/- | K106: =F106-H106 -> -300 | M106: =N106*K106 -> -6000 | N106: 20 | O106: UnSuccessful | P106: 2019-10-23 | R106: R
A107: 67 | B107: 2019-10-23 | D107: NIFTY OCT FUT | E107: Sell | F107: 11615 | G107: 11690 | H107: 11567.5 | I107: 11470-11450 | J107: Profit of Rs.47.50/- | K107: =F107-H107 -> 47.5 | M107: =N107*K107 -> 3562.5 | N107: 75 | O107: Successful | P107: 2019-10-24 | R107: R
A108: 68 | B108: 2019-10-23 | D108: VOLTAS | E108: Sell | F108: 703 | G108: 722 | H108: 723 | I108: 670-660 | J108: Loss of Rs.20/- | K108: =F108-H108 -> -20 | L108: =K108/F108 -> -2.84% | O108: UnSuccessful | P108: 2019-10-29 | R108: H
A109: 69 | B109: 2019-10-23 | D109: HINDALCO | E109: Buy | F109: 184 | G109: 178.5 | H109: 184 | I109: 193-195 | J109: Neutral | K109: =F109-H109 -> 0 | L109: =K109/F109 -> 0.00% | O109: Neutral | P109: 2019-10-24 | R109: H
A110: 70 | B110: 2019-10-24 | D110: COALINDIA | E110: Sell | F110: 207 | G110: 213.3 | H110: 201.55 | I110: 198-194 | J110: Profit of Rs.5.45/- | K110: =F110-H110 -> 5.45 | L110: 2.63% | O110: Successful | P110: 2019-10-27 | R110: R
A111: 71 | B111: 2019-10-24 | D111: BHARATFORG NOV FUT | E111: Buy | F111: 452 | G111: 442 | H111: 458.5 | I111: 470 | J111: Profit of Rs.6.50/- | K111: =H111-F111 -> 6.5 | M111: =N111*K111 -> 7800 | N111: 1200 | O111: Successful | P111: 2019-10-29 | R111: N
A112: 72 | B112: 2019-10-25 | D112: ESCORTS | E112: Sell | F112: 650 | G112: 671.3 | H112: 636.5 | I112: 620-614 | J112: Profit of Rs.13.5/- | K112: =F112-H112 -> 13.5 | L112: =K112/F112 -> 2.08% | O112: Successful | P112: 2019-10-25 | R112: R
A113: 73 | B113: 2019-10-25 | D113: JUBLFOOD | E113: Buy | F113: 1510 | G113: 1461.6 | H113: 1541.5 | I113: 1600-1620 | J113: Profit of Rs.31.5/- | K113: 31.5 | L113: =K113/F113 -> 2.09% | O113: Successful | P113: 2019-10-27 | R113: R
A114: 74 | B114: 2019-10-25 | D114: DLF | E114: Sell | F114: 179-181 | G114: 184.3 | I114: 170-167 | J114: Open | R114: R
A115: 75 | B115: 2019-10-25 | D115: UBL OCT FUT | E115: Buy | F115: 1342 | G115: 1324 | H115: 1317.5 | I115: 1375 | J115: Loss of Rs.24.50/- | K115: =H115-F115 -> -24.5 | M115: =N115*K115 -> -17150 | N115: 700 | O115: UnSuccessful | P115: 2019-10-29 | R115: N
A116: 76 | B116: 2019-10-27 | D116: MCDOWELL-N | E116: Buy | F116: 629 | G116: 610 | H116: 610 | I116: 660-670 | J116: Loss of Rs.19/- | K116: -19 | L116: =K116/F116 -> -3.02% | O116: UnSuccessful | P116: 2019-10-30 | R116: R
A117: 77 | B117: 2019-10-27 | D117: SBIN | E117: Buy | F117: 282 | G117: 271.7 | H117: 288.5 | I117: 295-300 | J117: Profit of Rs.6.5/- | K117: 6.5 | L117: 2.30% | O117: Successful | P117: 2019-10-30 | R117: R
A118: 78 | B118: 2019-10-27 | D118: HINDPETRO | E118: Buy | F118: 302 | G118: 292.6 | H118: 309 | I118: 318-322 | J118: Profit of Rs.7/- | K118: =H118-F118 -> 7 | L118: =K118/F118 -> 2.32% | O118: Successful | P118: 2019-10-29 | R118: R
A119: 79 | B119: 2019-10-29 | D119: RELIANCE | E119: Sell | F119: 1445-1450 | G119: 1505 | I119: 1380-1350 | J119: Open | R119: H
A120: 80 | B120: 2019-10-29 | D120: HINDALCO | E120: Buy | F120: 185-187 | G120: 179 | I120: 195-200 | J120: Open | R120: H
A121: 81 | B121: 2019-10-29 | D121: COLPAL NOV FUT | E121: Buy | F121: 1516.5 | G121: 1498 | H121: 1527.5 | I121: 1545 | J121: Profit of Rs.11/- | K121: =H121-F121 -> 11 | M121: =N121*K121 -> 7700 | N121: 700 | O121: Successful | P121: 2019-10-29 | R121: N
A122: 82 | B122: 2019-10-29 | D122: HCLTECH | E122: Buy | F122: 1130-1140 | G122: 1095 | I122: 1200-1210 | J122: Open | R122: H
A123: 83 | B123: 2019-10-29 | D123: HAVELLS | E123: Buy | F123: 664.5 | G123: 645 | H123: 680 | I123: 690-700 | J123: Profit of Rs.15.5/- | K123: =H123-F123 -> 15.5 | L123: =K123/F123 -> 2.33% | O123: Successful | P123: 2019-10-30 | R123: H
A124: 84 | B124: 2019-10-29 | D124: SRF NOV FUT | E124: Buy | F124: 2925 | G124: 2880 | H124: 2880 | I124: 3000 | J124: Loss of Rs.45/- | K124: =H124-F124 -> -45 | M124: =N124*K124 -> -11250 | N124: 250 | O124: UnSuccessful | P124: 2019-10-29 | R124: N
A125: 85 | B125: 2019-10-29 | D125: INDUSINDBK | E125: Buy | F125: 1314-1324 | G125: 1278 | I125: 1370-1390 | J125: Open | R125: H
A126: 86 | B126: 2019-10-29 | D126: TORNTPOWER NOV FUT | E126: Sell | F126: 282.5 | G126: 287 | H126: 280.5 | I126: 275 | J126: Profit of Rs.2/- | K126: =F126-H126 -> 2 | M126: =N126*K126 -> 6000 | N126: 3000 | O126: Successful | P126: 2019-10-30 | R126: N
A127: 87 | B127: 2019-10-30 | D127: COLPAL NOV FUT | E127: Buy | F127: 1511 | G127: 1493 | H127: 1522 | I127: 1540 | J127: Profit of Rs.11/- | K127: =H127-F127 -> 11 | M127: =N127*K127 -> 7700 | N127: 700 | O127: Successful | P127: 2019-10-30 | R127: N
A128: 88 | B128: 2019-10-30 | D128: MFSL NOV FUT | E128: Buy | F128: 410 | G128: 399 | H128: 421 | I128: 430 | J128: Profit of Rs.11/- | K128: =H128-F128 -> 11 | M128: =N128*K128 -> 13200 | N128: 1200 | O128: Successful | P128: 2019-10-30 | R128: N
A129: 89 | B129: 2019-10-30 | D129: POWERGRID | E129: Buy | F129: 199-200 | G129: 194.5 | I129: 210 | J129: Open | R129: H
A130: 90
A131: 91
A132: 92
A133: 93
A136: CLBS = Closing Basis ***
A137: Dividend adjusted <> | F137: Reinitiated $
F138: Revised stoploss #
A140: Master Trade High Risk
A141: Sr.no | B141: Date | D141: Company | E141: Rec | F141: Rec Price | G141: Stop Loss | H141: Call Closed At | I141: Target | J141: Remark | K141: Profit / Loss per share | L141: Gain / Loss per Lot | M141: Lot | N141: Status | O141: Closed Date
A142: 1 | B142: 2019-10-01 | D142: HDFC OCT FUT | E142: Buy | F142: 1999 | G142: 1947 | H142: 2022 | I142: 2050 | J142: Profit of Rs.20/- | K142: =H142-F142 -> 23 | L142: =20*M142 -> 10000 | M142: 500 | N142: Successful | O142: 2019-10-04 | R142: H
D143: HDFC 2040 CE OCT | E143: Sell | F143: 52 | H143: 55 | K143: =F143-H143 -> -3 | R143: H
A144: 2 | B144: 2019-10-03 | D144: NIFTY OCT FUT | E144: Buy | F144: 11350 | G144: 11190 | H144: 11425 | I144: 11550 | J144: Profit of Rs.71.5/- | K144: =H144-F144 -> 75 | L144: =71.5*75 -> 5362.5 | M144: 75 | N144: Successful | O144: 2019-10-04 | R144: H
D145: Nifty 11450 CE 10-OCT | E145: Sell | F145: 75 | H145: 78.5 | K145: =F145-H145 -> -3.5 | R145: H
A146: 3 | B146: 2019-10-04 | D146: HDFC OCT FUT | E146: Buy | F146: 2002 | G146: 1947 | H146: 2023.5 | I146: 2050 | J146: Profit of Rs.26.5/- | K146: =H146-F146 -> 21.5 | L146: =M146*26.5 -> 13250 | M146: 500 | N146: Successful | O146: 2019-10-11 | R146: H
D147: HDFC 2040 CE OCT | E147: Sell | F147: 48 | H147: 43 | K147: =F147-H147 -> 5 | R147: H
A148: 4 | B148: 2019-10-04 | D148: HDFCBANK OCT FUT | E148: Buy | F148: 1202.5 | G148: 1169 | H148: 1222.5 | I148: 1250 | J148: Profit of Rs.16.5/- | K148: 20 | L148: =M148*16.5 -> 8250 | M148: 500 | N148: Successful | O148: 2019-10-11 | R148: H
D149: HDFCBANK 1240 CE OCT | E149: Sell | F149: 23.5 | H149: 27 | K149: =F149-H149 -> -3.5 | R149: H
A150: 5 | B150: 2019-10-11 | D150: HDFC OCT FUT | E150: Buy | F150: 1997.5 | G150: 1947 | H150: 2022 | I150: 2050 | J150: Profit of Rs.18/- | K150: =H150-F150 -> 24.5 | L150: =M150*18 -> 9000 | M150: 500 | N150: Successful | O150: 2019-10-11 | R150: H
D151: HDFC 2040 CE OCT | E151: Sell | F151: 36 | H151: 42.5 | K151: =F151-H151 -> -6.5 | R151: H
A152: 6 | B152: 2019-10-11 | D152: HDFCBANK OCT FUT | E152: Buy | F152: 1204 | G152: 1169 | H152: 1214 | I152: 1250 | J152: Profit of Rs.9/- | K152: =H152-F152 -> 10 | L152: =M152*9 -> 4500 | M152: 500 | N152: Successful | O152: 2019-10-14 | R152: H
D153: HDFCBANK 1240 CE OCT | E153: Sell | F153: 23 | H153: 24 | K153: =F153-H153 -> -1 | R153: H
A154: 7 | B154: 2019-10-16 | D154: NIFTY OCT FUT | E154: Sell | F154: 11467.5 | G154: 11630 | H154: 11590 | I154: 11250 | J154: Loss of Rs.81.50/- | K154: =F154-H154 -> -122.5 | L154: =-M154*81.5 -> -6112.5 | M154: 75 | N154: Unsuccessful | O154: 2019-10-17 | R154: H
D155: NIFTY 11300 PE 24-OCT | E155: Buy | F155: 57.50 | H155: 16.5 | K155: =F155-H155 -> 41 | R155: H
A156: 6 | B156: 2019-10-16 | D156: HAVELLS OCT FUT | E156: Buy | F156: 667 | G156: 649 | H156: 679.5 | I156: 690 | J156: Profit of Rs.9/- | K156: =H156-F156 -> 12.5 | L156: =M156*9 -> 9000 | M156: 1000 | N156: Successful | O156: 2019-10-17 | R156: H
D157: HAVELLS 690 CE | E157: Sell | F157: 13.50 | H157: 17 | K157: =F157-H157 -> -3.5 | R157: H
A158: 7 | B158: 2019-10-18 | D158: M&M OCT FUT | E158: Buy | F158: 587 | G158: 572 | H158: 597.5 | I158: 610-615 | J158: Profit of Rs.8.50/- | K158: =H158-F158 -> 10.5 | L158: =M158*8.5 -> 8500 | M158: 1000 | N158: Successful | O158: 2019-10-18 | R158: N
D159: M&M 610 CE OCT | E159: Sell | F159: 6 | H159: 8 | K159: =F159-H159 -> -2 | R159: N
A160: 8 | B160: 2019-10-23 | D160: UPL OCT FUT | E160: Buy | F160: 601 | G160: 585 | H160: 596 | I160: 630-635 | J160: Neutral | K160: -5 | L160: =900*0.75 -> 675 | M160: 900 | N160: Neutral | O160: 2019-10-30 | R160: N
D161: UPL 620 CE OCT | E161: Sell | F161: 7 | H161: 1.25 | K161: =F161-H161 -> 5.75 | R161: N
A162: 9 | B162: 2019-10-24 | D162: KOTAKBANK NOV FUT | E162: Buy | F162: 1626 | G162: 1585 | H162: 1585 | I162: 1660 | J162: Loss of Rs.33.50/- | K162: =H162-F162 -> -41 | L162: =33*-400 -> -13200 | M162: 400 | N162: Unsuccessful | O162: 2019-10-25 | R162: N
D163: KOTAKBANK 1660 CE OCT | E163: Sell | F163: 10 | H163: 2.5 | K163: =F163-H163 -> 7.5 | R163: N
A164: 10 | B164: 2019-10-24 | D164: TATAGLOBAL OCT FUT | E164: Sell | F164: 284 | G164: 291 | H164: 280.5 | I164: 270 | J164: Profit of Rs.2.75/- | K164: =F164-H164 -> 3.5 | L164: =2.75*2700 -> 7425 | M164: 2700 | N164: Successful | O164: 2019-10-24 | R164: H
D165: TATAGLOBAL 275 PE OCT | E165: Sell | F165: 3 | H165: 3.75 | K165: =F165-H165 -> -0.75 | R165: H
A166: 11 | B166: 2019-10-25 | D166: HAVELLS OCT FUT | E166: Buy | F166: 667 | G166: 645 | H166: 672.5 | I166: 690 | J166: Profit of Rs.9/- | K166: =H166-F166 -> 5.5 | L166: 9000 | M166: 1000 | N166: Successful | O166: 2019-10-29 | R166: H
D167: HAVELLS 680 CE OCT | E167: Sell | F167: 8.50 | H167: 5 | K167: =F167-H167 -> 3.5 | R167: H
A168: 12 | B168: 2019-10-25 | D168: BATAINDIA OCT FUT | E168: Buy | F168: 1768.5 | G168: 1735 | H168: 1783 | I168: 1820 | J168: Profit of Rs.13.50/- | K168: =H168-F168 -> 14.5 | L168: =M168*13.5 -> 7425 | M168: 550 | N168: Successful | O168: 2019-10-29 | R168: N
D169: BATAINDIA 1780 CE OCT | E169: Sell | F169: 18.50 | H169: 19.5 | K169: =F169-H169 -> -1 | R169: N
A170: 13 | B170: 2019-10-29 | D170: ASIANPAINT OCT FUT | E170: Buy | F170: 1788 | G170: 1760 | H170: 1809 | I170: 1830 | J170: Profit of Rs.12/- | K170: =H170-F170 -> 21 | L170: =M170*12 -> 7200 | M170: 600 | N170: Successful | O170: 2019-10-29 | R170: N
D171: ASIANPAINT 1800 CE OCT | E171: Sell | F171: 13 | H171: 22 | K171: =F171-H171 -> -9 | R171: N
A172: 14 | B172: 2019-10-30 | D172: BAJAJ-AUTO NOV FUT | E172: Sell | F172: 3235-3245 | G172: 3360 | I172: 3040 | J172: Open | R172: H
D173: BAJAJ-AUTO 3100 PE NOV | E173: Sell | F173: 47-52 | R173: H
A174: 15 | B174: 2019-10-30 | D174: LT NOV FUT | E174: Buy | F174: 1474-1479 | G174: 1418 | I174: 1550 | J174: Open | R174: H
D175: LT 1520 CE NOV | E175: Sell | F175: 27-29 | R175: H
A176: 16 | B176: 2019-10-30 | D176: HEROMOTOCO NOV FUT | E176: Buy | F176: 2710-2720 | G176: 2640 | I176: 2900 | J176: Open | R176: N
D177: HEROMOTOCO 2850 CE NOV | E177: Sell | F177: 54-56 | R177: N
A178: 17 | B178: 2019-10-30 | D178: NIFTY NOV FUT | E178: Buy | F178: 11855-11865 | G178: 11690 | I178: 12100 | J178: Open | R178: H
D179: Nifty 12000 CE 14-NOV | E179: Sell | F179: 76-80 | R179: H
A185: Master Trade Medium Risk
A186: Sr.no | B186: Date | D186: Company | E186: Rec | F186: Rec Price | G186: Stop Loss | H186: Call Closed At | I186: Target | J186: Remark | K186: Profit/ Loss per lot | L186: Gain / Loss per Lot | M186: Lot | N186: Status | O186: Closed Date
A187: 1 | B187: 2019-10-04 | D187: Nifty 11400 CE 10-OCT | E187: Buy | F187: 92 | H187: 0 | J187: Loss of Rs.38/- | K187: =H187-F187 -> -92 | L187: =-38*75 -> -2850 | M187: 75 | N187: Unsuccessful | O187: 2019-10-10 | R187: H
D188: NIFTY 11500 CE 10-OCT | E188: Sell | F188: 54 | H188: 0 | K188: =F188-H188 -> 54 | R188: H
A189: 2 | B189: 2019-10-10 | D189: TATASTEEL OCT 350 CE | E189: Buy | F189: 8.5 | G189: 3.9 | H189: 11.25 | I189: 15-17 | J189: Profit of Rs.2.75/- | K189: =H189-F189 -> 2.75 | L189: =M189*K189 -> 2917.75 | M189: 1061 | N189: Successful | O189: 2019-10-11 | R189: H
A190: 3 | B190: 2019-10-11 | D190: NIFTY 17-OCT 11350 CE | E190: Buy | F190: 44.5 | G190: 18 | H190: 64 | I190: 70-80 | J190: Profit of Rs.19.5/- | K190: =H190-F190 -> 19.5 | L190: =M190*K190 -> 1462.5 | M190: 75 | N190: Successful | O190: 2019-10-11 | R190: H
A191: 4 | B191: 2019-10-15 | D191: JSWSTEEL OCT 235 CE | E191: Buy | F191: 5.5 | G191: 3.5 | H191: 3.9 | I191: 9 | J191: Loss of Rs.1.60/- | K191: =H191-F191 -> -1.6 | L191: =M191*K191 -> -3200 | M191: 2000 | N191: Unsuccessful | O191: 2019-10-16 | R191: N
A192: 5 | B192: 2019-10-17 | D192: NIFTY OCT 24 11350 PE | E192: Buy | F192: 46 | G192: 29 | H192: 29 | I192: 75-85 | J192: Loss of Rs.17/- | K192: =H192-F192 -> -17 | L192: =M192*K192 -> -1275 | M192: 75 | N192: Unsuccessful | O192: 2019-10-17 | R192: H
A193: 6 | B193: 2019-10-22 | D193: DLF 31-OCT 170 PE | E193: Buy | F193: 2.60-2.80 | J193: Open | R193: R
D194: DLF 31-OCT 165 PE | E194: Sell | F194: 1.70-1.90 | R194: R
A195: 7 | B195: 2019-10-22 | D195: M&M OCT 610 CE | E195: Buy | F195: 7.75 | G195: 2.5 | H195: 3.15 | I195: 15 | J195: Loss of Rs.4.60/- | K195: =H195-F195 -> -4.6 | L195: =M195*K195 -> -4600 | M195: 1000 | N195: Unsuccessful | O195: 2019-10-24 | R195: N
A196: 8 | B196: 2019-10-22 | D196: EICHERMOT OCT 21000 CE | E196: Buy | F196: 200 | G196: 38 | H196: 255 | I196: 400-500 | J196: Profit of Rs.55/- | K196: 55 | L196: 1375 | M196: 25 | N196: Successful | O196: 2019-10-23 | R196: H
A197: 9 | B197: 2019-10-22 | D197: Nifty 31-OCT 11800 CE | E197: Buy | F197: 50.5 | G197: 34 | H197: 34 | I197: 80 | J197: Loss of Rs.16.50/- | K197: -16.5 | L197: -1237.5 | M197: 75 | N197: Unsuccessful | O197: 2019-10-23 | R197: H
A198: 10 | B198: 2019-10-23 | D198: CIPLA OCT 460 CE | E198: Buy | F198: 5.5 | G198: 1.5 | H198: 7.25 | I198: 12.00-14.00 | J198: Profit of Rs.1.75/- | K198: 1.75 | L198: 1750 | M198: 1000 | N198: Successful | O198: 2019-10-23 | R198: H
A199: 11 | B199: 2019-10-24 | D199: Nifty 11750 CE 31-OCT | E199: Buy | F199: 39 | G199: 18 | H199: 18 | I199: 80 | J199: Loss of Rs.21/- | K199: -21 | L199: -1575 | M199: 75 | N199: Unsuccessful | O199: 2019-10-25 | R199: H
A200: 12 | B200: 2019-10-30 | D200: AXISBANK 750 CE 31-OCT | E200: Buy | F200: 3.75 | H200: 5.75 | I200: 10 | J200: Profit of Rs.2/- | K200: 2 | L200: 2400 | M200: 1200 | N200: Successful | O200: 2019-10-30 | R200: H
A201: 13 | B201: 2019-10-30 | D201: HDFCBANK 1250 CE OCT | E201: Buy | F201: 4.00-5.00 | I201: 12.00-15.00 | J201: Open | R201: H
A205: Techno -Funda (positional)
A206: Sr.no | B206: Date | D206: Company | E206: Rec | F206: Rec Price | G206: Stop Loss*** | H206: Call Closed At | I206: Target | J206: Remark | K206: Profit / Loss per Share | L206: Gain / Loss % | M206: Status | N206: Closed Date | O206: NSE Closed Price
A207: 1 | B207: 2019-08-13 | D207: ITC | E207: Buy | F207: 247 | G207: 228 | H207: 262.5 | I207: 290-300 | J207: Part Profit of Rs.15.5/- | K207: =H207-F207 -> 15.5 | L207: =K207/F207 -> 6.28% | M207: Successful | N207: 2019-10-01 | O207: =VLOOKUP(D207,Sheet2!A131:M1770,6,0) -> 259.4 | R207: H
A211: CLBS = Closing Basis *** | F211: Reinitiated $
A212: Dividend adjusted <> | F212: Revised stoploss #
B217: Investment Idea
A218: Sr.no | B218: Date | D218: Company | E218: Rec | F218: Rec Price | G218: Point of Review | H218: Close Rate | I218: Target | J218: Remark | K218: Profit / Loss per Share | L218: Gain / Loss % | M218: Status | N218: Closed Date
A219: 1 | B219: 2013-11-01 | D219: L&T Finance Holding | E219: Accu | F219: 82.00 | G219: - | H219: 100 | I219: 100.00 | J219: Target Achieved | K219: =H219-F219 -> 18.00 | L219: =K219/F219 -> 21.95% | M219: Successful | N219: 2016-10-14
A220: 2 | B220: 2014-06-04 | D220: Finolex Inds | E220: Buy | F220: 257.00 | G220: - | H220: 300 | I220: 300.00 | J220: Target Achieved | K220: =H220-F220 -> 43.00 | L220: 16.73% | M220: Successful | N220: 2014-07-02
A221: 3 | B221: 2014-07-08 | D221: JK Cement | E221: Buy | F221: 393.00 | G221: - | H221: 468 | I221: 468.00 | J221: Target Achieved | K221: =H221-F221 -> 75.00 | L221: 19.08% | M221: Successful | N221: 2014-08-12
A222: 4 | B222: 2014-08-06 | D222: Finolex Cables | E222: Buy | F222: 205.00 | G222: - | H222: 275 | I222: 250.00 | J222: Target Achieved | K222: 70.00 | L222: 34.15% | M222: Successful | N222: 2014-11-19
A223: 5 | B223: 2014-09-04 | D223: Exide Inds | E223: Buy | F223: 162.00 | G223: - | H223: 190 | I223: 190.00 | J223: Target Achieved | K223: 28.00 | L223: 17.28% | M223: Successful | N223: 2015-01-02
A224: 6 | B224: 2014-09-04 | D224: Deepak Nitrite | E224: Buy | F224: 75.00 | G224: - | H224: 91.5 | I224: 95-100 | J224: Profit of Rs.16.50/- | K224: 16.50 | L224: 22.00% | M224: Successful | N224: 2014-11-11
A225: 7 | B225: 2014-10-01 | D225: Mercks | E225: Buy | F225: 850.00 | G225: - | H225: 982.5 | I225: 1050.00 | J225: Profit of Rs.132.50/- | K225: 132.50 | L225: 15.59% | M225: Successful | N225: 2015-02-04
A226: 8 | B226: 2014-10-01 | D226: Grindwell Norton | E226: Buy | F226: 475.00 | G226: - | H226: 515 | I226: 600.00 | J226: Profit of Rs.40/- | K226: 40.00 | L226: 8.42% | M226: Successful | N226: 2014-10-27
... 149 more rows

Sheet Sheet2 (hidden)
A1: SYMBOL | B1: SERIES | C1: OPEN | D1: HIGH | E1: LOW | F1: CLOSE | G1: LAST | H1: PREVCLOSE | I1: TOTTRDQTY | J1: TOTTRDVAL | K1: TIMESTAMP | L1: TOTALTRADES | M1: ISIN | N1: ISIN
A2: 20MICRONS | B2: EQ | C2: 37 | D2: 38.45 | E2: 36.4 | F2: 37.6 | G2: 37.65 | H2: 36.75 | I2: 79468 | J2: 2993683.25 | K2: 2019-10-30 | L2: 1019 | M2: INE144J01027
A3: 21STCENMGM | B3: EQ | C3: 13.1 | D3: 13.1 | E3: 13 | F3: 13 | G3: 13 | H3: 13.1 | I3: 21 | J3: 273.1 | K3: 2019-10-30 | L3: 3 | M3: INE253B01015
A4: 3IINFOTECH | B4: EQ | C4: 2.1 | D4: 2.1 | E4: 2 | F4: 2 | G4: 2.05 | H4: 2.05 | I4: 672511 | J4: 1366870.05 | K4: 2019-10-30 | L4: 346 | M4: INE748C01020
A5: 3MINDIA | B5: EQ | C5: 22400 | D5: 22824.95 | E5: 22055 | F5: 22281.2 | G5: 22275 | H5: 22221.85 | I5: 4885 | J5: 109987770.9 | K5: 2019-10-30 | L5: 1378 | M5: INE470A01017
A6: 3PLAND | B6: EQ | C6: 6.5 | D6: 6.5 | E6: 6.2 | F6: 6.2 | G6: 6.2 | H6: 6.2 | I6: 175 | J6: 1115 | K6: 2019-10-30 | L6: 2 | M6: INE105C01023
A7: 5PAISA | B7: EQ | C7: 174.45 | D7: 175.95 | E7: 172.5 | F7: 174.7 | G7: 174.95 | H7: 172.25 | I7: 4149 | J7: 723149.3 | K7: 2019-10-30 | L7: 110 | M7: INE618L01018
A8: 63MOONS | B8: EQ | C8: 123.05 | D8: 127.1 | E8: 121.6 | F8: 122.2 | G8: 122.75 | H8: 123.15 | I8: 156137 | J8: 19345885.4 | K8: 2019-10-30 | L8: 2283 | M8: INE111B01023
A9: A2ZINFRA | B9: EQ | C9: 9 | D9: 9.05 | E9: 8.6 | F9: 8.65 | G9: 8.65 | H9: 8.7 | I9: 576283 | J9: 5054828.8 | K9: 2019-10-30 | L9: 658 | M9: INE619I01012
A10: AARTIDRUGS | B10: EQ | C10: 522 | D10: 541.45 | E10: 520 | F10: 538.05 | G10: 540 | H10: 525.75 | I10: 15781 | J10: 8366372.1 | K10: 2019-10-30 | L10: 1594 | M10: INE767A01016
A11: AARTIIND | B11: EQ | C11: 870.1 | D11: 879.7 | E11: 844 | F11: 870.35 | G11: 870 | H11: 875.15 | I11: 98961 | J11: 86409165.55 | K11: 2019-10-30 | L11: 3595 | M11: INE769A01020
A12: AARVEEDEN | B12: EQ | C12: 14.75 | D12: 14.75 | E12: 13.6 | F12: 14.45 | G12: 14.45 | H12: 14.45 | I12: 8234 | J12: 116061.15 | K12: 2019-10-30 | L12: 69 | M12: INE273D01019
A13: AAVAS | B13: EQ | C13: 1612 | D13: 1631.65 | E13: 1585.15 | F13: 1594.9 | G13: 1591 | H13: 1611.95 | I13: 24658 | J13: 39484662.4 | K13: 2019-10-30 | L13: 4846 | M13: INE216P01012
A14: ABAN | B14: BE | C14: 26 | D14: 26.2 | E14: 25.15 | F14: 25.55 | G14: 25.8 | H14: 25.7 | I14: 28056 | J14: 722772.25 | K14: 2019-10-30 | L14: 235 | M14: INE421A01028
A15: ABB | B15: EQ | C15: 1482.8 | D15: 1482.8 | E15: 1441.65 | F15: 1448.15 | G15: 1449 | H15: 1469.65 | I15: 120399 | J15: 174627228.3 | K15: 2019-10-30 | L15: 9187 | M15: INE117A01022
A16: ABBOTINDIA | B16: EQ | C16: 11900 | D16: 12051.45 | E16: 11900 | F16: 11922.5 | G16: 11910 | H16: 11876.6 | I16: 22409 | J16: 267959527.1 | K16: 2019-10-30 | L16: 2078 | M16: INE358A01014
A17: ABCAPITAL | B17: EQ | C17: 80 | D17: 81.6 | E17: 79.5 | F17: 79.9 | G17: 79.55 | H17: 79.55 | I17: 2696635 | J17: 217438589.3 | K17: 2019-10-30 | L17: 22858 | M17: INE674K01013
A18: ABFRL | B18: EQ | C18: 206.75 | D18: 214.35 | E18: 206 | F18: 211.65 | G18: 211.1 | H18: 205.75 | I18: 413600 | J18: 87105071.6 | K18: 2019-10-30 | L18: 10377 | M18: INE647O01011
A19: ABSLBANETF | B19: EQ | C19: 330 | D19: 330 | E19: 330 | F19: 330 | G19: 330 | H19: 294.6 | I19: 1 | J19: 330 | K19: 2019-10-30 | L19: 1 | M19: INF209KB1O58
A20: ABSLNN50ET | B20: EQ | C20: 286.01 | D20: 290 | E20: 286.01 | F20: 289.34 | G20: 289.34 | H20: 285.26 | I20: 27 | J20: 7809.17 | K20: 2019-10-30 | L20: 9 | M20: INF209KB1B87
A21: ACC | B21: EQ | C21: 1532.1 | D21: 1572 | E21: 1521.2 | F21: 1532.25 | G21: 1539.55 | H21: 1531.2 | I21: 920215 | J21: 1425293041 | K21: 2019-10-30 | L21: 34914 | M21: INE012A01025
A22: ACCELYA | B22: EQ | C22: 933 | D22: 947.55 | E22: 913.7 | F22: 939.9 | G22: 930 | H22: 943.1 | I22: 9076 | J22: 8528009.75 | K22: 2019-10-30 | L22: 450 | M22: INE793A01012
A23: ACE | B23: EQ | C23: 82.25 | D23: 82.9 | E23: 80.7 | F23: 82.15 | G23: 82 | H23: 81.7 | I23: 130802 | J23: 10689371.65 | K23: 2019-10-30 | L23: 1251 | M23: INE731H01025
A24: ADANIENT | B24: EQ | C24: 194.35 | D24: 197.45 | E24: 192.3 | F24: 195.75 | G24: 194.9 | H24: 195.55 | I24: 4791525 | J24: 934371233 | K24: 2019-10-30 | L24: 35683 | M24: INE423A01024
A25: ADANIGAS | B25: EQ | C25: 148.5 | D25: 150.4 | E25: 146.6 | F25: 146.9 | G25: 146.65 | H25: 147.9 | I25: 1306351 | J25: 193279303.9 | K25: 2019-10-30 | L25: 10203 | M25: INE399L01023
A26: ADANIGREEN | B26: EQ | C26: 89.6 | D26: 92 | E26: 89.5 | F26: 89.9 | G26: 89.8 | H26: 89.5 | I26: 1188364 | J26: 107159404.8 | K26: 2019-10-30 | L26: 8154 | M26: INE364U01010
A27: ADANIPORTS | B27: EQ | C27: 399.2 | D27: 405 | E27: 395.5 | F27: 398.1 | G27: 398.15 | H27: 398.95 | I27: 5590453 | J27: 2238917938 | K27: 2019-10-30 | L27: 48437 | M27: INE742F01042
A28: ADANIPOWER | B28: EQ | C28: 66.25 | D28: 66.65 | E28: 65.5 | F28: 66.05 | G28: 66 | H28: 66.25 | I28: 4433796 | J28: 293343114.6 | K28: 2019-10-30 | L28: 12651 | M28: INE814H01011
A29: ADANITRANS | B29: EQ | C29: 265 | D29: 268.8 | E29: 261.05 | F29: 264.6 | G29: 263.8 | H29: 263.9 | I29: 211276 | J29: 55990605.3 | K29: 2019-10-30 | L29: 3977 | M29: INE931S01010
A30: ADFFOODS | B30: EQ | C30: 276.5 | D30: 282 | E30: 275.5 | F30: 279.95 | G30: 276 | H30: 278.45 | I30: 11419 | J30: 3175711.1 | K30: 2019-10-30 | L30: 555 | M30: INE982B01019
A31: ADHUNIKIND | B31: EQ | C31: 118.95 | D31: 121.6 | E31: 117.15 | F31: 120.75 | G31: 120.1 | H31: 118.45 | I31: 50241 | J31: 5994885.2 | K31: 2019-10-30 | L31: 1276 | M31: INE452L01012
A32: ADLABS | B32: EQ | C32: 2.4 | D32: 2.4 | E32: 2.4 | F32: 2.4 | G32: 2.4 | H32: 2.3 | I32: 341599 | J32: 819837.6 | K32: 2019-10-30 | L32: 194 | M32: INE172N01012
A33: ADORWELD | B33: EQ | C33: 312 | D33: 315 | E33: 307 | F33: 314.25 | G33: 313 | H33: 311.15 | I33: 6566 | J33: 2042157.2 | K33: 2019-10-30 | L33: 232 | M33: INE045A01017
A34: ADROITINFO | B34: BE | C34: 7.05 | D34: 7.25 | E34: 6.7 | F34: 7.25 | G34: 7.25 | H34: 7.05 | I34: 202058 | J34: 1384413.85 | K34: 2019-10-30 | L34: 10 | M34: INE737B01033
A35: ADSL | B35: EQ | C35: 13.35 | D35: 13.9 | E35: 13.1 | F35: 13.25 | G35: 13.35 | H35: 13.3 | I35: 36511 | J35: 486073.3 | K35: 2019-10-30 | L35: 180 | M35: INE102I01027
A36: ADVANIHOTR | B36: EQ | C36: 57.25 | D36: 58.2 | E36: 56.25 | F36: 57.05 | G36: 57.25 | H36: 57.45 | I36: 826 | J36: 47244.2 | K36: 2019-10-30 | L36: 34 | M36: INE199C01026
A37: ADVENZYMES | B37: EQ | C37: 173 | D37: 194.95 | E37: 173 | F37: 185 | G37: 185.05 | H37: 170.75 | I37: 601675 | J37: 112482298.5 | K37: 2019-10-30 | L37: 12104 | M37: INE837H01020
A38: AEGISCHEM | B38: EQ | C38: 177 | D38: 177 | E38: 170.25 | F38: 171.05 | G38: 171 | H38: 175.1 | I38: 87672 | J38: 15205070.05 | K38: 2019-10-30 | L38: 1547 | M38: INE208C01025
A39: AFFLE | B39: EQ | C39: 1440.1 | D39: 1454.9 | E39: 1421 | F39: 1428 | G39: 1422 | H39: 1438.95 | I39: 48795 | J39: 70177162.85 | K39: 2019-10-30 | L39: 4372 | M39: INE00WC01019
A40: AGARIND | B40: EQ | C40: 120.85 | D40: 124.9 | E40: 119.05 | F40: 119.65 | G40: 119.05 | H40: 117.6 | I40: 12798 | J40: 1537198.8 | K40: 2019-10-30 | L40: 153 | M40: INE204E01012
A41: AGCNET | B41: BE | C41: 112 | D41: 116.95 | E41: 112 | F41: 112.05 | G41: 112.05 | H41: 115 | I41: 1096 | J41: 126739.7 | K41: 2019-10-30 | L41: 7 | M41: INE676A01019
A42: AGRITECH | B42: EQ | C42: 48.65 | D42: 49.85 | E42: 46.3 | F42: 47.45 | G42: 47.3 | H42: 46.45 | I42: 8674 | J42: 416608 | K42: 2019-10-30 | L42: 251 | M42: INE449G01018
A43: AGROPHOS | B43: EQ | C43: 116.2 | D43: 116.4 | E43: 115.95 | F43: 116 | G43: 116 | H43: 115.8 | I43: 307534 | J43: 35727041.65 | K43: 2019-10-30 | L43: 31703 | M43: INE740V01019
A44: AHLEAST | B44: EQ | C44: 184 | D44: 186 | E44: 179.2 | F44: 184.05 | G44: 186 | H44: 181.9 | I44: 583 | J44: 106960.35 | K44: 2019-10-30 | L44: 61 | M44: INE926K01017
A45: AHLUCONT | B45: EQ | C45: 299.9 | D45: 304.4 | E45: 299.9 | F45: 302.6 | G45: 303 | H45: 301.1 | I45: 4463 | J45: 1348336 | K45: 2019-10-30 | L45: 340 | M45: INE758C01029
A46: AHLWEST | B46: EQ | C46: 278.1 | D46: 289.45 | E46: 278.05 | F46: 281.55 | G46: 279 | H46: 278.05 | I46: 171 | J46: 48362.35 | K46: 2019-10-30 | L46: 62 | M46: INE915K01010
A47: AIAENG | B47: EQ | C47: 1719.85 | D47: 1739 | E47: 1702.1 | F47: 1721.6 | G47: 1722 | H47: 1713.75 | I47: 38694 | J47: 66528767.1 | K47: 2019-10-30 | L47: 3282 | M47: INE212H01026
A48: AIONJSW | B48: EQ | C48: 10 | D48: 10.45 | E48: 9.9 | F48: 10 | G48: 9.95 | H48: 10 | I48: 85956 | J48: 860429.45 | K48: 2019-10-30 | L48: 148 | M48: INE743C01021
A49: AIRAN | B49: EQ | C49: 12.75 | D49: 13 | E49: 12.75 | F49: 12.95 | G49: 13 | H49: 12.75 | I49: 4118 | J49: 53140.2 | K49: 2019-10-30 | L49: 20 | M49: INE645W01026
A50: AJANTPHARM | B50: EQ | C50: 1030 | D50: 1030 | E50: 1011 | F50: 1025.35 | G50: 1025.45 | H50: 1026.45 | I50: 29285 | J50: 29937196.45 | K50: 2019-10-30 | L50: 2509 | M50: INE031B01049
A51: AJMERA | B51: EQ | C51: 120.6 | D51: 120.6 | E51: 115.65 | F51: 117.55 | G51: 117.3 | H51: 119.1 | I51: 24001 | J51: 2840307.1 | K51: 2019-10-30 | L51: 751 | M51: INE298G01027
A52: AKASH | B52: EQ | C52: 66.5 | D52: 66.5 | E52: 62.05 | F52: 62.1 | G52: 62.1 | H52: 63.9 | I52: 2755 | J52: 180841.4 | K52: 2019-10-30 | L52: 16 | M52: INE737W01013
A53: AKSHARCHEM | B53: EQ | C53: 217.8 | D53: 222.8 | E53: 210.55 | F53: 215.65 | G53: 214.9 | H53: 212.35 | I53: 1955 | J53: 423450.65 | K53: 2019-10-30 | L53: 243 | M53: INE542B01011
A54: AKSHOPTFBR | B54: EQ | C54: 6.9 | D54: 6.95 | E54: 6.8 | F54: 6.9 | G54: 6.85 | H54: 6.9 | I54: 135897 | J54: 936319.2 | K54: 2019-10-30 | L54: 354 | M54: INE523B01011
A55: AKZOINDIA | B55: EQ | C55: 2090 | D55: 2119 | E55: 2055 | F55: 2104 | G55: 2097 | H55: 2046.7 | I55: 29560 | J55: 61877025.3 | K55: 2019-10-30 | L55: 2862 | M55: INE133A01011
A56: ALANKIT | B56: EQ | C56: 13.1 | D56: 13.1 | E56: 13.1 | F56: 13.1 | G56: 13.1 | H56: 11.95 | I56: 70041 | J56: 917537.1 | K56: 2019-10-30 | L56: 62 | M56: INE914E01040
A57: ALBERTDAVD | B57: EQ | C57: 360.15 | D57: 404 | E57: 360.05 | F57: 390.2 | G57: 394.9 | H57: 369.25 | I57: 20678 | J57: 8102390.95 | K57: 2019-10-30 | L57: 1272 | M57: INE155C01010
A58: ALBK | B58: EQ | C58: 26.35 | D58: 27.6 | E58: 25.85 | F58: 27.05 | G58: 27.15 | H58: 25.75 | I58: 1582108 | J58: 42161634.4 | K58: 2019-10-30 | L58: 4557 | M58: INE428A01015
A59: ALCHEM | B59: BE | C59: 0.75 | D59: 0.8 | E59: 0.75 | F59: 0.75 | G59: 0.75 | H59: 0.75 | I59: 5190 | J59: 4055.5 | K59: 2019-10-30 | L59: 16 | M59: INE964B01033
A60: ALEMBICLTD | B60: EQ | C60: 50.3 | D60: 51.3 | E60: 49.6 | F60: 50.45 | G60: 50.3 | H60: 50.2 | I60: 141464 | J60: 7154489.55 | K60: 2019-10-30 | L60: 2832 | M60: INE426A01027
A61: ALICON | B61: EQ | C61: 404 | D61: 423.9 | E61: 397.4 | F61: 410.3 | G61: 407.7 | H61: 403.4 | I61: 4665 | J61: 1904989.9 | K61: 2019-10-30 | L61: 406 | M61: INE062D01024
A62: ALKALI | B62: EQ | C62: 46.7 | D62: 46.7 | E62: 44.4 | F62: 44.65 | G62: 44.65 | H62: 45.4 | I62: 3364 | J62: 150706.6 | K62: 2019-10-30 | L62: 63 | M62: INE773I01017
A63: ALKEM | B63: EQ | C63: 1979.3 | D63: 1980 | E63: 1962.85 | F63: 1977 | G63: 1964 | H63: 1974 | I63: 9228 | J63: 18196368.65 | K63: 2019-10-30 | L63: 1097 | M63: INE540L01014
A64: ALKYLAMINE | B64: EQ | C64: 923.75 | D64: 923.9 | E64: 870.3 | F64: 880 | G64: 875.05 | H64: 924.45 | I64: 12617 | J64: 11361675.9 | K64: 2019-10-30 | L64: 1058 | M64: INE150B01021
A65: ALLCARGO | B65: EQ | C65: 99.75 | D65: 100.8 | E65: 99.35 | F65: 100.25 | G65: 100.75 | H65: 99.35 | I65: 136957 | J65: 13701417.85 | K65: 2019-10-30 | L65: 1936 | M65: INE418H01029
A66: ALLSEC | B66: EQ | C66: 290.1 | D66: 296.2 | E66: 290.1 | F66: 294.8 | G66: 295 | H66: 295 | I66: 1190 | J66: 349628.85 | K66: 2019-10-30 | L66: 128 | M66: INE835G01018
A67: ALMONDZ | B67: EQ | C67: 9.55 | D67: 9.55 | E67: 9.55 | F67: 9.55 | G67: 9.55 | H67: 9.55 | I67: 6 | J67: 57.3 | K67: 2019-10-30 | L67: 1 | M67: INE326B01027
A68: ALOKTEXT | B68: EQ | C68: 1.45 | D68: 1.5 | E68: 1.4 | F68: 1.45 | G68: 1.5 | H68: 1.45 | I68: 3606860 | J68: 5096108 | K68: 2019-10-30 | L68: 1224 | M68: INE270A01011
A69: ALPA | B69: EQ | C69: 14 | D69: 14.6 | E69: 14 | F69: 14.2 | G69: 14.1 | H69: 14.35 | I69: 4871 | J69: 69449.65 | K69: 2019-10-30 | L69: 56 | M69: INE385I01010
A70: ALPHAGEO | B70: EQ | C70: 200 | D70: 204 | E70: 190 | F70: 194.1 | G70: 194.95 | H70: 195.95 | I70: 7873 | J70: 1546038.3 | K70: 2019-10-30 | L70: 283 | M70: INE137C01018
A71: ALPSINDUS | B71: BE | C71: 0.45 | D71: 0.45 | E71: 0.4 | F71: 0.4 | G71: 0.4 | H71: 0.4 | I71: 2880 | J71: 1234.5 | K71: 2019-10-30 | L71: 11 | M71: INE093B01015
A72: AMARAJABAT | B72: EQ | C72: 666.5 | D72: 681 | E72: 664.5 | F72: 675.85 | G72: 675 | H72: 662.55 | I72: 409195 | J72: 275619879.2 | K72: 2019-10-30 | L72: 12088 | M72: INE885A01032
A73: AMBER | B73: EQ | C73: 1008.7 | D73: 1010 | E73: 990 | F73: 1001.35 | G73: 997 | H73: 1001.4 | I73: 14621 | J73: 14625590.8 | K73: 2019-10-30 | L73: 1532 | M73: INE371P01015
A74: AMBIKCO | B74: EQ | C74: 938.65 | D74: 938.65 | E74: 899 | F74: 900.8 | G74: 900 | H74: 924.5 | I74: 4321 | J74: 3924557.2 | K74: 2019-10-30 | L74: 517 | M74: INE540G01014
A75: AMBUJACEM | B75: EQ | C75: 199.8 | D75: 203.7 | E75: 199.65 | F75: 200.6 | G75: 201.25 | H75: 199.2 | I75: 2471767 | J75: 498064699.8 | K75: 2019-10-30 | L75: 19463 | M75: INE079A01024
A76: AMDIND | B76: EQ | C76: 15.2 | D76: 15.3 | E76: 15 | F76: 15 | G76: 15 | H76: 14.95 | I76: 2994 | J76: 45058.4 | K76: 2019-10-30 | L76: 118 | M76: INE005I01014
A77: AMJLAND | B77: EQ | C77: 18.85 | D77: 18.85 | E77: 17.7 | F77: 18.4 | G77: 18.5 | H77: 18.25 | I77: 4188 | J77: 77264 | K77: 2019-10-30 | L77: 69 | M77: INE606A01024
A78: AMRUTANJAN | B78: EQ | C78: 423 | D78: 440.8 | E78: 421 | F78: 429.05 | G78: 429 | H78: 418.4 | I78: 72866 | J78: 31384741.75 | K78: 2019-10-30 | L78: 4373 | M78: INE098F01031
A79: ANANTRAJ | B79: EQ | C79: 31.1 | D79: 32.1 | E79: 31.05 | F79: 31.4 | G79: 31.85 | H79: 31.25 | I79: 182387 | J79: 5769923.25 | K79: 2019-10-30 | L79: 3501 | M79: INE242C01024
A80: ANDHRABANK | B80: EQ | C80: 16.5 | D80: 17.6 | E80: 16.4 | F80: 17.4 | G80: 17.45 | H80: 16.4 | I80: 1235170 | J80: 21198155.35 | K80: 2019-10-30 | L80: 2990 | M80: INE434A01013
A81: ANDHRACEMT | B81: BE | C81: 2.45 | D81: 2.55 | E81: 2.35 | F81: 2.4 | G81: 2.35 | H81: 2.45 | I81: 45407 | J81: 110265.2 | K81: 2019-10-30 | L81: 108 | M81: INE666E01012
A82: ANDHRSUGAR | B82: EQ | C82: 268.7 | D82: 278.9 | E82: 265 | F82: 274.1 | G82: 274 | H82: 267.15 | I82: 31448 | J82: 8574921.55 | K82: 2019-10-30 | L82: 1683 | M82: INE715B01013
A83: ANIKINDS | B83: EQ | C83: 6.8 | D83: 6.85 | E83: 6.55 | F83: 6.85 | G83: 6.85 | H83: 6.55 | I83: 6205 | J83: 42008.75 | K83: 2019-10-30 | L83: 35 | M83: INE087B01017
A84: ANKITMETAL | B84: BE | C84: 0.45 | D84: 0.45 | E84: 0.35 | F84: 0.45 | G84: 0.45 | H84: 0.4 | I84: 39321 | J84: 17548.85 | K84: 2019-10-30 | L84: 19 | M84: INE106I01010
A85: ANSALAPI | B85: EQ | C85: 4.15 | D85: 4.4 | E85: 4.15 | F85: 4.2 | G85: 4.2 | H85: 4.25 | I85: 33105 | J85: 140078.05 | K85: 2019-10-30 | L85: 90 | M85: INE436A01026
A86: ANSALHSG | B86: EQ | C86: 4.55 | D86: 5.15 | E86: 4.45 | F86: 4.8 | G86: 4.8 | H86: 4.5 | I86: 51368 | J86: 244386.8 | K86: 2019-10-30 | L86: 275 | M86: INE880B01015
A87: ANTGRAPHIC | B87: BE | C87: 0.7 | D87: 0.75 | E87: 0.7 | F87: 0.75 | G87: 0.75 | H87: 0.75 | I87: 71609 | J87: 50272.5 | K87: 2019-10-30 | L87: 18 | M87: INE414B01021
A88: ANUP | B88: EQ | C88: 494 | D88: 500 | E88: 489.05 | F88: 491.6 | G88: 491 | H88: 497.4 | I88: 13847 | J88: 6840896.35 | K88: 2019-10-30 | L88: 386 | M88: INE294Z01018
A89: APARINDS | B89: EQ | C89: 545.3 | D89: 554.4 | E89: 536.05 | F89: 538.5 | G89: 536.1 | H89: 548.65 | I89: 9563 | J89: 5230656.2 | K89: 2019-10-30 | L89: 896 | M89: INE372A01015
A90: APCL | B90: EQ | C90: 144 | D90: 146.4 | E90: 144 | F90: 146.25 | G90: 146.25 | H90: 146.5 | I90: 739 | J90: 107763.8 | K90: 2019-10-30 | L90: 21 | M90: INE071F01012
A91: APCOTEXIND | B91: EQ | C91: 172.65 | D91: 173.95 | E91: 169.15 | F91: 170.15 | G91: 169.2 | H91: 171.15 | I91: 22226 | J91: 3809226.4 | K91: 2019-10-30 | L91: 701 | M91: INE116A01032
A92: APEX | B92: EQ | C92: 238.1 | D92: 244.6 | E92: 235.95 | F92: 238.65 | G92: 238 | H92: 238.1 | I92: 65907 | J92: 15882749.8 | K92: 2019-10-30 | L92: 1915 | M92: INE346W01013
A93: APLAPOLLO | B93: EQ | C93: 1440 | D93: 1500 | E93: 1387 | F93: 1473.6 | G93: 1500 | H93: 1423.95 | I93: 14825 | J93: 21225585.3 | K93: 2019-10-30 | L93: 1487 | M93: INE702C01019
A94: APLLTD | B94: EQ | C94: 540.2 | D94: 554.75 | E94: 540.1 | F94: 546.85 | G94: 545.3 | H94: 541.95 | I94: 61786 | J94: 33901315 | K94: 2019-10-30 | L94: 7340 | M94: INE901L01018
A95: APOLLO | B95: EQ | C95: 71 | D95: 71.65 | E95: 68.55 | F95: 68.9 | G95: 68.55 | H95: 68.7 | I95: 28426 | J95: 1988233.4 | K95: 2019-10-30 | L95: 1606 | M95: INE713T01010
A96: APOLLOHOSP | B96: EQ | C96: 1459.8 | D96: 1489.25 | E96: 1440 | F96: 1461.95 | G96: 1468 | H96: 1431 | I96: 751366 | J96: 1104957824 | K96: 2019-10-30 | L96: 26968 | M96: INE437A01024
A97: APOLLOTYRE | B97: EQ | C97: 187.75 | D97: 188.5 | E97: 184.45 | F97: 187.8 | G97: 188 | H97: 186.85 | I97: 1410885 | J97: 263975612.9 | K97: 2019-10-30 | L97: 10431 | M97: INE438A01022
A98: APOLSINHOT | B98: EQ | C98: 768.05 | D98: 794.9 | E98: 760.35 | F98: 787.8 | G98: 789.75 | H98: 785.6 | I98: 1038 | J98: 801975.75 | K98: 2019-10-30 | L98: 113 | M98: INE451F01024
A99: APTECHT | B99: EQ | C99: 163.8 | D99: 173 | E99: 163.5 | F99: 169.4 | G99: 170.6 | H99: 163.8 | I99: 422758 | J99: 71470027.5 | K99: 2019-10-30 | L99: 8784 | M99: INE266F01018
A100: ARCHIDPLY | B100: EQ | C100: 27.05 | D100: 27.95 | E100: 27.05 | F100: 27.55 | G100: 27.6 | H100: 27.85 | I100: 8805 | J100: 241783.15 | K100: 2019-10-30 | L100: 253 | M100: INE877I01016
A101: ARCHIES | B101: BE | C101: 18.3 | D101: 18.7 | E101: 18.1 | F101: 18.55 | G101: 18.65 | H101: 18.7 | I101: 42812 | J101: 787977 | K101: 2019-10-30 | L101: 119 | M101: INE731A01020
A102: ARCOTECH | B102: BE | C102: 1.65 | D102: 1.7 | E102: 1.65 | F102: 1.7 | G102: 1.7 | H102: 1.65 | I102: 7188 | J102: 12203.75 | K102: 2019-10-30 | L102: 22 | M102: INE574I01035
A103: ARIES | B103: EQ | C103: 64.3 | D103: 68.75 | E103: 64.2 | F103: 65.2 | G103: 64.9 | H103: 63.85 | I103: 49679 | J103: 3288857.75 | K103: 2019-10-30 | L103: 1229 | M103: INE298I01015
A104: ARIHANT | B104: EQ | C104: 18 | D104: 18.45 | E104: 16 | F104: 17.5 | G104: 17.5 | H104: 17.25 | I104: 2177 | J104: 38515.2 | K104: 2019-10-30 | L104: 38 | M104: INE413D01011
A105: ARIHANTSUP | B105: BE | C105: 26.15 | D105: 27.4 | E105: 25.35 | F105: 25.9 | G105: 26.4 | H105: 26.5 | I105: 2216 | J105: 58098.2 | K105: 2019-10-30 | L105: 43 | M105: INE643K01018
A106: ARMANFIN | B106: EQ | C106: 527.05 | D106: 534 | E106: 520.15 | F106: 528.1 | G106: 520.25 | H106: 518.75 | I106: 4735 | J106: 2493411.5 | K106: 2019-10-30 | L106: 324 | M106: INE109C01017
A107: AROGRANITE | B107: EQ | C107: 41 | D107: 42.9 | E107: 40.25 | F107: 41 | G107: 41.5 | H107: 40.2 | I107: 1928 | J107: 79314.5 | K107: 2019-10-30 | L107: 66 | M107: INE210C01013
A108: ARROWGREEN | B108: EQ | C108: 55.35 | D108: 55.35 | E108: 53 | F108: 54.35 | G108: 54 | H108: 53 | I108: 1457 | J108: 78446.65 | K108: 2019-10-30 | L108: 97 | M108: INE570D01018
A109: ARROWTEX | B109: EQ | C109: 10.85 | D109: 10.85 | E109: 9.4 | F109: 9.65 | G109: 9.65 | H109: 9.65 | I109: 3428 | J109: 33113.05 | K109: 2019-10-30 | L109: 52 | M109: INE933J01015
A110: ARSHIYA | B110: EQ | C110: 18.35 | D110: 18.5 | E110: 17.5 | F110: 17.75 | G110: 17.85 | H110: 18.35 | I110: 18093 | J110: 325296.45 | K110: 2019-10-30 | L110: 101 | M110: INE968D01022
A111: ARSSINFRA | B111: EQ | C111: 25.25 | D111: 25.35 | E111: 23.6 | F111: 24.25 | G111: 24 | H111: 24.15 | I111: 15211 | J111: 376522.4 | K111: 2019-10-30 | L111: 232 | M111: INE267I01010
A112: ARVIND | B112: EQ | C112: 51 | D112: 52.3 | E112: 50.1 | F112: 51.3 | G112: 51.1 | H112: 50.75 | I112: 1363788 | J112: 69930976.55 | K112: 2019-10-30 | L112: 7785 | M112: INE034A01011
A113: ARVINDFASN | B113: EQ | C113: 445.5 | D113: 475.15 | E113: 441.2 | F113: 453.6 | G113: 451.5 | H113: 445.15 | I113: 86243 | J113: 38966003.5 | K113: 2019-10-30 | L113: 8845 | M113: INE955V01021
A114: ARVSMART | B114: EQ | C114: 96.9 | D114: 96.9 | E114: 94.05 | F114: 94.85 | G114: 95 | H114: 94.6 | I114: 10444 | J114: 997703.1 | K114: 2019-10-30 | L114: 202 | M114: INE034S01021
A115: ASAHIINDIA | B115: EQ | C115: 207.95 | D115: 207.95 | E115: 203.1 | F115: 205.65 | G115: 203.75 | H115: 206.8 | I115: 174625 | J115: 35865734.65 | K115: 2019-10-30 | L115: 1243 | M115: INE439A01020
A116: ASAHISONG | B116: EQ | C116: 162 | D116: 162 | E116: 149.05 | F116: 151.25 | G116: 150.2 | H116: 158.85 | I116: 10988 | J116: 1692763.2 | K116: 2019-10-30 | L116: 463 | M116: INE228I01012
A117: ASAL | B117: EQ | C117: 39.85 | D117: 44.3 | E117: 39.85 | F117: 40.95 | G117: 40.7 | H117: 36.95 | I117: 114087 | J117: 4716790.6 | K117: 2019-10-30 | L117: 1473 | M117: INE900C01027
A118: ASHAPURMIN | B118: BE | C118: 31.1 | D118: 32.8 | E118: 31.1 | F118: 32.1 | G118: 32.1 | H118: 32.3 | I118: 30202 | J118: 964478 | K118: 2019-10-30 | L118: 96 | M118: INE348A01023
A119: ASHIANA | B119: EQ | C119: 96.85 | D119: 97.95 | E119: 95 | F119: 96.85 | G119: 97 | H119: 95.2 | I119: 40927 | J119: 3950214.2 | K119: 2019-10-30 | L119: 1558 | M119: INE365D01021
A120: ASHIMASYN | B120: EQ | C120: 7.95 | D120: 8.05 | E120: 7.6 | F120: 7.65 | G120: 7.75 | H120: 7.95 | I120: 19244 | J120: 149736.05 | K120: 2019-10-30 | L120: 136 | M120: INE440A01010
A121: ASHOKA | B121: EQ | C121: 103.1 | D121: 104.8 | E121: 102.5 | F121: 102.85 | G121: 103.1 | H121: 103 | I121: 227138 | J121: 23484841.35 | K121: 2019-10-30 | L121: 3525 | M121: INE442H01029
A122: ASHOKLEY | B122: EQ | C122: 79.9 | D122: 80.35 | E122: 77.55 | F122: 78.2 | G122: 78.1 | H122: 79.25 | I122: 27208583 | J122: 2146008288 | K122: 2019-10-30 | L122: 79708 | M122: INE208A01029
A123: ASIANHOTNR | B123: EQ | C123: 103.9 | D123: 103.9 | E123: 97.15 | F123: 100.5 | G123: 100.45 | H123: 103.9 | I123: 4366 | J123: 437626.1 | K123: 2019-10-30 | L123: 193 | M123: INE363A01022
A124: ASIANPAINT | B124: EQ | C124: 1830 | D124: 1830 | E124: 1804 | F124: 1821.3 | G124: 1825 | H124: 1814.25 | I124: 1133258 | J124: 2059025241 | K124: 2019-10-30 | L124: 67069 | M124: INE021A01026
A125: ASIANTILES | B125: EQ | C125: 248.35 | D125: 249 | E125: 235 | F125: 238.3 | G125: 240.9 | H125: 248.3 | I125: 86470 | J125: 20918843.25 | K125: 2019-10-30 | L125: 3708 | M125: INE022I01019
A126: ASPINWALL | B126: EQ | C126: 140.25 | D126: 140.25 | E126: 135.65 | F126: 140 | G126: 140 | H126: 138.95 | I126: 1047 | J126: 146542.9 | K126: 2019-10-30 | L126: 9 | M126: INE991I01015
A127: ASTEC | B127: EQ | C127: 356.85 | D127: 372 | E127: 356.85 | F127: 360.6 | G127: 360 | H127: 356.85 | I127: 5129 | J127: 1863349.1 | K127: 2019-10-30 | L127: 353 | M127: INE563J01010
A128: ASTERDM | B128: EQ | C128: 128.9 | D128: 128.9 | E128: 126.25 | F128: 127.5 | G128: 127 | H128: 127.5 | I128: 30597 | J128: 3906270.05 | K128: 2019-10-30 | L128: 1030 | M128: INE914M01019
A129: ASTRAL | B129: EQ | C129: 1134.9 | D129: 1140 | E129: 1106 | F129: 1113.55 | G129: 1109 | H129: 1123.05 | I129: 98398 | J129: 110631766.9 | K129: 2019-10-30 | L129: 5136 | M129: INE006I01046
A130: ASTRAMICRO | B130: EQ | C130: 76.4 | D130: 77.85 | E130: 75.7 | F130: 76.65 | G130: 76.95 | H130: 75.6 | I130: 85442 | J130: 6536973.35 | K130: 2019-10-30 | L130: 2026 | M130: INE386C01029
A131: ASTRAZEN | B131: EQ | C131: 2589 | D131: 2774 | E131: 2577.55 | F131: 2711.4 | G131: 2691.55 | H131: 2589 | I131: 64047 | J131: 173045232.6 | K131: 2019-10-30 | L131: 9147 | M131: INE203A01020
A132: ASTRON | B132: EQ | C132: 59.7 | D132: 59.7 | E132: 59.7 | F132: 59.7 | G132: 59.7 | H132: 74.6 | I132: 159906 | J132: 9546388.2 | K132: 2019-10-30 | L132: 728 | M132: INE646X01014
A133: ATFL | B133: EQ | C133: 604.05 | D133: 640 | E133: 604.05 | F133: 623.95 | G133: 625 | H133: 617.25 | I133: 15960 | J133: 9900355.5 | K133: 2019-10-30 | L133: 882 | M133: INE209A01019
A134: ATLANTA | B134: BE | C134: 6.4 | D134: 6.95 | E134: 6.4 | F134: 6.95 | G134: 6.95 | H134: 6.65 | I134: 11174 | J134: 76148.1 | K134: 2019-10-30 | L134: 54 | M134: INE285H01022
A135: ATUL | B135: EQ | C135: 4280.4 | D135: 4314.95 | E135: 4231.1 | F135: 4251.95 | G135: 4246 | H135: 4276.6 | I135: 10532 | J135: 44962386.15 | K135: 2019-10-30 | L135: 3029 | M135: INE100A01010
A136: ATULAUTO | B136: EQ | C136: 230.4 | D136: 233.65 | E136: 227 | F136: 230.75 | G136: 230.5 | H136: 231.45 | I136: 11486 | J136: 2645555.9 | K136: 2019-10-30 | L136: 457 | M136: INE951D01028
A137: AUBANK | B137: EQ | C137: 713 | D137: 713 | E137: 685.25 | F137: 689.8 | G137: 688.9 | H137: 689.6 | I137: 370908 | J137: 256470843.2 | K137: 2019-10-30 | L137: 8097 | M137: INE949L01017
A138: AURIONPRO | B138: EQ | C138: 80.8 | D138: 80.8 | E138: 74 | F138: 75.05 | G138: 75 | H138: 77.2 | I138: 8142 | J138: 617536 | K138: 2019-10-30 | L138: 202 | M138: INE132H01018
A139: AUROPHARMA | B139: EQ | C139: 472.45 | D139: 478.55 | E139: 459.15 | F139: 463 | G139: 462.9 | H139: 471.85 | I139: 2381573 | J139: 1112090617 | K139: 2019-10-30 | L139: 39403 | M139: INE406A01037
A140: AUSOMENT | B140: EQ | C140: 27.35 | D140: 30.75 | E140: 27.3 | F140: 29.45 | G140: 30.3 | H140: 28.2 | I140: 1174 | J140: 34099.55 | K140: 2019-10-30 | L140: 55 | M140: INE218C01016
A141: AUTOAXLES | B141: EQ | C141: 946.4 | D141: 995 | E141: 945 | F141: 952.55 | G141: 949.95 | H141: 945.9 | I141: 37892 | J141: 36851479.95 | K141: 2019-10-30 | L141: 2312 | M141: INE449A01011
A142: AUTOIND | B142: EQ | C142: 23.35 | D142: 23.35 | E142: 21.3 | F142: 23.25 | G142: 23.25 | H142: 21.9 | I142: 31644 | J142: 728393.95 | K142: 2019-10-30 | L142: 158 | M142: INE718H01014
A143: AUTOLITIND | B143: EQ | C143: 21.5 | D143: 22.5 | E143: 21 | F143: 21.55 | G143: 21.15 | H143: 21.45 | I143: 7960 | J143: 170327.5 | K143: 2019-10-30 | L143: 86 | M143: INE448A01013
A144: AVADHSUGAR | B144: EQ | C144: 270 | D144: 283.4 | E144: 270 | F144: 278.35 | G144: 277.7 | H144: 270 | I144: 65557 | J144: 18168864.9 | K144: 2019-10-30 | L144: 1939 | M144: INE349W01017
A145: AVANTIFEED | B145: EQ | C145: 433 | D145: 457 | E145: 430.05 | F145: 451 | G145: 450.7 | H145: 430.05 | I145: 569720 | J145: 255648185.5 | K145: 2019-10-30 | L145: 17779 | M145: INE871C01038
A146: AVTNPL | B146: EQ | C146: 25.2 | D146: 26.2 | E146: 25.1 | F146: 25.25 | G146: 25.1 | H146: 24.85 | I146: 49748 | J146: 1267598.6 | K146: 2019-10-30 | L146: 445 | M146: INE488D01021
A147: AXISBANK | B147: EQ | C147: 745 | D147: 749.9 | E147: 735.5 | F147: 747.4 | G147: 748.8 | H147: 738.45 | I147: 10188947 | J147: 7588715953 | K147: 2019-10-30 | L147: 119891 | M147: INE238A01034
A148: AXISCADES | B148: EQ | C148: 71.95 | D148: 71.95 | E148: 67 | F148: 67.9 | G148: 67.05 | H148: 70.55 | I148: 174173 | J148: 12043544.35 | K148: 2019-10-30 | L148: 2078 | M148: INE555B01013
A149: AXISGOLD | B149: EQ | C149: 3372.9 | D149: 3389.95 | E149: 3357.55 | F149: 3362.65 | G149: 3357.8 | H149: 3372.95 | I149: 224 | J149: 753661.6 | K149: 2019-10-30 | L149: 67 | M149: INF846K01347
A150: AXISNIFTY | B150: EQ | C150: 1213 | D150: 1224 | E150: 1211.93 | F150: 1224 | G150: 1224 | H150: 1212.9 | I150: 108 | J150: 131241.39 | K150: 2019-10-30 | L150: 13 | M150: INF846K01ZL0
A151: AYMSYNTEX | B151: EQ | C151: 33.9 | D151: 34.4 | E151: 33.55 | F151: 33.65 | G151: 33.65 | H151: 33.7 | I151: 6768 | J151: 228627.4 | K151: 2019-10-30 | L151: 112 | M151: INE193B01039
A152: BAGFILMS | B152: EQ | C152: 1.75 | D152: 1.8 | E152: 1.7 | F152: 1.75 | G152: 1.8 | H152: 1.75 | I152: 146514 | J152: 262503.7 | K152: 2019-10-30 | L152: 121 | M152: INE116D01028
A153: BAJAJ-AUTO | B153: EQ | C153: 3199.4 | D153: 3229.4 | E153: 3173.1 | F153: 3222.9 | G153: 3228 | H153: 3180.75 | I153: 572787 | J153: 1840730033 | K153: 2019-10-30 | L153: 37245 | M153: INE917I01010
A154: BAJAJCON | B154: EQ | C154: 245 | D154: 253.9 | E154: 242 | F154: 245.65 | G154: 246.2 | H154: 244.3 | I154: 312749 | J154: 77520853.85 | K154: 2019-10-30 | L154: 6984 | M154: INE933K01021
A155: BAJAJELEC | B155: EQ | C155: 381 | D155: 381 | E155: 377 | F155: 378.95 | G155: 378 | H155: 379.85 | I155: 60253 | J155: 22862833.05 | K155: 2019-10-30 | L155: 2100 | M155: INE193E01025
A156: BAJAJFINSV | B156: EQ | C156: 8196.85 | D156: 8199.05 | E156: 8061.25 | F156: 8082.4 | G156: 8086 | H156: 8150.9 | I156: 226406 | J156: 1838527355 | K156: 2019-10-30 | L156: 26805 | M156: INE918I01018
A157: BAJAJHIND | B157: EQ | C157: 6.15 | D157: 6.45 | E157: 6.15 | F157: 6.2 | G157: 6.2 | H157: 6.15 | I157: 1032853 | J157: 6485020.95 | K157: 2019-10-30 | L157: 1082 | M157: INE306A01021
A158: BAJAJHLDNG | B158: EQ | C158: 3706.95 | D158: 3715 | E158: 3675.65 | F158: 3682.85 | G158: 3680 | H158: 3695.35 | I158: 10490 | J158: 38750433.2 | K158: 2019-10-30 | L158: 1914 | M158: INE118A01012
A159: BAJFINANCE | B159: EQ | C159: 4074.95 | D159: 4074.95 | E159: 3985 | F159: 3992 | G159: 3995 | H159: 4047.25 | I159: 1338554 | J159: 5371538909 | K159: 2019-10-30 | L159: 79482 | M159: INE296A01024
A160: BALAJITELE | B160: EQ | C160: 52 | D160: 55.7 | E160: 50.5 | F160: 51.15 | G160: 51.55 | H160: 51.6 | I160: 599429 | J160: 31443803.3 | K160: 2019-10-30 | L160: 2881 | M160: INE794B01026
A161: BALAMINES | B161: EQ | C161: 336 | D161: 340.95 | E161: 321 | F161: 327.05 | G161: 321 | H161: 335.85 | I161: 23766 | J161: 7922868.4 | K161: 2019-10-30 | L161: 992 | M161: INE050E01027
A162: BALAXI | B162: EQ | C162: 84.95 | D162: 84.95 | E162: 76.95 | F162: 79.4 | G162: 80 | H162: 80.95 | I162: 3204 | J162: 254160.35 | K162: 2019-10-30 | L162: 52 | M162: INE618N01014
A163: BALKRISHNA | B163: BE | C163: 18.6 | D163: 19.9 | E163: 18.6 | F163: 19.4 | G163: 19.5 | H163: 19.5 | I163: 5745 | J163: 109961.25 | K163: 2019-10-30 | L163: 44 | M163: INE875R01011
A164: BALKRISIND | B164: EQ | C164: 875 | D164: 885 | E164: 856.05 | F164: 867.3 | G164: 865 | H164: 868.65 | I164: 487654 | J164: 424282318.6 | K164: 2019-10-30 | L164: 12053 | M164: INE787D01026
A165: BALLARPUR | B165: EQ | C165: 0.55 | D165: 0.55 | E165: 0.45 | F165: 0.5 | G165: 0.5 | H165: 0.5 | I165: 1697024 | J165: 853035.85 | K165: 2019-10-30 | L165: 313 | M165: INE294A01037
A166: BALMLAWRIE | B166: EQ | C166: 195.9 | D166: 213.3 | E166: 195.05 | F166: 200.1 | G166: 201.85 | H166: 192.4 | I166: 1042398 | J166: 212743701.9 | K166: 2019-10-30 | L166: 15486 | M166: INE164A01016
A167: BALPHARMA | B167: EQ | C167: 38.95 | D167: 39.35 | E167: 38.1 | F167: 38.9 | G167: 39 | H167: 38.1 | I167: 5874 | J167: 228322.65 | K167: 2019-10-30 | L167: 72 | M167: INE083D01012
A168: BALRAMCHIN | B168: EQ | C168: 153.45 | D168: 159 | E168: 153.45 | F168: 156.55 | G168: 156.4 | H168: 153.6 | I168: 873051 | J168: 136496270.7 | K168: 2019-10-30 | L168: 16750 | M168: INE119A01028
A169: BANARBEADS | B169: EQ | C169: 38.7 | D169: 39 | E169: 35.75 | F169: 37.1 | G169: 37.7 | H169: 37.55 | I169: 17838 | J169: 677985.3 | K169: 2019-10-30 | L169: 218 | M169: INE655B01011
A170: BANARISUG | B170: EQ | C170: 1105 | D170: 1135.05 | E170: 1105 | F170: 1111.9 | G170: 1105 | H170: 1121 | I170: 197 | J170: 220432.75 | K170: 2019-10-30 | L170: 138 | M170: INE459A01010
A171: BANCOINDIA | B171: EQ | C171: 113 | D171: 116 | E171: 112 | F171: 114.85 | G171: 115.55 | H171: 113.1 | I171: 67646 | J171: 7746712.15 | K171: 2019-10-30 | L171: 1720 | M171: INE213C01025
A172: BANDHANBNK | B172: EQ | C172: 614.9 | D172: 623.75 | E172: 594 | F172: 614.25 | G172: 613.4 | H172: 624.25 | I172: 5763829 | J172: 3547326320 | K172: 2019-10-30 | L172: 135081 | M172: INE545U01014
A173: BANG | B173: EQ | C173: 17.95 | D173: 18.95 | E173: 17.35 | F173: 18.2 | G173: 18 | H173: 17.7 | I173: 9988 | J173: 180514.85 | K173: 2019-10-30 | L173: 113 | M173: INE863I01016
A174: BANKBARODA | B174: EQ | C174: 93.4 | D174: 97.1 | E174: 92.8 | F174: 95.55 | G174: 95.75 | H174: 93.05 | I174: 31568294 | J174: 3005421055 | K174: 2019-10-30 | L174: 83607 | M174: INE028A01039
A175: BANKBEES | B175: EQ | C175: 3045 | D175: 3071 | E175: 3035 | F175: 3054.87 | G175: 3055.9 | H175: 3044.48 | I175: 5385 | J175: 16468629.28 | K175: 2019-10-30 | L175: 641 | M175: INF732E01078
A176: BANKINDIA | B176: EQ | C176: 67.55 | D176: 71.4 | E176: 66.9 | F176: 71.05 | G176: 71.25 | H176: 67.2 | I176: 11650110 | J176: 811919574 | K176: 2019-10-30 | L176: 30666 | M176: INE084A01016
A177: BANSWRAS | B177: EQ | C177: 69.4 | D177: 69.4 | E177: 63 | F177: 66.8 | G177: 66.55 | H177: 66.7 | I177: 4622 | J177: 308876.65 | K177: 2019-10-30 | L177: 82 | M177: INE629D01012
A178: BARTRONICS | B178: BE | C178: 1.15 | D178: 1.25 | E178: 1.15 | F178: 1.25 | G178: 1.25 | H178: 1.2 | I178: 8113 | J178: 9936.25 | K178: 2019-10-30 | L178: 23 | M178: INE855F01034
A179: BASF | B179: EQ | C179: 985 | D179: 1029 | E179: 985 | F179: 1001.35 | G179: 996.1 | H179: 982.85 | I179: 31656 | J179: 31930141.65 | K179: 2019-10-30 | L179: 2675 | M179: INE373A01013
A180: BASML | B180: EQ | C180: 155.55 | D180: 155.55 | E180: 151.3 | F180: 153.6 | G180: 153.4 | H180: 155.85 | I180: 3287 | J180: 501922.45 | K180: 2019-10-30 | L180: 46 | M180: INE186H01014
A181: BATAINDIA | B181: EQ | C181: 1789 | D181: 1789 | E181: 1764.05 | F181: 1780.2 | G181: 1778 | H181: 1781.65 | I181: 353785 | J181: 628340102.8 | K181: 2019-10-30 | L181: 24922 | M181: INE176A01028
A182: BAYERCROP | B182: EQ | C182: 3285.85 | D182: 3390 | E182: 3285.85 | F182: 3364.75 | G182: 3376 | H182: 3286.35 | I182: 4289 | J182: 14323685.45 | K182: 2019-10-30 | L182: 1464 | M182: INE462A01022
A183: BBL | B183: EQ | C183: 864.35 | D183: 869 | E183: 842 | F183: 855 | G183: 852 | H183: 862.15 | I183: 11243 | J183: 9610005.2 | K183: 2019-10-30 | L183: 970 | M183: INE464A01028
A184: BBTC | B184: EQ | C184: 1219.7 | D184: 1234.25 | E184: 1193.25 | F184: 1201.45 | G184: 1201.15 | H184: 1209.7 | I184: 123781 | J184: 150130758.2 | K184: 2019-10-30 | L184: 7565 | M184: INE050A01025
A185: BCG | B185: EQ | C185: 2.75 | D185: 2.75 | E185: 2.55 | F185: 2.65 | G185: 2.7 | H185: 2.65 | I185: 354686 | J185: 925743.1 | K185: 2019-10-30 | L185: 221 | M185: INE425B01027
A186: BCP | B186: EQ | C186: 7.45 | D186: 7.75 | E186: 7.45 | F186: 7.6 | G186: 7.75 | H186: 7.6 | I186: 376656 | J186: 2835282.4 | K186: 2019-10-30 | L186: 206 | M186: INE905P01028
A187: BDL | B187: EQ | C187: 330.75 | D187: 348 | E187: 322.6 | F187: 336.75 | G187: 337 | H187: 327.75 | I187: 204953 | J187: 69398818 | K187: 2019-10-30 | L187: 8879 | M187: INE171Z01018
A188: BEARDSELL | B188: EQ | C188: 11.4 | D188: 11.5 | E188: 10.25 | F188: 10.6 | G188: 10.95 | H188: 11 | I188: 1975 | J188: 21673.3 | K188: 2019-10-30 | L188: 111 | M188: INE520H01022
A189: BEDMUTHA | B189: EQ | C189: 10.5 | D189: 10.95 | E189: 10.35 | F189: 10.8 | G189: 10.9 | H189: 11 | I189: 6658 | J189: 71316.75 | K189: 2019-10-30 | L189: 45 | M189: INE844K01012
A190: BEL | B190: EQ | C190: 119.9 | D190: 122.1 | E190: 117.7 | F190: 119.35 | G190: 118.65 | H190: 118.7 | I190: 9364442 | J190: 1115461080 | K190: 2019-10-30 | L190: 61796 | M190: INE263A01024
A191: BEML | B191: EQ | C191: 1091 | D191: 1108.95 | E191: 1020 | F191: 1058.65 | G191: 1052.95 | H191: 1008.25 | I191: 2556020 | J191: 2768006489 | K191: 2019-10-30 | L191: 70336 | M191: INE258A01016
A192: BEPL | B192: EQ | C192: 48.1 | D192: 49.2 | E192: 47.75 | F192: 47.85 | G192: 47.8 | H192: 47.75 | I192: 285748 | J192: 13777842.75 | K192: 2019-10-30 | L192: 1888 | M192: INE922A01025
A193: BERGEPAINT | B193: EQ | C193: 501 | D193: 502.9 | E193: 495.55 | F193: 498 | G193: 499.5 | H193: 499.1 | I193: 1388372 | J193: 692667124.6 | K193: 2019-10-30 | L193: 23577 | M193: INE463A01038
A194: BFINVEST | B194: EQ | C194: 337.9 | D194: 346.8 | E194: 325 | F194: 340.95 | G194: 339.15 | H194: 333.8 | I194: 684873 | J194: 231658326 | K194: 2019-10-30 | L194: 17549 | M194: INE878K01010
A195: BFUTILITIE | B195: EQ | C195: 257 | D195: 260.85 | E195: 242.6 | F195: 259.8 | G195: 260.85 | H195: 237.15 | I195: 1741220 | J195: 443585295.3 | K195: 2019-10-30 | L195: 23522 | M195: INE243D01012
A196: BGLOBAL | B196: BE | C196: 1.95 | D196: 1.95 | E196: 1.9 | F196: 1.95 | G196: 1.95 | H196: 1.9 | I196: 11182 | J196: 21702.25 | K196: 2019-10-30 | L196: 32 | M196: INE224M01013
A197: BGRENERGY | B197: EQ | C197: 32.25 | D197: 33.8 | E197: 31.8 | F197: 32.75 | G197: 32.7 | H197: 31.85 | I197: 109155 | J197: 3608150.8 | K197: 2019-10-30 | L197: 1182 | M197: INE661I01014
A198: BHAGERIA | B198: EQ | C198: 108 | D198: 109.8 | E198: 106.1 | F198: 107.8 | G198: 108 | H198: 107.5 | I198: 11492 | J198: 1245779.9 | K198: 2019-10-30 | L198: 328 | M198: INE354C01027
A199: BHAGYANGR | B199: EQ | C199: 20 | D199: 20 | E199: 19.35 | F199: 19.35 | G199: 19.35 | H199: 19 | I199: 447 | J199: 8693.8 | K199: 2019-10-30 | L199: 11 | M199: INE458B01036
A200: BHAGYAPROP | B200: EQ | C200: 21.2 | D200: 21.2 | E200: 19.25 | F200: 19.7 | G200: 19.7 | H200: 21.2 | I200: 8727 | J200: 176797.55 | K200: 2019-10-30 | L200: 22 | M200: INE363W01018
... 1491 more rows

Sheet Sheet1 (hidden)

Sheet Sheet3 (hidden)

Sheet Sheet4 (hidden)

Sheet Sheet5 (hidden)
